{"text_format":"1","workbook":"xlsx","n_sheets":5,"sheets":["Intro","TABLES-FORMS","COLUMN","Data","Param"],"not_rendered":{"charts":0,"images":0,"macros":1,"external_links":0,"defined_names":24,"comments":2,"pivot_tables":0},"unopened":[],"bounds":{"document_bytes":16777216,"sheet_cells":100000,"rows_first":2000,"rows_last":500,"rows_between":2000,"halvings":0,"cell_chars":16384,"cell_head_chars":4096},"cells_cut":0,"cells_raw":0,"read":"whole","date_system":"1900"}

{"sheet":"Intro","index":0,"n_rows":48,"n_cols":3,"rows_kept":48,"cut":false,"hidden":false,"merged":[[1,1,1,14],[2,1,2,14],[3,1,3,14]]}
[]
[null,"IEA Oil Annual Mini Questionnaire"]
[null,{"$f":"DataYear+1&\" provisional data\"","v":"1 provisional data"}]
[null,{"$f":"CountryName","v":"Country"}]
[]
[null,"This questionnaire is operational if VBA macros are operational, so please enable execution of VBA macros. "]
[null,"Please enter new data as values (up to three decimal places) or enter a formula but with no links to external file sources."]
[]
[null,"This is the second cycle collecting provisional oil supply and demand data. Feedback on the IEA oil mini-questionnaire would be welcome. "]
[]
[null,"The IEA has historically estimated provisional oil supply data for Y-1 based mainly on the Monthly Oil Statistics (MOS) and national preliminary balance, where available. "]
[null,"As mentioned in the ESDG in October 2020, the IEA aims to expand this data collection into supply and demand to enhance the data quality. "]
[null,"In particular, oil demand data for the provisional year would be very useful in deriving key energy indicators such as fuel shares in final consumption, efficiency and emissions,"]
[null,"which are increasingly requested by various stakeholders. "]
[]
[null,"To further enhance our coverage and meet the needs of various stakeholders, changes to this cycle's IEA oil mini-questionnaires include request for data on:"]
[null,null,"● Non-energy use in the Industry sector"]
[null,null,"● Energy use in International aviation"]
[]
[null,"In the previous cycle for oil, a biofuels survey was sent out along with the IEA oil mini-questionnaire. This cycle, we no longer send out the biofuels survey. "]
[null,"At a minimum, please submit blended/intended for blending biofuels data in the IEA oil mini-questionnaire."]
[null,"Please enter them in the cells with blue background and orange borders. The flows collected for biofuels are similar to those collected in the past in the biofuels survey. "]
[]
[null,"Should you be able to provide provisional supply and demand oil data for Y-1, please fill the data in the oil mini-questionnaire. "]
[null,"Partial data are very much welcome. This could be interpreted as ‘only some flows being included’ or as ‘partial coverage of any of the flows,’ either of which is acceptable."]
[null,"However, we request that a remark/note be added when we have the second case (so we know from the start we are looking at partial information)."]
[null,"The remark/note may be added in the \"Explanatory remarks\" column in the \"Column\" tab."]
[]
[null,"In the oil mini-questionnaire, you may opt to fill the data in either the \"Tables-Forms\" sheet or the \"Column\" sheet. "]
[null,"The entries in one sheet will be automatically updated in the other sheet once filled (a VBA macro runs when toggling between views and you may notice a slight delay). "]
[null,"We highly encourage you to take advantage of the Check column available in the \"Column\" tab to ensure data consistency. "]
[null,"You may also enter remarks in the \"Column\" tab to confirm or explain any large y-o-y changes in the data (whose % variation will be marked in red if greater or less than 20%). "]
[]
[null,"All definitions and instructions for the annual oil questionnaire apply."]
[null,null,"Annual oil questionnaire instructions"]
[null,"The flow \"of which input to electricity and heat generation\" refers to the sum of oil inputs for main activity and autoproducers for electricity, heat and CHP production. "]
[null,"Other oil products in the IEA oil mini-questionnaire also include White spirit, Lubricants, Bitumen and Paraffin waxes."]
[]
[null,"Notes:"]
[null,123,"- Cells with white background cannot be edited."]
[null,123,"- Cells with white background and bold black or brown font are formulas (cannot be edited)."]
[null,123,"- Cells with white background and italic font are growth rates (cannot be edited). "]
[null,123,"- Cells with blue background can be edited. Please enter new data as values (up to three decimal places) or enter a formula but with no links to external file sources."]
[null,123,"- Cells with blue background and orange borders are for the biofuels data (minimum required data)."]
[null,123,"- Cells with blue background and brown font can be edited and pertain to the consumption side of the energy balance."]
[]
[null,"When completed, please return via our E-VO portal or by attachment to OILAQ@iea.org by 25 May 2022."]
[null,"For non-OECD countries, please return them via our E-VO portal or by attachment to WED@iea.org. "]

{"sheet":"TABLES-FORMS","index":1,"n_rows":49,"n_cols":29,"rows_kept":49,"cut":false,"hidden":false,"merged":[]}
[null,"SUPPLY\nCRUDE OIL, NGL, REFINERY FEEDSTOCKS, ADDITIVES AND OTHER HYDROCARBONS"]
[null,"unit: kt (thousand tons)"]
[null,{"$f":"COLUMN!H1","v":"2021E"},"Crude Oil","Natural gas\nliquids","Refinery\nfeedstocks","Additives / oxygenates","Of which\nBiofuels","Other\nhydrocarbons","TOTAL","Growth rates\nto previous\nyear"]
["+","Indigenous production",null,null,null,null,null,null,{"$f":"SUM(C4:F4,H4)","v":0},{"$f":"IF(I4=0,0,IF(Data!H4=0,0,((I4/Data!H4)-1)))","v":0}]
["+","From Other Sources",null,null,null,null,null,null,{"$f":"SUM(C5:F5,H5)","v":0},{"$f":"IF(I5=0,0,IF(Data!H5=0,0,((I5/Data!H5)-1)))","v":0}]
[null,"From Other Sources: Coal",null,null,null,null,null,null,0,{"$f":"IF(I6=0,0,IF(Data!H6=0,0,((I6/Data!H6)-1)))","v":0}]
[null,"From Other Sources: Natural gas",null,null,null,null,null,null,0,{"$f":"IF(I7=0,0,IF(Data!H7=0,0,((I7/Data!H7)-1)))","v":0}]
[null,"From Other Sources: Renewables",null,null,null,null,null,null,0,{"$f":"IF(I8=0,0,IF(Data!H8=0,0,((I8/Data!H8)-1)))","v":0}]
["+","Backflows to Refineries",null,null,null,null,null,null,0,{"$f":"IF(I9=0,0,IF(Data!H9=0,0,((I9/Data!H9)-1)))","v":0}]
["+","Products transferred",null,null,null,null,null,null,0,{"$f":"IF(I10=0,0,IF(Data!H10=0,0,((I10/Data!H10)-1)))","v":0}]
["+","Total Imports (Balance)",null,null,null,null,null,null,0,{"$f":"IF(I11=0,0,IF(Data!H11=0,0,((I11/Data!H11)-1)))","v":0}]
["-","Total Exports (Balance)",null,null,null,null,null,null,0,{"$f":"IF(I12=0,0,IF(Data!H12=0,0,((I12/Data!H12)-1)))","v":0}]
["-","Direct use",null,null,null,null,null,null,0,{"$f":"IF(I13=0,0,IF(Data!H13=0,0,((I13/Data!H13)-1)))","v":0}]
["+","Stock changes (National territory)",null,null,null,null,null,null,0,{"$f":"IF(I14=0,0,IF(Data!H14=0,0,((I14/Data!H14)-1)))","v":0}]
["=","Refinery intake (Calculated)",{"$f":"C4+C5+C9+C10+C11-C12-C13+C14","v":0},0,0,0,0,0,0,{"$f":"IF(I15=0,0,IF(Data!H15=0,0,((I15/Data!H15)-1)))","v":0}]
[null,"Statistical difference",{"$f":"C15-C17","v":0},0,0,0,0,0,{"$f":"SUM(C16:F16,H16)","v":0},{"$f":"IF(I16=0,0,IF(Data!H16=0,0,((I16/Data!H16)-1)))","v":0}]
[null,"Refinery intake (Observed)",null,null,null,null,null,null,0,{"$f":"IF(I17=0,0,IF(Data!H17=0,0,((I17/Data!H17)-1)))","v":0}]
[null,"Refinery losses",null,null,null,null,null,null,0,{"$f":"IF(I18=0,0,IF(Data!H18=0,0,((I18/Data!H18)-1)))","v":0}]
[]
[null,"SUPPLY, DELIVERIES & CONSUMPTION"]
[null,"unit: kt (thousand tons)"]
[null,{"$f":"COLUMN!H1","v":"2021E"},"Crude\noil","Natural\ngas\nliquids","Refinery\ngas","Ethane","LPG","Naphtha","Total motor\ngasoline","Biogasoline","Non-biogasoline","Aviation\ngasoline","Gasoline\ntype\njet fuel","Total kerosene\ntype\njet fuel","Bio jet kerosene","Non-bio jet kerosene","Other\nkerosene","Road Diesel","Heating and other gasoil","Total gas/diesel\noil","Biodiesels ","Non-bio gas/diesel oil","Total fuel oil","Low Sulphur fuel oil","High Sulphur fuel oil","Petroleum\ncoke","Other oil\nproducts","TOTAL","Growth rates\nto previous\nyear"]
["+","Primary product receipts",null,null,null,null,null,null,{"$f":"J23+K23","v":0},null,null,null,null,{"$f":"O23+P23","v":0},null,null,null,null,null,{"$f":"U23+V23","v":0},null,null,{"$f":"X23+Y23","v":0},null,null,null,null,{"$f":"SUM(C23:I23,L23:N23,Q23,T23,W23,Z23,AA23)","v":0},{"$f":"IF(AB23=0,0,IF(Data!AF19=0,0,((AB23/Data!AF19)-1)))","v":0}]
["+","Refinery gross output",null,null,null,null,null,null,{"$f":"J24+K24","v":0},null,null,null,null,{"$f":"O24+P24","v":0},null,null,null,null,null,{"$f":"U24+V24","v":0},null,null,{"$f":"X24+Y24","v":0},null,null,null,null,0,{"$f":"IF(AB24=0,0,IF(Data!AF20=0,0,((AB24/Data!AF20)-1)))","v":0}]
["+","Recycled products",null,null,null,null,null,null,0,null,null,null,null,0,null,null,null,null,null,0,null,null,0,null,null,null,null,0,{"$f":"IF(AB25=0,0,IF(Data!AF21=0,0,((AB25/Data!AF21)-1)))","v":0}]
["-","Refinery fuel",null,null,null,null,null,null,0,null,null,null,null,0,null,null,null,null,null,0,null,null,0,null,null,null,null,0,{"$f":"IF(AB26=0,0,IF(Data!AF22=0,0,((AB26/Data!AF22)-1)))","v":0}]
["+","Total Imports (Balance)",null,null,null,null,null,null,0,null,null,null,null,0,null,null,null,null,null,0,null,null,0,null,null,null,null,0,{"$f":"IF(AB27=0,0,IF(Data!AF11=0,0,((AB27/Data!AF11)-1)))","v":0}]
["-","Total Exports (Balance)",null,null,null,null,null,null,0,null,null,null,null,0,null,null,null,null,null,0,null,null,0,null,null,null,null,0,{"$f":"IF(AB28=0,0,IF(Data!AF12=0,0,((AB28/Data!AF12)-1)))","v":0}]
["-","International marine bunkers",null,null,null,null,null,null,0,null,null,null,null,0,null,null,null,null,null,0,null,null,0,null,null,null,null,0,{"$f":"IF(AB29=0,0,IF(Data!AF23=0,0,((AB29/Data!AF23)-1)))","v":0}]
["+","Interproduct transfers",null,null,null,null,null,null,0,null,null,null,null,0,null,null,null,null,null,0,null,null,0,null,null,null,null,0,{"$f":"IF(AB30=0,0,IF(Data!AF24=0,0,((AB30/Data!AF24)-1)))","v":0}]
["-","Products transferred",null,null,null,null,null,null,0,null,null,null,null,0,null,null,null,null,null,0,null,null,0,null,null,null,null,0,{"$f":"IF(AB31=0,0,IF(Data!AF10=0,0,((AB31/Data!AF10)-1)))","v":0}]
["+","Stock changes (National territory)",null,null,null,null,null,null,0,null,null,null,null,0,null,null,null,null,null,0,null,null,0,null,null,null,null,0,{"$f":"IF(AB32=0,0,IF(Data!AF14=0,0,((AB32/Data!AF14)-1)))","v":0}]
["=","Gross inland deliveries (Calculated)",{"$f":"C23+C24+C25-C26+C27-C28-C29+C30-C31+C32","v":0},0,0,0,0,0,{"$f":"I23+I24+I25-I26+I27-I28-I29+I30-I31+I32","v":0},{"$f":"J23+J24+J25-J26+J27-J28-J29+J30-J31+J32","v":0},{"$f":"K23+K24+K25-K26+K27-K28-K29+K30-K31+K32","v":0},{"$f":"L23+L24+L25-L26+L27-L28-L29+L30-L31+L32","v":0},{"$f":"M23+M24+M25-M26+M27-M28-M29+M30-M31+M32","v":0},0,{"$f":"O23+O24+O25-O26+O27-O28-O29+O30-O31+O32","v":0},{"$f":"P23+P24+P25-P26+P27-P28-P29+P30-P31+P32","v":0},{"$f":"Q23+Q24+Q25-Q26+Q27-Q28-Q29+Q30-Q31+Q32","v":0},{"$f":"R23+R24+R25-R26+R27-R28-R29+R30-R31+R32","v":0},0,0,{"$f":"U23+U24+U25-U26+U27-U28-U29+U30-U31+U32","v":0},{"$f":"V23+V24+V25-V26+V27-V28-V29+V30-V31+V32","v":0},0,{"$f":"X23+X24+X25-X26+X27-X28-X29+X30-X31+X32","v":0},{"$f":"Y23+Y24+Y25-Y26+Y27-Y28-Y29+Y30-Y31+Y32","v":0},{"$f":"Z23+Z24+Z25-Z26+Z27-Z28-Z29+Z30-Z31+Z32","v":0},{"$f":"AA23+AA24+AA25-AA26+AA27-AA28-AA29+AA30-AA31+AA32","v":0},0,{"$f":"IF(AB33=0,0,IF(Data!AF25=0,0,((AB33/Data!AF25)-1)))","v":0}]
[null,"Statistical difference",{"$f":"C33-C35","v":0},0,0,0,0,0,{"$f":"I33-I35","v":0},{"$f":"J33-J35","v":0},{"$f":"K33-K35","v":0},{"$f":"L33-L35","v":0},{"$f":"M33-M35","v":0},0,{"$f":"O33-O35","v":0},{"$f":"P33-P35","v":0},{"$f":"Q33-Q35","v":0},{"$f":"R33-R35","v":0},0,0,{"$f":"U33-U35","v":0},{"$f":"V33-V35","v":0},0,{"$f":"X33-X35","v":0},{"$f":"Y33-Y35","v":0},{"$f":"Z33-Z35","v":0},{"$f":"AA33-AA35","v":0},{"$f":"ROUND(SUM(C34:I34,L34:N34,Q34,T34,W34,Z34,AA34),3)","v":0},{"$f":"IF(AB34=0,0,IF(Data!AF16=0,0,((AB34/Data!AF16)-1)))","v":0}]
[null,"Gross inland deliveries (Observed)",null,null,null,null,null,null,{"$f":"J35+K35","v":0},null,null,null,null,{"$f":"O35+P35","v":0},null,null,null,null,null,{"$f":"U35+V35","v":0},null,null,{"$f":"X35+Y35","v":0},null,null,null,null,{"$f":"SUM(C35:I35,L35:N35,Q35,T35,W35,Z35,AA35)","v":0},{"$f":"IF(AB35=0,0,IF(Data!AF26=0,0,((AB35/Data!AF26)-1)))","v":0}]
[null,"Transformation sector",null,null,null,null,null,null,{"$f":"J36+K36","v":0},null,null,null,null,{"$f":"O36+P36","v":0},null,null,null,null,null,{"$f":"U36+V36","v":0},null,null,{"$f":"X36+Y36","v":0},null,null,null,null,0,{"$f":"IF(AB36=0,0,IF(Data!AF28=0,0,((AB36/Data!AF28)-1)))","v":0}]
[null,"of which input to electricity and heat generation",null,null,null,null,null,null,{"$f":"J37+K37","v":0},null,null,null,null,{"$f":"O37+P37","v":0},null,null,null,null,null,{"$f":"U37+V37","v":0},null,null,{"$f":"X37+Y37","v":0},null,null,null,null,0]
[null,"Energy sector",null,null,null,null,null,null,0,null,null,null,null,0,null,null,null,null,null,0,null,null,0,null,null,null,null,0,{"$f":"IF(AB38=0,0,IF(Data!AF29=0,0,((AB38/Data!AF29)-1)))","v":0}]
[null,"Distribution losses",null,null,null,null,null,null,0,null,null,null,null,0,null,null,null,null,null,0,null,null,0,null,null,null,null,0,{"$f":"IF(AB39=0,0,IF(Data!AF30=0,0,((AB39/Data!AF30)-1)))","v":0}]
[null,"Total final consumption",null,null,null,null,null,null,0,null,null,null,null,0,null,null,null,null,null,0,null,null,0,null,null,null,null,0,{"$f":"IF(AB40=0,0,IF(Data!AF31=0,0,((AB40/Data!AF31)-1)))","v":0}]
[null,"Total final non-energy use consumption",null,null,null,null,null,null,0,null,null,null,null,0,null,null,null,null,null,0,null,null,0,null,null,null,null,0,{"$f":"IF(AB41=0,0,IF(Data!AF32=0,0,((AB41/Data!AF32)-1)))","v":0}]
[null,"Industry sector",null,null,null,null,null,null,{"$f":"ROUND(J42+K42,3)","v":0},null,null,null,null,{"$f":"ROUND(O42+P42,3)","v":0},null,null,null,null,null,{"$f":"ROUND(U42+V42,3)","v":0},null,null,{"$f":"ROUND(X42+Y42,3)","v":0},null,null,null,null,{"$f":"ROUND(SUM(C42:I42,L42:N42,Q42,T42,W42,Z42,AA42),3)","v":0}]
[null,"Total final energy consumption",null,null,null,null,null,null,0,null,null,null,null,0,null,null,null,null,null,0,null,null,0,null,null,null,null,0,{"$f":"IF(AB43=0,0,IF(Data!AF33=0,0,((AB43/Data!AF33)-1)))","v":0}]
[null,"Transport sector",null,null,null,null,null,null,0,null,null,null,null,0,null,null,null,null,null,0,null,null,0,null,null,null,null,0,{"$f":"IF(AB44=0,0,IF(Data!AF34=0,0,((AB44/Data!AF34)-1)))","v":0}]
[null,"of which International aviation",null,null,null,null,null,null,{"$f":"ROUND(J45+K45,3)","v":0},null,null,null,null,{"$f":"ROUND(O45+P45,3)","v":0},null,null,null,null,null,{"$f":"ROUND(U45+V45,3)","v":0},null,null,{"$f":"ROUND(X45+Y45,3)","v":0},null,null,null,null,{"$f":"ROUND(SUM(C45:I45,L45:N45,Q45,T45,W45,Z45,AA45),3)","v":0}]
[null,"Industry sector",null,null,null,null,null,null,0,null,null,null,null,0,null,null,null,null,null,0,null,null,0,null,null,null,null,0,{"$f":"IF(AB46=0,0,IF(Data!AF35=0,0,((AB46/Data!AF35)-1)))","v":0}]
[null,"Other sectors",null,null,null,null,null,null,0,null,null,null,null,0,null,null,null,null,null,0,null,null,0,null,null,null,null,0,{"$f":"IF(AB47=0,0,IF(Data!AF36=0,0,((AB47/Data!AF36)-1)))","v":0}]
[null,"of which Residential",null,null,null,null,null,null,0,null,null,null,null,0,null,null,null,null,null,0,null,null,0,null,null,null,null,0,{"$f":"IF(AB48=0,0,IF(Data!AF37=0,0,((AB48/Data!AF37)-1)))","v":0}]
[null,"of which Commercial/public services",null,null,null,null,null,null,0,null,null,null,null,0,null,null,null,null,null,0,null,null,0,null,null,null,null,0,{"$f":"IF(AB49=0,0,IF(Data!AF38=0,0,((AB49/Data!AF38)-1)))","v":0}]

{"sheet":"COLUMN","index":2,"n_rows":808,"n_cols":11,"rows_kept":808,"cut":false,"hidden":false,"merged":[]}
[null,"unit: kt",null,null,null,null,"2020 prefilled from annual data","2021E","Variation (%)","Checks","Explanatory remarks"]
[null,"Crude oil","Indigenous production","BALANCE","CRUDEOIL","INDPROD",{"$f":"OFFSET(Data!$A$3,MATCH($F2,Data!$A$4:$A$40,0),MATCH($E2,Data!$B$3:$AF$3,0))","v":{"$error":"#N/A"}},null,{"$f":"IF(H2=0,0,IF(G2=0,0,((H2/G2)-1)*100))","v":0}]
[null,"Crude oil","From Other Sources","BALANCE","CRUDEOIL","OSOURCES"]
[null,"Crude oil","From Other Sources: Coal","BALANCE","CRUDEOIL","OSCOAL"]
[null,"Crude oil","From Other Sources: Natural gas","BALANCE","CRUDEOIL","OSNATGAS"]
[null,"Crude oil","From Other Sources: Renewables","BALANCE","CRUDEOIL","OSRENEW"]
[null,"Crude oil","Backflows to Refineries","BALANCE","CRUDEOIL","BACKFLOW"]
[null,"Crude oil","Products transferred","BALANCE","CRUDEOIL","PTRANSF"]
[null,"Crude oil","Total Imports (Balance)","BALANCE","CRUDEOIL","TOTIMPSB",{"$f":"OFFSET(Data!$A$3,MATCH($F9,Data!$A$4:$A$40,0),MATCH($E9,Data!$B$3:$AF$3,0))","v":{"$error":"#N/A"}},null,{"$f":"IF(H9=0,0,IF(G9=0,0,((H9/G9)-1)*100))","v":0}]
[null,"Crude oil","Total Exports (Balance)","BALANCE","CRUDEOIL","TOTEXPSB",{"$f":"OFFSET(Data!$A$3,MATCH($F10,Data!$A$4:$A$40,0),MATCH($E10,Data!$B$3:$AF$3,0))","v":{"$error":"#N/A"}},null,0]
[null,"Crude oil","Direct use","BALANCE","CRUDEOIL","DIRECUSE",{"$f":"OFFSET(Data!$A$3,MATCH($F11,Data!$A$4:$A$40,0),MATCH($E11,Data!$B$3:$AF$3,0))","v":{"$error":"#N/A"}},null,0,"  "]
[null,"Crude oil","Stock Changes (National Territory)","BALANCE","CRUDEOIL","STCHANAT",{"$f":"OFFSET(Data!$A$3,MATCH($F12,Data!$A$4:$A$40,0),MATCH($E12,Data!$B$3:$AF$3,0))","v":{"$error":"#N/A"}},null,0]
[null,"Crude oil","Refinery intake (Calculated)","BALANCE","CRUDEOIL","REFINCAL",{"$f":"OFFSET(Data!$A$3,MATCH($F13,Data!$A$4:$A$40,0),MATCH($E13,Data!$B$3:$AF$3,0))","v":{"$error":"#N/A"}},{"$f":"H2+H3+H7+H8+H9-H10-H11+H12","v":0},0]
[null,"Crude oil","Statistical Differences","BALANCE","CRUDEOIL","STATDIFF",{"$f":"OFFSET(Data!$A$3,MATCH($F14,Data!$A$4:$A$40,0),MATCH($E14,Data!$B$3:$AF$3,0))","v":{"$error":"#N/A"}},{"$f":"H13-H15","v":0},0]
[null,"Crude oil","Refinery intake (Observed)","BALANCE","CRUDEOIL","REFINOBS",{"$f":"OFFSET(Data!$A$3,MATCH($F15,Data!$A$4:$A$40,0),MATCH($E15,Data!$B$3:$AF$3,0))","v":{"$error":"#N/A"}},null,0]
[null,"Crude oil","Refinery losses","BALANCE","CRUDEOIL","REFLOSS",{"$f":"OFFSET(Data!$A$3,MATCH($F16,Data!$A$4:$A$40,0),MATCH($E16,Data!$B$3:$AF$3,0))","v":{"$error":"#N/A"}},null,0]
[null,"Natural gas liquids","Indigenous production","BALANCE","NGL","INDPROD",{"$f":"OFFSET(Data!$A$3,MATCH($F17,Data!$A$4:$A$40,0),MATCH($E17,Data!$B$3:$AF$3,0))","v":{"$error":"#N/A"}},null,0]
[null,"Natural gas liquids","From Other Sources","BALANCE","NGL","OSOURCES"]
[null,"Natural gas liquids","From Other Sources: Coal","BALANCE","NGL","OSCOAL"]
[null,"Natural gas liquids","From Other Sources: Natural gas","BALANCE","NGL","OSNATGAS"]
[null,"Natural gas liquids","From Other Sources: Renewables","BALANCE","NGL","OSRENEW"]
[null,"Natural gas liquids","Backflows to Refineries","BALANCE","NGL","BACKFLOW"]
[null,"Natural gas liquids","Products transferred","BALANCE","NGL","PTRANSF"]
[null,"Natural gas liquids","Total Imports (Balance)","BALANCE","NGL","TOTIMPSB",{"$f":"OFFSET(Data!$A$3,MATCH($F24,Data!$A$4:$A$40,0),MATCH($E24,Data!$B$3:$AF$3,0))","v":{"$error":"#N/A"}},null,0]
[null,"Natural gas liquids","Total Exports (Balance)","BALANCE","NGL","TOTEXPSB",{"$f":"OFFSET(Data!$A$3,MATCH($F25,Data!$A$4:$A$40,0),MATCH($E25,Data!$B$3:$AF$3,0))","v":{"$error":"#N/A"}},null,0]
[null,"Natural gas liquids","Direct use","BALANCE","NGL","DIRECUSE",{"$f":"OFFSET(Data!$A$3,MATCH($F26,Data!$A$4:$A$40,0),MATCH($E26,Data!$B$3:$AF$3,0))","v":{"$error":"#N/A"}},null,0]
[null,"Natural gas liquids","Stock Changes (National Territory)","BALANCE","NGL","STCHANAT",{"$f":"OFFSET(Data!$A$3,MATCH($F27,Data!$A$4:$A$40,0),MATCH($E27,Data!$B$3:$AF$3,0))","v":{"$error":"#N/A"}},null,0]
[null,"Natural gas liquids","Refinery intake (Calculated)","BALANCE","NGL","REFINCAL",{"$f":"OFFSET(Data!$A$3,MATCH($F28,Data!$A$4:$A$40,0),MATCH($E28,Data!$B$3:$AF$3,0))","v":{"$error":"#N/A"}},{"$f":"H17+H18+H22+H23+H24-H25-H26+H27","v":0},0]
[null,"Natural gas liquids","Statistical Differences","BALANCE","NGL","STATDIFF",{"$f":"OFFSET(Data!$A$3,MATCH($F29,Data!$A$4:$A$40,0),MATCH($E29,Data!$B$3:$AF$3,0))","v":{"$error":"#N/A"}},{"$f":"H28-H30","v":0},0]
[null,"Natural gas liquids","Refinery intake (Observed)","BALANCE","NGL","REFINOBS",{"$f":"OFFSET(Data!$A$3,MATCH($F30,Data!$A$4:$A$40,0),MATCH($E30,Data!$B$3:$AF$3,0))","v":{"$error":"#N/A"}},null,0]
[null,"Natural gas liquids","Refinery losses","BALANCE","NGL","REFLOSS",{"$f":"OFFSET(Data!$A$3,MATCH($F31,Data!$A$4:$A$40,0),MATCH($E31,Data!$B$3:$AF$3,0))","v":{"$error":"#N/A"}},null,0]
[null,"Refinery feedstocks","Indigenous production","BALANCE","REFFEEDS","INDPROD"]
[null,"Refinery feedstocks","From Other Sources","BALANCE","REFFEEDS","OSOURCES"]
[null,"Refinery feedstocks","From Other Sources: Coal","BALANCE","REFFEEDS","OSCOAL"]
[null,"Refinery feedstocks","From Other Sources: Natural gas","BALANCE","REFFEEDS","OSNATGAS"]
[null,"Refinery feedstocks","From Other Sources: Renewables","BALANCE","REFFEEDS","OSRENEW"]
[null,"Refinery feedstocks","Backflows to Refineries","BALANCE","REFFEEDS","BACKFLOW",{"$f":"OFFSET(Data!$A$3,MATCH($F37,Data!$A$4:$A$40,0),MATCH($E37,Data!$B$3:$AF$3,0))","v":{"$error":"#N/A"}},null,0]
[null,"Refinery feedstocks","Products transferred","BALANCE","REFFEEDS","PTRANSF",{"$f":"OFFSET(Data!$A$3,MATCH($F38,Data!$A$4:$A$40,0),MATCH($E38,Data!$B$3:$AF$3,0))","v":{"$error":"#N/A"}},null,0,{"$f":"IF(H38=H790,\"\",\"Refinery feedstocks - Products transferred should equal Total products - Products transferred.\")","v":""}]
[null,"Refinery feedstocks","Total Imports (Balance)","BALANCE","REFFEEDS","TOTIMPSB",{"$f":"OFFSET(Data!$A$3,MATCH($F39,Data!$A$4:$A$40,0),MATCH($E39,Data!$B$3:$AF$3,0))","v":{"$error":"#N/A"}},null,0]
[null,"Refinery feedstocks","Total Exports (Balance)","BALANCE","REFFEEDS","TOTEXPSB",{"$f":"OFFSET(Data!$A$3,MATCH($F40,Data!$A$4:$A$40,0),MATCH($E40,Data!$B$3:$AF$3,0))","v":{"$error":"#N/A"}},null,0]
[null,"Refinery feedstocks","Direct use","BALANCE","REFFEEDS","DIRECUSE",{"$f":"OFFSET(Data!$A$3,MATCH($F41,Data!$A$4:$A$40,0),MATCH($E41,Data!$B$3:$AF$3,0))","v":{"$error":"#N/A"}},null,0]
[null,"Refinery feedstocks","Stock Changes (National Territory)","BALANCE","REFFEEDS","STCHANAT",{"$f":"OFFSET(Data!$A$3,MATCH($F42,Data!$A$4:$A$40,0),MATCH($E42,Data!$B$3:$AF$3,0))","v":{"$error":"#N/A"}},null,0]
[null,"Refinery feedstocks","Refinery intake (Calculated)","BALANCE","REFFEEDS","REFINCAL",{"$f":"OFFSET(Data!$A$3,MATCH($F43,Data!$A$4:$A$40,0),MATCH($E43,Data!$B$3:$AF$3,0))","v":{"$error":"#N/A"}},{"$f":"H32+H33+H37+H38+H39-H40-H41+H42","v":0},0]
[null,"Refinery feedstocks","Statistical Differences","BALANCE","REFFEEDS","STATDIFF",{"$f":"OFFSET(Data!$A$3,MATCH($F44,Data!$A$4:$A$40,0),MATCH($E44,Data!$B$3:$AF$3,0))","v":{"$error":"#N/A"}},{"$f":"H43-H45","v":0},0]
[null,"Refinery feedstocks","Refinery intake (Observed)","BALANCE","REFFEEDS","REFINOBS",{"$f":"OFFSET(Data!$A$3,MATCH($F45,Data!$A$4:$A$40,0),MATCH($E45,Data!$B$3:$AF$3,0))","v":{"$error":"#N/A"}},null,0]
[null,"Refinery feedstocks","Refinery losses","BALANCE","REFFEEDS","REFLOSS",{"$f":"OFFSET(Data!$A$3,MATCH($F46,Data!$A$4:$A$40,0),MATCH($E46,Data!$B$3:$AF$3,0))","v":{"$error":"#N/A"}},null,0]
[null,"Additives/oxygenates","Indigenous production","BALANCE","ADDITIVE","INDPROD",{"$f":"OFFSET(Data!$A$3,MATCH($F47,Data!$A$4:$A$40,0),MATCH($E47,Data!$B$3:$AF$3,0))","v":{"$error":"#N/A"}},null,0]
[null,"Additives/oxygenates","From Other Sources","BALANCE","ADDITIVE","OSOURCES",{"$f":"OFFSET(Data!$A$3,MATCH($F48,Data!$A$4:$A$40,0),MATCH($E48,Data!$B$3:$AF$3,0))","v":{"$error":"#N/A"}},null,0,{"$f":"IF(SUM(H49:H51)>H48,\"The sum of From Other Sources cannot be less than its parts.\",\"\")","v":""}]
[null,"Additives/oxygenates","From Other Sources: Coal","BALANCE","ADDITIVE","OSCOAL",{"$f":"OFFSET(Data!$A$3,MATCH($F49,Data!$A$4:$A$40,0),MATCH($E49,Data!$B$3:$AF$3,0))","v":{"$error":"#N/A"}},null,0]
[null,"Additives/oxygenates","From Other Sources: Natural gas","BALANCE","ADDITIVE","OSNATGAS",{"$f":"OFFSET(Data!$A$3,MATCH($F50,Data!$A$4:$A$40,0),MATCH($E50,Data!$B$3:$AF$3,0))","v":{"$error":"#N/A"}},null,0]
[null,"Additives/oxygenates","From Other Sources: Renewables","BALANCE","ADDITIVE","OSRENEW",{"$f":"OFFSET(Data!$A$3,MATCH($F51,Data!$A$4:$A$40,0),MATCH($E51,Data!$B$3:$AF$3,0))","v":{"$error":"#N/A"}},null,0,{"$f":"IF(AND(H51>0,H66=0),\"Please enter a corresponding value for Of which Biofuels\",\"\")","v":""}]
[null,"Additives/oxygenates","Backflows to Refineries","BALANCE","ADDITIVE","BACKFLOW"]
[null,"Additives/oxygenates","Products transferred","BALANCE","ADDITIVE","PTRANSF"]
[null,"Additives/oxygenates","Total Imports (Balance)","BALANCE","ADDITIVE","TOTIMPSB",{"$f":"OFFSET(Data!$A$3,MATCH($F54,Data!$A$4:$A$40,0),MATCH($E54,Data!$B$3:$AF$3,0))","v":{"$error":"#N/A"}},null,0]
[null,"Additives/oxygenates","Total Exports (Balance)","BALANCE","ADDITIVE","TOTEXPSB",{"$f":"OFFSET(Data!$A$3,MATCH($F55,Data!$A$4:$A$40,0),MATCH($E55,Data!$B$3:$AF$3,0))","v":{"$error":"#N/A"}},null,0]
[null,"Additives/oxygenates","Direct use","BALANCE","ADDITIVE","DIRECUSE",{"$f":"OFFSET(Data!$A$3,MATCH($F56,Data!$A$4:$A$40,0),MATCH($E56,Data!$B$3:$AF$3,0))","v":{"$error":"#N/A"}},null,0]
[null,"Additives/oxygenates","Stock Changes (National Territory)","BALANCE","ADDITIVE","STCHANAT",{"$f":"OFFSET(Data!$A$3,MATCH($F57,Data!$A$4:$A$40,0),MATCH($E57,Data!$B$3:$AF$3,0))","v":{"$error":"#N/A"}},null,0]
[null,"Additives/oxygenates","Refinery intake (Calculated)","BALANCE","ADDITIVE","REFINCAL",{"$f":"OFFSET(Data!$A$3,MATCH($F58,Data!$A$4:$A$40,0),MATCH($E58,Data!$B$3:$AF$3,0))","v":{"$error":"#N/A"}},{"$f":"H47+H48+H52+H53+H54-H55-H56+H57","v":0},0]
[null,"Additives/oxygenates","Statistical Differences","BALANCE","ADDITIVE","STATDIFF",{"$f":"OFFSET(Data!$A$3,MATCH($F59,Data!$A$4:$A$40,0),MATCH($E59,Data!$B$3:$AF$3,0))","v":{"$error":"#N/A"}},{"$f":"H58-H60","v":0},0]
[null,"Additives/oxygenates","Refinery intake (Observed)","BALANCE","ADDITIVE","REFINOBS",{"$f":"OFFSET(Data!$A$3,MATCH($F60,Data!$A$4:$A$40,0),MATCH($E60,Data!$B$3:$AF$3,0))","v":{"$error":"#N/A"}},null,0]
[null,"Additives/oxygenates","Refinery losses","BALANCE","ADDITIVE","REFLOSS",{"$f":"OFFSET(Data!$A$3,MATCH($F61,Data!$A$4:$A$40,0),MATCH($E61,Data!$B$3:$AF$3,0))","v":{"$error":"#N/A"}},null,0]
[null,"Of which Biofuels","Indigenous production","BALANCE","BIOFUELS","INDPROD"]
[null,"Of which Biofuels","From Other Sources","BALANCE","BIOFUELS","OSOURCES",{"$f":"OFFSET(Data!$A$3,MATCH($F63,Data!$A$4:$A$40,0),MATCH($E63,Data!$B$3:$AF$3,0))","v":{"$error":"#N/A"}},null,0,{"$f":"IF(H63>H48,\"Biofuels cannot be more than Additives/oxygenates.\",\"\")","v":""}]
[null,"Of which Biofuels","From Other Sources: Coal","BALANCE","BIOFUELS","OSCOAL"]
[null,"Of which Biofuels","From Other Sources: Natural gas","BALANCE","BIOFUELS","OSNATGAS"]
[null,"Of which Biofuels","From Other Sources: Renewables","BALANCE","BIOFUELS","OSRENEW",{"$f":"OFFSET(Data!$A$3,MATCH($F66,Data!$A$4:$A$40,0),MATCH($E66,Data!$B$3:$AF$3,0))","v":{"$error":"#N/A"}},null,0,{"$f":"IF(H66>H51,\"Biofuels cannot be more than Additives/oxygenates.\",\"\")","v":""}]
[null,"Of which Biofuels","Backflows to Refineries","BALANCE","BIOFUELS","BACKFLOW"]
[null,"Of which Biofuels","Products transferred","BALANCE","BIOFUELS","PTRANSF"]
[null,"Of which Biofuels","Total Imports (Balance)","BALANCE","BIOFUELS","TOTIMPSB"]
[null,"Of which Biofuels","Total Exports (Balance)","BALANCE","BIOFUELS","TOTEXPSB"]
[null,"Of which Biofuels","Direct use","BALANCE","BIOFUELS","DIRECUSE",{"$f":"OFFSET(Data!$A$3,MATCH($F71,Data!$A$4:$A$40,0),MATCH($E71,Data!$B$3:$AF$3,0))","v":{"$error":"#N/A"}},null,{"$f":"IF(H71=0,0,IF(G71=0,0,((H71/G71)-1)*100))","v":0},""]
[null,"Of which Biofuels","Stock Changes (National Territory)","BALANCE","BIOFUELS","STCHANAT",{"$f":"OFFSET(Data!$A$3,MATCH($F72,Data!$A$4:$A$40,0),MATCH($E72,Data!$B$3:$AF$3,0))","v":{"$error":"#N/A"}},null,0,{"$f":"IF(H72=0,\"\",\"Caution: Biofuel stocks are normally reported when the split between biogasoline/biodiesel/bio jet kerosene stocks is not available.\")","v":""}]
[null,"Of which Biofuels","Refinery intake (Calculated)","BALANCE","BIOFUELS","REFINCAL",{"$f":"OFFSET(Data!$A$3,MATCH($F73,Data!$A$4:$A$40,0),MATCH($E73,Data!$B$3:$AF$3,0))","v":{"$error":"#N/A"}},{"$f":"H62+H63+H67+H68+H69-H70-H71+H72","v":0},0]
[null,"Of which Biofuels","Statistical Differences","BALANCE","BIOFUELS","STATDIFF",{"$f":"OFFSET(Data!$A$3,MATCH($F74,Data!$A$4:$A$40,0),MATCH($E74,Data!$B$3:$AF$3,0))","v":{"$error":"#N/A"}},{"$f":"H73-H75","v":0},0]
[null,"Of which Biofuels","Refinery intake (Observed)","BALANCE","BIOFUELS","REFINOBS",{"$f":"OFFSET(Data!$A$3,MATCH($F75,Data!$A$4:$A$40,0),MATCH($E75,Data!$B$3:$AF$3,0))","v":{"$error":"#N/A"}},null,0,{"$f":"IF(H75=0,\"\",\"Caution: Biofuels are normally blended with fossil fuels and are not part of Refinery intake.\")","v":""}]
[null,"Of which Biofuels","Refinery losses","BALANCE","BIOFUELS","REFLOSS",{"$f":"OFFSET(Data!$A$3,MATCH($F76,Data!$A$4:$A$40,0),MATCH($E76,Data!$B$3:$AF$3,0))","v":{"$error":"#N/A"}},null,0]
[null,"Other hydrocarbons","Indigenous production","BALANCE","NONCRUDE","INDPROD",{"$f":"OFFSET(Data!$A$3,MATCH($F77,Data!$A$4:$A$40,0),MATCH($E77,Data!$B$3:$AF$3,0))","v":{"$error":"#N/A"}},null,0]
[null,"Other hydrocarbons","From Other Sources","BALANCE","NONCRUDE","OSOURCES",{"$f":"OFFSET(Data!$A$3,MATCH($F78,Data!$A$4:$A$40,0),MATCH($E78,Data!$B$3:$AF$3,0))","v":{"$error":"#N/A"}},null,0,{"$f":"IF(SUM(H79:H81)>H78,\"The sum of From Other Sources cannot be less than its parts.\",\"\")","v":""}]
[null,"Other hydrocarbons","From Other Sources: Coal","BALANCE","NONCRUDE","OSCOAL",{"$f":"OFFSET(Data!$A$3,MATCH($F79,Data!$A$4:$A$40,0),MATCH($E79,Data!$B$3:$AF$3,0))","v":{"$error":"#N/A"}},null,0]
[null,"Other hydrocarbons","From Other Sources: Natural gas","BALANCE","NONCRUDE","OSNATGAS",{"$f":"OFFSET(Data!$A$3,MATCH($F80,Data!$A$4:$A$40,0),MATCH($E80,Data!$B$3:$AF$3,0))","v":{"$error":"#N/A"}},null,0]
[null,"Other hydrocarbons","From Other Sources: Renewables","BALANCE","NONCRUDE","OSRENEW",{"$f":"OFFSET(Data!$A$3,MATCH($F81,Data!$A$4:$A$40,0),MATCH($E81,Data!$B$3:$AF$3,0))","v":{"$error":"#N/A"}},null,0]
[null,"Other hydrocarbons","Backflows to Refineries","BALANCE","NONCRUDE","BACKFLOW"]
[null,"Other hydrocarbons","Products transferred","BALANCE","NONCRUDE","PTRANSF"]
[null,"Other hydrocarbons","Total Imports (Balance)","BALANCE","NONCRUDE","TOTIMPSB",{"$f":"OFFSET(Data!$A$3,MATCH($F84,Data!$A$4:$A$40,0),MATCH($E84,Data!$B$3:$AF$3,0))","v":{"$error":"#N/A"}},null,0]
[null,"Other hydrocarbons","Total Exports (Balance)","BALANCE","NONCRUDE","TOTEXPSB",{"$f":"OFFSET(Data!$A$3,MATCH($F85,Data!$A$4:$A$40,0),MATCH($E85,Data!$B$3:$AF$3,0))","v":{"$error":"#N/A"}},null,0]
[null,"Other hydrocarbons","Direct use","BALANCE","NONCRUDE","DIRECUSE",{"$f":"OFFSET(Data!$A$3,MATCH($F86,Data!$A$4:$A$40,0),MATCH($E86,Data!$B$3:$AF$3,0))","v":{"$error":"#N/A"}},null,0]
[null,"Other hydrocarbons","Stock Changes (National Territory)","BALANCE","NONCRUDE","STCHANAT",{"$f":"OFFSET(Data!$A$3,MATCH($F87,Data!$A$4:$A$40,0),MATCH($E87,Data!$B$3:$AF$3,0))","v":{"$error":"#N/A"}},null,0]
[null,"Other hydrocarbons","Refinery intake (Calculated)","BALANCE","NONCRUDE","REFINCAL",{"$f":"OFFSET(Data!$A$3,MATCH($F88,Data!$A$4:$A$40,0),MATCH($E88,Data!$B$3:$AF$3,0))","v":{"$error":"#N/A"}},{"$f":"H77+H78+H82+H83+H84-H85-H86+H87","v":0},0]
[null,"Other hydrocarbons","Statistical Differences","BALANCE","NONCRUDE","STATDIFF",{"$f":"OFFSET(Data!$A$3,MATCH($F89,Data!$A$4:$A$40,0),MATCH($E89,Data!$B$3:$AF$3,0))","v":{"$error":"#N/A"}},{"$f":"H88-H90","v":0},0]
[null,"Other hydrocarbons","Refinery intake (Observed)","BALANCE","NONCRUDE","REFINOBS",{"$f":"OFFSET(Data!$A$3,MATCH($F90,Data!$A$4:$A$40,0),MATCH($E90,Data!$B$3:$AF$3,0))","v":{"$error":"#N/A"}},null,0]
[null,"Other hydrocarbons","Refinery losses","BALANCE","NONCRUDE","REFLOSS",{"$f":"OFFSET(Data!$A$3,MATCH($F91,Data!$A$4:$A$40,0),MATCH($E91,Data!$B$3:$AF$3,0))","v":{"$error":"#N/A"}},null,0]
[null,"CRNGFEED","Indigenous production","BALANCE","CRNGFEED","INDPROD",{"$f":"OFFSET(Data!$A$3,MATCH($F92,Data!$A$4:$A$40,0),MATCH($E92,Data!$B$3:$AF$3,0))","v":{"$error":"#N/A"}},{"$f":"H2+H17+H32+H47+H77","v":0},0]
[null,"CRNGFEED","From Other Sources","BALANCE","CRNGFEED","OSOURCES",{"$f":"OFFSET(Data!$A$3,MATCH($F93,Data!$A$4:$A$40,0),MATCH($E93,Data!$B$3:$AF$3,0))","v":{"$error":"#N/A"}},{"$f":"H3+H18+H33+H48+H78","v":0},0]
[null,"CRNGFEED","From Other Sources: Coal","BALANCE","CRNGFEED","OSCOAL",{"$f":"OFFSET(Data!$A$3,MATCH($F94,Data!$A$4:$A$40,0),MATCH($E94,Data!$B$3:$AF$3,0))","v":{"$error":"#N/A"}},{"$f":"H4+H19+H34+H49+H79","v":0},0]
[null,"CRNGFEED","From Other Sources: Natural gas","BALANCE","CRNGFEED","OSNATGAS",{"$f":"OFFSET(Data!$A$3,MATCH($F95,Data!$A$4:$A$40,0),MATCH($E95,Data!$B$3:$AF$3,0))","v":{"$error":"#N/A"}},0,0]
[null,"CRNGFEED","From Other Sources: Renewables","BALANCE","CRNGFEED","OSRENEW",{"$f":"OFFSET(Data!$A$3,MATCH($F96,Data!$A$4:$A$40,0),MATCH($E96,Data!$B$3:$AF$3,0))","v":{"$error":"#N/A"}},0,0]
[null,"CRNGFEED","Backflows to Refineries","BALANCE","CRNGFEED","BACKFLOW",{"$f":"OFFSET(Data!$A$3,MATCH($F97,Data!$A$4:$A$40,0),MATCH($E97,Data!$B$3:$AF$3,0))","v":{"$error":"#N/A"}},0,0]
[null,"CRNGFEED","Products transferred","BALANCE","CRNGFEED","PTRANSF",{"$f":"OFFSET(Data!$A$3,MATCH($F98,Data!$A$4:$A$40,0),MATCH($E98,Data!$B$3:$AF$3,0))","v":{"$error":"#N/A"}},0,0,{"$f":"IF(H98=H790,\"\",\"Total CRNGFEED Products transferred should equal Total products - Products transferred.\")","v":""}]
[null,"CRNGFEED","Total Imports (Balance)","BALANCE","CRNGFEED","TOTIMPSB",{"$f":"OFFSET(Data!$A$3,MATCH($F99,Data!$A$4:$A$40,0),MATCH($E99,Data!$B$3:$AF$3,0))","v":{"$error":"#N/A"}},0,0]
[null,"CRNGFEED","Total Exports (Balance)","BALANCE","CRNGFEED","TOTEXPSB",{"$f":"OFFSET(Data!$A$3,MATCH($F100,Data!$A$4:$A$40,0),MATCH($E100,Data!$B$3:$AF$3,0))","v":{"$error":"#N/A"}},0,0]
[null,"CRNGFEED","Direct use","BALANCE","CRNGFEED","DIRECUSE",{"$f":"OFFSET(Data!$A$3,MATCH($F101,Data!$A$4:$A$40,0),MATCH($E101,Data!$B$3:$AF$3,0))","v":{"$error":"#N/A"}},{"$f":"H11+H26+H41+H56+H86","v":0},0,{"$f":"IF(H101=H782,\"\",\"Total CRNGFEED Direct use must equal Total products Primary product receipts.\")","v":""}]
[null,"CRNGFEED","Stock Changes (National Territory)","BALANCE","CRNGFEED","STCHANAT",{"$f":"OFFSET(Data!$A$3,MATCH($F102,Data!$A$4:$A$40,0),MATCH($E102,Data!$B$3:$AF$3,0))","v":{"$error":"#N/A"}},0,0]
[null,"CRNGFEED","Refinery intake (Calculated)","BALANCE","CRNGFEED","REFINCAL",{"$f":"OFFSET(Data!$A$3,MATCH($F103,Data!$A$4:$A$40,0),MATCH($E103,Data!$B$3:$AF$3,0))","v":{"$error":"#N/A"}},{"$f":"H92+H93+H97+H98+H99-H100-H101+H102","v":0},0]
[null,"CRNGFEED","Statistical Differences","BALANCE","CRNGFEED","STATDIFF",{"$f":"OFFSET(Data!$A$3,MATCH($F104,Data!$A$4:$A$40,0),MATCH($E104,Data!$B$3:$AF$3,0))","v":{"$error":"#N/A"}},{"$f":"H103-H105","v":0},0]
[null,"CRNGFEED","Refinery intake (Observed)","BALANCE","CRNGFEED","REFINOBS",{"$f":"OFFSET(Data!$A$3,MATCH($F105,Data!$A$4:$A$40,0),MATCH($E105,Data!$B$3:$AF$3,0))","v":{"$error":"#N/A"}},{"$f":"H15+H30+H45+H60+H90","v":0},0]
[null,"CRNGFEED","Refinery losses","BALANCE","CRNGFEED","REFLOSS",{"$f":"OFFSET(Data!$A$3,MATCH($F106,Data!$A$4:$A$40,0),MATCH($E106,Data!$B$3:$AF$3,0))","v":{"$error":"#N/A"}},{"$f":"H16+H31+H46+H61+H91","v":0},0,{"$f":"IF(ROUND(H106,3)=ROUND(H105-H783,3),\"\",\"Total refinery losses should equal total CRNGFEED refinery intake (observed) minus total products refinery gross output.\")","v":""}]
[null,"Crude oil","Primary product receipts","BALANCE","CRUDEOIL","PPRECPTS",{"$f":"OFFSET(Data!$A$3,MATCH($F107,Data!$A$4:$A$40,0),MATCH($E107,Data!$B$3:$AF$3,0))","v":{"$error":"#N/A"}},null,0]
[null,"Crude oil","Refinery gross output","BALANCE","CRUDEOIL","REFGROUT"]
[null,"Crude oil","Recycled products","BALANCE","CRUDEOIL","RECYCLED"]
[null,"Crude oil","Refinery fuel","BALANCE","CRUDEOIL","REFFUEL"]
[null,"Crude oil","Total Imports (Balance)","BALANCE","CRUDEOIL","TOTIMPSB"]
[null,"Crude oil","Total Exports (Balance)","BALANCE","CRUDEOIL","TOTEXPSB"]
[null,"Crude oil","International marine bunkers","BALANCE","CRUDEOIL","BUNKERS"]
[null,"Crude oil","Interproduct transfers","BALANCE","CRUDEOIL","IPTRANSF",{"$f":"OFFSET(Data!$A$3,MATCH($F114,Data!$A$4:$A$40,0),MATCH($E114,Data!$B$3:$AF$3,0))","v":{"$error":"#N/A"}},null,0]
[null,"Crude oil","Products transferred","BALANCE","CRUDEOIL","PTRANSF"]
[null,"Crude oil","Stock Changes (National Territory)","BALANCE","CRUDEOIL","STCHANAT"]
[null,"Crude oil","Gross inland deliveries (Calculated)","BALANCE","CRUDEOIL","GDINCTRC",{"$f":"OFFSET(Data!$A$3,MATCH($F117,Data!$A$4:$A$40,0),MATCH($E117,Data!$B$3:$AF$3,0))","v":{"$error":"#N/A"}},{"$f":"H107+H108+H109-H110+H111-H112-H113+H114-H115+H116","v":0},0]
[null,"Crude oil","Statistical Differences",null,null,null,null,{"$f":"H117-H119","v":0},0]
[null,"Crude oil","Gross inland deliveries (Observed)","BALANCE","CRUDEOIL","GDINCTRO",{"$f":"OFFSET(Data!$A$3,MATCH($F119,Data!$A$4:$A$40,0),MATCH($E119,Data!$B$3:$AF$3,0))","v":{"$error":"#N/A"}},null,{"$f":"IF(H119=0,0,IF(G119=0,0,((H119/G119)-1)*100))","v":0},{"$f":"IF(OR(H120+H122+H123+H124=H119,H120+H122+H123+H125+H127=H119),\"\",\"Unless the breakdown are not available, the total gross inland deliveries (observed) must be equivalent to the sum of its parts.\")","v":""}]
[null,"Crude oil","Transformation sector","CONSUMPTION","CRUDEOIL","TOTTRANF",{"$f":"OFFSET(Data!$A$3,MATCH($F120,Data!$A$4:$A$40,0),MATCH($E120,Data!$B$3:$AF$3,0))","v":{"$error":"#N/A"}},null,0,{"$f":"IF(H121>H120,\"The Transformation sector demand cannot be less than its memo item.\",\"\")","v":""}]
[null,"Crude oil","of which input to electricity and heat generation","CONSUMPTION","CRUDEOIL","MTOELEHEAT",null,null,null,{"$f":"IF(H121>H120,\"This memo item cannot be more than the Transformation sector total.\",\"\")","v":""}]
[null,"Crude oil","Energy sector","CONSUMPTION","CRUDEOIL","TOTENGY",{"$f":"OFFSET(Data!$A$3,MATCH($F122,Data!$A$4:$A$40,0),MATCH($E122,Data!$B$3:$AF$3,0))","v":{"$error":"#N/A"}},null,0]
[null,"Crude oil","Distribution losses","CONSUMPTION","CRUDEOIL","DISTLOSS",{"$f":"OFFSET(Data!$A$3,MATCH($F123,Data!$A$4:$A$40,0),MATCH($E123,Data!$B$3:$AF$3,0))","v":{"$error":"#N/A"}},null,0,{"$f":"IF(H123<0,\"Distribution losses cannot be negative.\",\"\")","v":""}]
[null,"Crude oil","Total final consumption","CONSUMPTION","CRUDEOIL","FINCONS",{"$f":"OFFSET(Data!$A$3,MATCH($F124,Data!$A$4:$A$40,0),MATCH($E124,Data!$B$3:$AF$3,0))","v":{"$error":"#N/A"}},null,0,{"$f":"IF(H125+H127=H124,\"\",\"Unless the breakdown are not available, total final consumption must be equivalent to the sum of its final energy use and non-energy use parts.\")","v":""}]
[null,"Crude oil","Total final non-energy use consumption","CONSUMPTION","CRUDEOIL","NEFINCONS",{"$f":"OFFSET(Data!$A$3,MATCH($F125,Data!$A$4:$A$40,0),MATCH($E125,Data!$B$3:$AF$3,0))","v":{"$error":"#N/A"}},null,0]
[null,"Crude oil","Industry sector","CONSUMPTION","CRUDEOIL","NEIND",{"$f":"OFFSET(Data!$A$3,MATCH($F126,Data!$A$4:$A$40,0),MATCH($E126,Data!$B$3:$AF$3,0))","v":{"$error":"#N/A"}},null,{"$f":"ROUND(IF(H126=0,0,IF(G126=0,0,((H126/G126)-1)*100)),3)","v":0},{"$f":"IF(H126>H125,\"Consumption in the Industry sector cannot be greater than the Total final non-energy use.\",\"\")","v":""}]
[null,"Crude oil","Total final energy consumption","CONSUMPTION","CRUDEOIL","EFINCONS",{"$f":"OFFSET(Data!$A$3,MATCH($F127,Data!$A$4:$A$40,0),MATCH($E127,Data!$B$3:$AF$3,0))","v":{"$error":"#N/A"}},null,0,{"$f":"IF(H128+H130+H131=H127,\"\",\"Unless the breakdown are not available, the total final energy consumption must be equivalent to the sum of its parts.\")","v":""}]
[null,"Crude oil","Transport sector","CONSUMPTION","CRUDEOIL","ETRANS",{"$f":"OFFSET(Data!$A$3,MATCH($F128,Data!$A$4:$A$40,0),MATCH($E128,Data!$B$3:$AF$3,0))","v":{"$error":"#N/A"}},null,0]
[null,"Crude oil","of which International aviation","CONSUMPTION","CRUDEOIL","EINTLAIR",{"$f":"OFFSET(Data!$A$3,MATCH($F129,Data!$A$4:$A$40,0),MATCH($E129,Data!$B$3:$AF$3,0))","v":{"$error":"#N/A"}},null,{"$f":"ROUND(IF(H129=0,0,IF(G129=0,0,((H129/G129)-1)*100)),3)","v":0},{"$f":"IF(H129>H128,\"Deliveries for International aviation cannot be greater than the total energy use in the Transport sector.\",\"\")","v":""}]
[null,"Crude oil","Industry sector","CONSUMPTION","CRUDEOIL","EIND",{"$f":"OFFSET(Data!$A$3,MATCH($F130,Data!$A$4:$A$40,0),MATCH($E130,Data!$B$3:$AF$3,0))","v":{"$error":"#N/A"}},null,0]
[null,"Crude oil","Other sectors","CONSUMPTION","CRUDEOIL","EOTHER",{"$f":"OFFSET(Data!$A$3,MATCH($F131,Data!$A$4:$A$40,0),MATCH($E131,Data!$B$3:$AF$3,0))","v":{"$error":"#N/A"}},null,0,{"$f":"IF(OR(SUM(H132:H133)=H131,SUM(H132:H133)<H131),\"\",\"The total consumption in Other sectors must not be less than the sum of its parts if reported.\")","v":""}]
[null,"Crude oil","of which Residential","CONSUMPTION","CRUDEOIL","ERESIDENT",{"$f":"OFFSET(Data!$A$3,MATCH($F132,Data!$A$4:$A$40,0),MATCH($E132,Data!$B$3:$AF$3,0))","v":{"$error":"#N/A"}},null,0]
[null,"Crude oil","of which Commercial/public services","CONSUMPTION","CRUDEOIL","ECOMMPUB",{"$f":"OFFSET(Data!$A$3,MATCH($F133,Data!$A$4:$A$40,0),MATCH($E133,Data!$B$3:$AF$3,0))","v":{"$error":"#N/A"}},null,0]
[null,"Natural gas liquids","Primary product receipts","BALANCE","NGL","PPRECPTS",{"$f":"OFFSET(Data!$A$3,MATCH($F134,Data!$A$4:$A$40,0),MATCH($E134,Data!$B$3:$AF$3,0))","v":{"$error":"#N/A"}},null,{"$f":"IF(H134=0,0,IF(G134=0,0,((H134/G134)-1)*100))","v":0}]
[null,"Natural gas liquids","Refinery gross output","BALANCE","NGL","REFGROUT"]
[null,"Natural gas liquids","Recycled products","BALANCE","NGL","RECYCLED"]
[null,"Natural gas liquids","Refinery fuel","BALANCE","NGL","REFFUEL"]
[null,"Natural gas liquids","Total Imports (Balance)","BALANCE","NGL","TOTIMPSB"]
[null,"Natural gas liquids","Total Exports (Balance)","BALANCE","NGL","TOTEXPSB"]
[null,"Natural gas liquids","International marine bunkers","BALANCE","NGL","BUNKERS"]
[null,"Natural gas liquids","Interproduct transfers","BALANCE","NGL","IPTRANSF",{"$f":"OFFSET(Data!$A$3,MATCH($F141,Data!$A$4:$A$40,0),MATCH($E141,Data!$B$3:$AF$3,0))","v":{"$error":"#N/A"}},null,0]
[null,"Natural gas liquids","Products transferred","BALANCE","NGL","PTRANSF"]
[null,"Natural gas liquids","Stock Changes (National Territory)","BALANCE","NGL","STCHANAT"]
[null,"Natural gas liquids","Gross inland deliveries (Calculated)","BALANCE","NGL","GDINCTRC",{"$f":"OFFSET(Data!$A$3,MATCH($F144,Data!$A$4:$A$40,0),MATCH($E144,Data!$B$3:$AF$3,0))","v":{"$error":"#N/A"}},{"$f":"H134+H135+H136-H137+H138-H139-H140+H141-H142+H143","v":0},0]
[null,"Natural gas liquids","Statistical Differences",null,null,null,null,{"$f":"H144-H146","v":0},0]
[null,"Natural gas liquids","Gross inland deliveries (Observed)","BALANCE","NGL","GDINCTRO",{"$f":"OFFSET(Data!$A$3,MATCH($F146,Data!$A$4:$A$40,0),MATCH($E146,Data!$B$3:$AF$3,0))","v":{"$error":"#N/A"}},null,0,{"$f":"IF(OR(H147+H149+H150+H151=H146,H147+H149+H150+H152+H154=H146),\"\",\"Unless the breakdown are not available, the total gross inland deliveries (observed) must be equivalent to the sum of its parts.\")","v":""}]
[null,"Natural gas liquids","Transformation sector","CONSUMPTION","NGL","TOTTRANF",{"$f":"OFFSET(Data!$A$3,MATCH($F147,Data!$A$4:$A$40,0),MATCH($E147,Data!$B$3:$AF$3,0))","v":{"$error":"#N/A"}},null,0,{"$f":"IF(H148>H147,\"The Transformation sector demand cannot be less than its memo item.\",\"\")","v":""}]
[null,"Natural gas liquids","of which input to electricity and heat generation","CONSUMPTION","NGL","MTOELEHEAT",null,null,null,{"$f":"IF(H148>H147,\"This memo item cannot be more than the Transformation sector total.\",\"\")","v":""}]
[null,"Natural gas liquids","Energy sector","CONSUMPTION","NGL","TOTENGY",{"$f":"OFFSET(Data!$A$3,MATCH($F149,Data!$A$4:$A$40,0),MATCH($E149,Data!$B$3:$AF$3,0))","v":{"$error":"#N/A"}},null,0]
[null,"Natural gas liquids","Distribution losses","CONSUMPTION","NGL","DISTLOSS",{"$f":"OFFSET(Data!$A$3,MATCH($F150,Data!$A$4:$A$40,0),MATCH($E150,Data!$B$3:$AF$3,0))","v":{"$error":"#N/A"}},null,0,{"$f":"IF(H150<0,\"Distribution losses cannot be negative.\",\"\")","v":""}]
[null,"Natural gas liquids","Total final consumption","CONSUMPTION","NGL","FINCONS",{"$f":"OFFSET(Data!$A$3,MATCH($F151,Data!$A$4:$A$40,0),MATCH($E151,Data!$B$3:$AF$3,0))","v":{"$error":"#N/A"}},null,0,{"$f":"IF(H152+H154=H151,\"\",\"Unless the breakdown are not available, total final consumption must be equivalent to the sum of its final energy use and non-energy use parts.\")","v":""}]
[null,"Natural gas liquids","Total final non-energy use consumption","CONSUMPTION","NGL","NEFINCONS",{"$f":"OFFSET(Data!$A$3,MATCH($F152,Data!$A$4:$A$40,0),MATCH($E152,Data!$B$3:$AF$3,0))","v":{"$error":"#N/A"}},null,0]
[null,"Natural gas liquids","Industry sector","CONSUMPTION","NGL","NEIND",{"$f":"OFFSET(Data!$A$3,MATCH($F153,Data!$A$4:$A$40,0),MATCH($E153,Data!$B$3:$AF$3,0))","v":{"$error":"#N/A"}},null,{"$f":"ROUND(IF(H153=0,0,IF(G153=0,0,((H153/G153)-1)*100)),3)","v":0},{"$f":"IF(H153>H152,\"Consumption in the Industry sector cannot be greater than the Total final non-energy use.\",\"\")","v":""}]
[null,"Natural gas liquids","Total final energy consumption","CONSUMPTION","NGL","EFINCONS",{"$f":"OFFSET(Data!$A$3,MATCH($F154,Data!$A$4:$A$40,0),MATCH($E154,Data!$B$3:$AF$3,0))","v":{"$error":"#N/A"}},null,{"$f":"ROUND(IF(H154=0,0,IF(G154=0,0,((H154/G154)-1)*100)),3)","v":0},{"$f":"IF(H155+H157+H158=H154,\"\",\"Unless the breakdown are not available, the total final energy consumption must be equivalent to the sum of its parts.\")","v":""}]
[null,"Natural gas liquids","Transport sector","CONSUMPTION","NGL","ETRANS",{"$f":"OFFSET(Data!$A$3,MATCH($F155,Data!$A$4:$A$40,0),MATCH($E155,Data!$B$3:$AF$3,0))","v":{"$error":"#N/A"}},null,{"$f":"ROUND(IF(H155=0,0,IF(G155=0,0,((H155/G155)-1)*100)),3)","v":0}]
[null,"Natural gas liquids","of which International aviation","CONSUMPTION","NGL","EINTLAIR",{"$f":"OFFSET(Data!$A$3,MATCH($F156,Data!$A$4:$A$40,0),MATCH($E156,Data!$B$3:$AF$3,0))","v":{"$error":"#N/A"}},null,{"$f":"ROUND(IF(H156=0,0,IF(G156=0,0,((H156/G156)-1)*100)),3)","v":0},{"$f":"IF(H156>H155,\"Deliveries for International aviation cannot be greater than the total energy use in the Transport sector.\",\"\")","v":""}]
[null,"Natural gas liquids","Industry sector","CONSUMPTION","NGL","EIND",{"$f":"OFFSET(Data!$A$3,MATCH($F157,Data!$A$4:$A$40,0),MATCH($E157,Data!$B$3:$AF$3,0))","v":{"$error":"#N/A"}},null,{"$f":"ROUND(IF(H157=0,0,IF(G157=0,0,((H157/G157)-1)*100)),3)","v":0}]
[null,"Natural gas liquids","Other sectors","CONSUMPTION","NGL","EOTHER",{"$f":"OFFSET(Data!$A$3,MATCH($F158,Data!$A$4:$A$40,0),MATCH($E158,Data!$B$3:$AF$3,0))","v":{"$error":"#N/A"}},null,0,{"$f":"IF(OR(SUM(H159:H160)=H158,SUM(H159:H160)<H158),\"\",\"The total consumption in Other sectors must not be less than the sum of its parts if reported.\")","v":""}]
[null,"Natural gas liquids","of which Residential","CONSUMPTION","NGL","ERESIDENT",{"$f":"OFFSET(Data!$A$3,MATCH($F159,Data!$A$4:$A$40,0),MATCH($E159,Data!$B$3:$AF$3,0))","v":{"$error":"#N/A"}},null,0]
[null,"Natural gas liquids","of which Commercial/public services","CONSUMPTION","NGL","ECOMMPUB",{"$f":"OFFSET(Data!$A$3,MATCH($F160,Data!$A$4:$A$40,0),MATCH($E160,Data!$B$3:$AF$3,0))","v":{"$error":"#N/A"}},null,0]
[null,"Refinery gas","Primary product receipts","BALANCE","REFINGAS","PPRECPTS",{"$f":"OFFSET(Data!$A$3,MATCH($F161,Data!$A$4:$A$40,0),MATCH($E161,Data!$B$3:$AF$3,0))","v":{"$error":"#N/A"}},null,0]
[null,"Refinery gas","Refinery gross output","BALANCE","REFINGAS","REFGROUT",{"$f":"OFFSET(Data!$A$3,MATCH($F162,Data!$A$4:$A$40,0),MATCH($E162,Data!$B$3:$AF$3,0))","v":{"$error":"#N/A"}},null,0]
[null,"Refinery gas","Recycled products","BALANCE","REFINGAS","RECYCLED",{"$f":"OFFSET(Data!$A$3,MATCH($F163,Data!$A$4:$A$40,0),MATCH($E163,Data!$B$3:$AF$3,0))","v":{"$error":"#N/A"}},null,0]
[null,"Refinery gas","Refinery fuel","BALANCE","REFINGAS","REFFUEL",{"$f":"OFFSET(Data!$A$3,MATCH($F164,Data!$A$4:$A$40,0),MATCH($E164,Data!$B$3:$AF$3,0))","v":{"$error":"#N/A"}},null,0]
[null,"Refinery gas","Total Imports (Balance)","BALANCE","REFINGAS","TOTIMPSB"]
[null,"Refinery gas","Total Exports (Balance)","BALANCE","REFINGAS","TOTEXPSB"]
[null,"Refinery gas","International marine bunkers","BALANCE","REFINGAS","BUNKERS",{"$f":"OFFSET(Data!$A$3,MATCH($F167,Data!$A$4:$A$40,0),MATCH($E167,Data!$B$3:$AF$3,0))","v":{"$error":"#N/A"}},null,0]
[null,"Refinery gas","Interproduct transfers","BALANCE","REFINGAS","IPTRANSF",{"$f":"OFFSET(Data!$A$3,MATCH($F168,Data!$A$4:$A$40,0),MATCH($E168,Data!$B$3:$AF$3,0))","v":{"$error":"#N/A"}},null,0]
[null,"Refinery gas","Products transferred","BALANCE","REFINGAS","PTRANSF",{"$f":"OFFSET(Data!$A$3,MATCH($F169,Data!$A$4:$A$40,0),MATCH($E169,Data!$B$3:$AF$3,0))","v":{"$error":"#N/A"}},null,0]
[null,"Refinery gas","Stock Changes (National Territory)","BALANCE","REFINGAS","STCHANAT",{"$f":"OFFSET(Data!$A$3,MATCH($F170,Data!$A$4:$A$40,0),MATCH($E170,Data!$B$3:$AF$3,0))","v":{"$error":"#N/A"}},null,0]
[null,"Refinery gas","Gross inland deliveries (Calculated)","BALANCE","REFINGAS","GDINCTRC",{"$f":"OFFSET(Data!$A$3,MATCH($F171,Data!$A$4:$A$40,0),MATCH($E171,Data!$B$3:$AF$3,0))","v":{"$error":"#N/A"}},{"$f":"H161+H162+H163-H164+H165-H166-H167+H168-H169+H170","v":0},0]
[null,"Refinery gas","Statistical Differences","BALANCE","REFINGAS","STATDIFF",{"$f":"OFFSET(Data!$A$3,MATCH($F172,Data!$A$4:$A$40,0),MATCH($E172,Data!$B$3:$AF$3,0))","v":{"$error":"#N/A"}},{"$f":"H171-H173","v":0},0]
[null,"Refinery gas","Gross inland deliveries (Observed)","BALANCE","REFINGAS","GDINCTRO",{"$f":"OFFSET(Data!$A$3,MATCH($F173,Data!$A$4:$A$40,0),MATCH($E173,Data!$B$3:$AF$3,0))","v":{"$error":"#N/A"}},null,{"$f":"IF(H173=0,0,IF(G173=0,0,((H173/G173)-1)*100))","v":0},{"$f":"IF(OR(H174+H176+H177+H178=H173,H174+H176+H177+H179+H181=H173),\"\",\"Unless the breakdown are not available, the total gross inland deliveries (observed) must be equivalent to the sum of its parts.\")","v":""}]
[null,"Refinery gas","Transformation sector","CONSUMPTION","REFINGAS","TOTTRANF",{"$f":"OFFSET(Data!$A$3,MATCH($F174,Data!$A$4:$A$40,0),MATCH($E174,Data!$B$3:$AF$3,0))","v":{"$error":"#N/A"}},null,0,{"$f":"IF(H175>H174,\"The Transformation sector demand cannot be less than its memo item.\",\"\")","v":""}]
[null,"Refinery gas","of which input to electricity and heat generation","CONSUMPTION","REFINGAS","MTOELEHEAT",null,null,null,{"$f":"IF(H175>H174,\"This memo item cannot be more than the Transformation sector total.\",\"\")","v":""}]
[null,"Refinery gas","Energy sector","CONSUMPTION","REFINGAS","TOTENGY",{"$f":"OFFSET(Data!$A$3,MATCH($F176,Data!$A$4:$A$40,0),MATCH($E176,Data!$B$3:$AF$3,0))","v":{"$error":"#N/A"}},null,{"$f":"IF(H176=0,0,IF(G176=0,0,((H176/G176)-1)*100))","v":0}]
[null,"Refinery gas","Distribution losses","CONSUMPTION","REFINGAS","DISTLOSS",{"$f":"OFFSET(Data!$A$3,MATCH($F177,Data!$A$4:$A$40,0),MATCH($E177,Data!$B$3:$AF$3,0))","v":{"$error":"#N/A"}},null,0,{"$f":"IF(H177<0,\"Distribution losses cannot be negative.\",\"\")","v":""}]
[null,"Refinery gas","Total final consumption","CONSUMPTION","REFINGAS","FINCONS",{"$f":"OFFSET(Data!$A$3,MATCH($F178,Data!$A$4:$A$40,0),MATCH($E178,Data!$B$3:$AF$3,0))","v":{"$error":"#N/A"}},null,0,{"$f":"IF(H179+H181=H178,\"\",\"Unless the breakdown are not available, total final consumption must be equivalent to the sum of its final energy use and non-energy use parts.\")","v":""}]
[null,"Refinery gas","Total final non-energy use consumption","CONSUMPTION","REFINGAS","NEFINCONS",{"$f":"OFFSET(Data!$A$3,MATCH($F179,Data!$A$4:$A$40,0),MATCH($E179,Data!$B$3:$AF$3,0))","v":{"$error":"#N/A"}},null,{"$f":"ROUND(IF(H179=0,0,IF(G179=0,0,((H179/G179)-1)*100)),3)","v":0}]
[null,"Refinery gas","Industry sector","CONSUMPTION","REFINGAS","NEIND",{"$f":"OFFSET(Data!$A$3,MATCH($F180,Data!$A$4:$A$40,0),MATCH($E180,Data!$B$3:$AF$3,0))","v":{"$error":"#N/A"}},null,0,{"$f":"IF(H180>H179,\"Consumption in the Industry sector cannot be greater than the Total final non-energy use.\",\"\")","v":""}]
[null,"Refinery gas","Total final energy consumption","CONSUMPTION","REFINGAS","EFINCONS",{"$f":"OFFSET(Data!$A$3,MATCH($F181,Data!$A$4:$A$40,0),MATCH($E181,Data!$B$3:$AF$3,0))","v":{"$error":"#N/A"}},null,0,{"$f":"IF(H182+H184+H185=H181,\"\",\"Unless the breakdown are not available, the total final energy consumption must be equivalent to the sum of its parts.\")","v":""}]
[null,"Refinery gas","Transport sector","CONSUMPTION","REFINGAS","ETRANS",{"$f":"OFFSET(Data!$A$3,MATCH($F182,Data!$A$4:$A$40,0),MATCH($E182,Data!$B$3:$AF$3,0))","v":{"$error":"#N/A"}},null,0]
[null,"Refinery gas","of which International aviation","CONSUMPTION","REFINGAS","EINTLAIR",{"$f":"OFFSET(Data!$A$3,MATCH($F183,Data!$A$4:$A$40,0),MATCH($E183,Data!$B$3:$AF$3,0))","v":{"$error":"#N/A"}},null,0,{"$f":"IF(H183>H182,\"Deliveries for International aviation cannot be greater than the total energy use in the Transport sector.\",\"\")","v":""}]
[null,"Refinery gas","Industry sector","CONSUMPTION","REFINGAS","EIND",{"$f":"OFFSET(Data!$A$3,MATCH($F184,Data!$A$4:$A$40,0),MATCH($E184,Data!$B$3:$AF$3,0))","v":{"$error":"#N/A"}},null,0]
[null,"Refinery gas","Other sectors","CONSUMPTION","REFINGAS","EOTHER",{"$f":"OFFSET(Data!$A$3,MATCH($F185,Data!$A$4:$A$40,0),MATCH($E185,Data!$B$3:$AF$3,0))","v":{"$error":"#N/A"}},null,0,{"$f":"IF(OR(SUM(H186:H187)=H185,SUM(H186:H187)<H185),\"\",\"The total consumption in Other sectors must not be less than the sum of its parts if reported.\")","v":""}]
[null,"Refinery gas","of which Residential","CONSUMPTION","REFINGAS","ERESIDENT",{"$f":"OFFSET(Data!$A$3,MATCH($F186,Data!$A$4:$A$40,0),MATCH($E186,Data!$B$3:$AF$3,0))","v":{"$error":"#N/A"}},null,0]
[null,"Refinery gas","of which Commercial/public services","CONSUMPTION","REFINGAS","ECOMMPUB",{"$f":"OFFSET(Data!$A$3,MATCH($F187,Data!$A$4:$A$40,0),MATCH($E187,Data!$B$3:$AF$3,0))","v":{"$error":"#N/A"}},null,0]
[null,"Ethane","Primary product receipts","BALANCE","ETHANE","PPRECPTS",{"$f":"OFFSET(Data!$A$3,MATCH($F188,Data!$A$4:$A$40,0),MATCH($E188,Data!$B$3:$AF$3,0))","v":{"$error":"#N/A"}},null,0]
[null,"Ethane","Refinery gross output","BALANCE","ETHANE","REFGROUT",{"$f":"OFFSET(Data!$A$3,MATCH($F189,Data!$A$4:$A$40,0),MATCH($E189,Data!$B$3:$AF$3,0))","v":{"$error":"#N/A"}},null,0]
[null,"Ethane","Recycled products","BALANCE","ETHANE","RECYCLED",{"$f":"OFFSET(Data!$A$3,MATCH($F190,Data!$A$4:$A$40,0),MATCH($E190,Data!$B$3:$AF$3,0))","v":{"$error":"#N/A"}},null,0]
[null,"Ethane","Refinery fuel","BALANCE","ETHANE","REFFUEL",{"$f":"OFFSET(Data!$A$3,MATCH($F191,Data!$A$4:$A$40,0),MATCH($E191,Data!$B$3:$AF$3,0))","v":{"$error":"#N/A"}},null,0]
[null,"Ethane","Total Imports (Balance)","BALANCE","ETHANE","TOTIMPSB",{"$f":"OFFSET(Data!$A$3,MATCH($F192,Data!$A$4:$A$40,0),MATCH($E192,Data!$B$3:$AF$3,0))","v":{"$error":"#N/A"}},null,0]
[null,"Ethane","Total Exports (Balance)","BALANCE","ETHANE","TOTEXPSB",{"$f":"OFFSET(Data!$A$3,MATCH($F193,Data!$A$4:$A$40,0),MATCH($E193,Data!$B$3:$AF$3,0))","v":{"$error":"#N/A"}},null,0]
[null,"Ethane","International marine bunkers","BALANCE","ETHANE","BUNKERS",{"$f":"OFFSET(Data!$A$3,MATCH($F194,Data!$A$4:$A$40,0),MATCH($E194,Data!$B$3:$AF$3,0))","v":{"$error":"#N/A"}},null,0]
[null,"Ethane","Interproduct transfers","BALANCE","ETHANE","IPTRANSF",{"$f":"OFFSET(Data!$A$3,MATCH($F195,Data!$A$4:$A$40,0),MATCH($E195,Data!$B$3:$AF$3,0))","v":{"$error":"#N/A"}},null,0]
[null,"Ethane","Products transferred","BALANCE","ETHANE","PTRANSF",{"$f":"OFFSET(Data!$A$3,MATCH($F196,Data!$A$4:$A$40,0),MATCH($E196,Data!$B$3:$AF$3,0))","v":{"$error":"#N/A"}},null,0]
[null,"Ethane","Stock Changes (National Territory)","BALANCE","ETHANE","STCHANAT",{"$f":"OFFSET(Data!$A$3,MATCH($F197,Data!$A$4:$A$40,0),MATCH($E197,Data!$B$3:$AF$3,0))","v":{"$error":"#N/A"}},null,0]
[null,"Ethane","Gross inland deliveries (Calculated)","BALANCE","ETHANE","GDINCTRC",{"$f":"OFFSET(Data!$A$3,MATCH($F198,Data!$A$4:$A$40,0),MATCH($E198,Data!$B$3:$AF$3,0))","v":{"$error":"#N/A"}},{"$f":"H188+H189+H190-H191+H192-H193-H194+H195-H196+H197","v":0},0]
[null,"Ethane","Statistical Differences","BALANCE","ETHANE","STATDIFF",{"$f":"OFFSET(Data!$A$3,MATCH($F199,Data!$A$4:$A$40,0),MATCH($E199,Data!$B$3:$AF$3,0))","v":{"$error":"#N/A"}},{"$f":"H198-H200","v":0},0]
[null,"Ethane","Gross inland deliveries (Observed)","BALANCE","ETHANE","GDINCTRO",{"$f":"OFFSET(Data!$A$3,MATCH($F200,Data!$A$4:$A$40,0),MATCH($E200,Data!$B$3:$AF$3,0))","v":{"$error":"#N/A"}},null,{"$f":"IF(H200=0,0,IF(G200=0,0,((H200/G200)-1)*100))","v":0},{"$f":"IF(OR(H201+H203+H204+H205=H200,H201+H203+H204+H206+H208=H200),\"\",\"Unless the breakdown are not available, the total gross inland deliveries (observed) must be equivalent to the sum of its parts.\")","v":""}]
[null,"Ethane","Transformation sector","CONSUMPTION","ETHANE","TOTTRANF",{"$f":"OFFSET(Data!$A$3,MATCH($F201,Data!$A$4:$A$40,0),MATCH($E201,Data!$B$3:$AF$3,0))","v":{"$error":"#N/A"}},null,0,{"$f":"IF(H202>H201,\"The Transformation sector demand cannot be less than its memo item.\",\"\")","v":""}]
[null,"Ethane","of which input to electricity and heat generation","CONSUMPTION","ETHANE","MTOELEHEAT",null,null,null,{"$f":"IF(H202>H201,\"This memo item cannot be more than the Transformation sector total.\",\"\")","v":""}]
[null,"Ethane","Energy sector","CONSUMPTION","ETHANE","TOTENGY",{"$f":"OFFSET(Data!$A$3,MATCH($F203,Data!$A$4:$A$40,0),MATCH($E203,Data!$B$3:$AF$3,0))","v":{"$error":"#N/A"}},null,{"$f":"IF(H203=0,0,IF(G203=0,0,((H203/G203)-1)*100))","v":0}]
[null,"Ethane","Distribution losses","CONSUMPTION","ETHANE","DISTLOSS",{"$f":"OFFSET(Data!$A$3,MATCH($F204,Data!$A$4:$A$40,0),MATCH($E204,Data!$B$3:$AF$3,0))","v":{"$error":"#N/A"}},null,0,{"$f":"IF(H204<0,\"Distribution losses cannot be negative.\",\"\")","v":""}]
[null,"Ethane","Total final consumption","CONSUMPTION","ETHANE","FINCONS",{"$f":"OFFSET(Data!$A$3,MATCH($F205,Data!$A$4:$A$40,0),MATCH($E205,Data!$B$3:$AF$3,0))","v":{"$error":"#N/A"}},null,0,{"$f":"IF(H206+H208=H205,\"\",\"Unless the breakdown are not available, total final consumption must be equivalent to the sum of its final energy use and non-energy use parts.\")","v":""}]
[null,"Ethane","Total final non-energy use consumption","CONSUMPTION","ETHANE","NEFINCONS",{"$f":"OFFSET(Data!$A$3,MATCH($F206,Data!$A$4:$A$40,0),MATCH($E206,Data!$B$3:$AF$3,0))","v":{"$error":"#N/A"}},null,0]
[null,"Ethane","Industry sector","CONSUMPTION","ETHANE","NEIND",{"$f":"OFFSET(Data!$A$3,MATCH($F207,Data!$A$4:$A$40,0),MATCH($E207,Data!$B$3:$AF$3,0))","v":{"$error":"#N/A"}},null,{"$f":"ROUND(IF(H207=0,0,IF(G207=0,0,((H207/G207)-1)*100)),3)","v":0},{"$f":"IF(H207>H206,\"Consumption in the Industry sector cannot be greater than the Total final non-energy use.\",\"\")","v":""}]
[null,"Ethane","Total final energy consumption","CONSUMPTION","ETHANE","EFINCONS",{"$f":"OFFSET(Data!$A$3,MATCH($F208,Data!$A$4:$A$40,0),MATCH($E208,Data!$B$3:$AF$3,0))","v":{"$error":"#N/A"}},null,{"$f":"ROUND(IF(H208=0,0,IF(G208=0,0,((H208/G208)-1)*100)),3)","v":0},{"$f":"IF(H209+H211+H212=H208,\"\",\"Unless the breakdown are not available, the total final energy consumption must be equivalent to the sum of its parts.\")","v":""}]
[null,"Ethane","Transport sector","CONSUMPTION","ETHANE","ETRANS",{"$f":"OFFSET(Data!$A$3,MATCH($F209,Data!$A$4:$A$40,0),MATCH($E209,Data!$B$3:$AF$3,0))","v":{"$error":"#N/A"}},null,{"$f":"ROUND(IF(H209=0,0,IF(G209=0,0,((H209/G209)-1)*100)),3)","v":0}]
[null,"Ethane","of which International aviation","CONSUMPTION","ETHANE","EINTLAIR",{"$f":"OFFSET(Data!$A$3,MATCH($F210,Data!$A$4:$A$40,0),MATCH($E210,Data!$B$3:$AF$3,0))","v":{"$error":"#N/A"}},null,{"$f":"ROUND(IF(H210=0,0,IF(G210=0,0,((H210/G210)-1)*100)),3)","v":0},{"$f":"IF(H210>H209,\"Deliveries for International aviation cannot be greater than the total energy use in the Transport sector.\",\"\")","v":""}]
[null,"Ethane","Industry sector","CONSUMPTION","ETHANE","EIND",{"$f":"OFFSET(Data!$A$3,MATCH($F211,Data!$A$4:$A$40,0),MATCH($E211,Data!$B$3:$AF$3,0))","v":{"$error":"#N/A"}},null,{"$f":"ROUND(IF(H211=0,0,IF(G211=0,0,((H211/G211)-1)*100)),3)","v":0}]
[null,"Ethane","Other sectors","CONSUMPTION","ETHANE","EOTHER",{"$f":"OFFSET(Data!$A$3,MATCH($F212,Data!$A$4:$A$40,0),MATCH($E212,Data!$B$3:$AF$3,0))","v":{"$error":"#N/A"}},null,0,{"$f":"IF(OR(SUM(H213:H214)=H212,SUM(H213:H214)<H212),\"\",\"The total consumption in Other sectors must not be less than the sum of its parts if reported.\")","v":""}]
[null,"Ethane","of which Residential","CONSUMPTION","ETHANE","ERESIDENT",{"$f":"OFFSET(Data!$A$3,MATCH($F213,Data!$A$4:$A$40,0),MATCH($E213,Data!$B$3:$AF$3,0))","v":{"$error":"#N/A"}},null,0]
[null,"Ethane","of which Commercial/public services","CONSUMPTION","ETHANE","ECOMMPUB",{"$f":"OFFSET(Data!$A$3,MATCH($F214,Data!$A$4:$A$40,0),MATCH($E214,Data!$B$3:$AF$3,0))","v":{"$error":"#N/A"}},null,0]
[null,"LPG","Primary product receipts","BALANCE","LPG","PPRECPTS",{"$f":"OFFSET(Data!$A$3,MATCH($F215,Data!$A$4:$A$40,0),MATCH($E215,Data!$B$3:$AF$3,0))","v":{"$error":"#N/A"}},null,{"$f":"IF(H215=0,0,IF(G215=0,0,((H215/G215)-1)*100))","v":0}]
[null,"LPG","Refinery gross output","BALANCE","LPG","REFGROUT",{"$f":"OFFSET(Data!$A$3,MATCH($F216,Data!$A$4:$A$40,0),MATCH($E216,Data!$B$3:$AF$3,0))","v":{"$error":"#N/A"}},null,0]
[null,"LPG","Recycled products","BALANCE","LPG","RECYCLED",{"$f":"OFFSET(Data!$A$3,MATCH($F217,Data!$A$4:$A$40,0),MATCH($E217,Data!$B$3:$AF$3,0))","v":{"$error":"#N/A"}},null,0]
[null,"LPG","Refinery fuel","BALANCE","LPG","REFFUEL",{"$f":"OFFSET(Data!$A$3,MATCH($F218,Data!$A$4:$A$40,0),MATCH($E218,Data!$B$3:$AF$3,0))","v":{"$error":"#N/A"}},null,0]
[null,"LPG","Total Imports (Balance)","BALANCE","LPG","TOTIMPSB",{"$f":"OFFSET(Data!$A$3,MATCH($F219,Data!$A$4:$A$40,0),MATCH($E219,Data!$B$3:$AF$3,0))","v":{"$error":"#N/A"}},null,0]
[null,"LPG","Total Exports (Balance)","BALANCE","LPG","TOTEXPSB",{"$f":"OFFSET(Data!$A$3,MATCH($F220,Data!$A$4:$A$40,0),MATCH($E220,Data!$B$3:$AF$3,0))","v":{"$error":"#N/A"}},null,0]
[null,"LPG","International marine bunkers","BALANCE","LPG","BUNKERS",{"$f":"OFFSET(Data!$A$3,MATCH($F221,Data!$A$4:$A$40,0),MATCH($E221,Data!$B$3:$AF$3,0))","v":{"$error":"#N/A"}},null,0]
[null,"LPG","Interproduct transfers","BALANCE","LPG","IPTRANSF",{"$f":"OFFSET(Data!$A$3,MATCH($F222,Data!$A$4:$A$40,0),MATCH($E222,Data!$B$3:$AF$3,0))","v":{"$error":"#N/A"}},null,0]
[null,"LPG","Products transferred","BALANCE","LPG","PTRANSF",{"$f":"OFFSET(Data!$A$3,MATCH($F223,Data!$A$4:$A$40,0),MATCH($E223,Data!$B$3:$AF$3,0))","v":{"$error":"#N/A"}},null,0]
[null,"LPG","Stock Changes (National Territory)","BALANCE","LPG","STCHANAT",{"$f":"OFFSET(Data!$A$3,MATCH($F224,Data!$A$4:$A$40,0),MATCH($E224,Data!$B$3:$AF$3,0))","v":{"$error":"#N/A"}},null,0]
[null,"LPG","Gross inland deliveries (Calculated)","BALANCE","LPG","GDINCTRC",{"$f":"OFFSET(Data!$A$3,MATCH($F225,Data!$A$4:$A$40,0),MATCH($E225,Data!$B$3:$AF$3,0))","v":{"$error":"#N/A"}},{"$f":"H215+H216+H217-H218+H219-H220-H221+H222-H223+H224","v":0},0]
[null,"LPG","Statistical Differences","BALANCE","LPG","STATDIFF",{"$f":"OFFSET(Data!$A$3,MATCH($F226,Data!$A$4:$A$40,0),MATCH($E226,Data!$B$3:$AF$3,0))","v":{"$error":"#N/A"}},{"$f":"H225-H227","v":0},0]
[null,"LPG","Gross inland deliveries (Observed)","BALANCE","LPG","GDINCTRO",{"$f":"OFFSET(Data!$A$3,MATCH($F227,Data!$A$4:$A$40,0),MATCH($E227,Data!$B$3:$AF$3,0))","v":{"$error":"#N/A"}},null,0,{"$f":"IF(OR(H228+H230+H231+H232=H227,H228+H230+H231+H233+H235=H227),\"\",\"Unless the breakdown are not available, the total gross inland deliveries (observed) must be equivalent to the sum of its parts.\")","v":""}]
[null,"LPG","Transformation sector","CONSUMPTION","LPG","TOTTRANF",{"$f":"OFFSET(Data!$A$3,MATCH($F228,Data!$A$4:$A$40,0),MATCH($E228,Data!$B$3:$AF$3,0))","v":{"$error":"#N/A"}},null,0,{"$f":"IF(H229>H228,\"The Transformation sector demand cannot be less than its memo item.\",\"\")","v":""}]
[null,"LPG","of which input to electricity and heat generation","CONSUMPTION","LPG","MTOELEHEAT",null,null,null,{"$f":"IF(H229>H228,\"This memo item cannot be more than the Transformation sector total.\",\"\")","v":""}]
[null,"LPG","Energy sector","CONSUMPTION","LPG","TOTENGY",{"$f":"OFFSET(Data!$A$3,MATCH($F230,Data!$A$4:$A$40,0),MATCH($E230,Data!$B$3:$AF$3,0))","v":{"$error":"#N/A"}},null,{"$f":"IF(H230=0,0,IF(G230=0,0,((H230/G230)-1)*100))","v":0}]
[null,"LPG","Distribution losses","CONSUMPTION","LPG","DISTLOSS",{"$f":"OFFSET(Data!$A$3,MATCH($F231,Data!$A$4:$A$40,0),MATCH($E231,Data!$B$3:$AF$3,0))","v":{"$error":"#N/A"}},null,0,{"$f":"IF(H231<0,\"Distribution losses cannot be negative.\",\"\")","v":""}]
[null,"LPG","Total final consumption","CONSUMPTION","LPG","FINCONS",{"$f":"OFFSET(Data!$A$3,MATCH($F232,Data!$A$4:$A$40,0),MATCH($E232,Data!$B$3:$AF$3,0))","v":{"$error":"#N/A"}},null,0,{"$f":"IF(H233+H235=H232,\"\",\"Unless the breakdown are not available, total final consumption must be equivalent to the sum of its final energy use and non-energy use parts.\")","v":""}]
[null,"LPG","Total final non-energy use consumption","CONSUMPTION","LPG","NEFINCONS",{"$f":"OFFSET(Data!$A$3,MATCH($F233,Data!$A$4:$A$40,0),MATCH($E233,Data!$B$3:$AF$3,0))","v":{"$error":"#N/A"}},null,0]
[null,"LPG","Industry sector","CONSUMPTION","LPG","NEIND",{"$f":"OFFSET(Data!$A$3,MATCH($F234,Data!$A$4:$A$40,0),MATCH($E234,Data!$B$3:$AF$3,0))","v":{"$error":"#N/A"}},null,{"$f":"ROUND(IF(H234=0,0,IF(G234=0,0,((H234/G234)-1)*100)),3)","v":0},{"$f":"IF(H234>H233,\"Consumption in the Industry sector cannot be greater than the Total final non-energy use.\",\"\")","v":""}]
[null,"LPG","Total final energy consumption","CONSUMPTION","LPG","EFINCONS",{"$f":"OFFSET(Data!$A$3,MATCH($F235,Data!$A$4:$A$40,0),MATCH($E235,Data!$B$3:$AF$3,0))","v":{"$error":"#N/A"}},null,{"$f":"ROUND(IF(H235=0,0,IF(G235=0,0,((H235/G235)-1)*100)),3)","v":0},{"$f":"IF(H236+H238+H239=H235,\"\",\"Unless the breakdown are not available, the total final energy consumption must be equivalent to the sum of its parts.\")","v":""}]
[null,"LPG","Transport sector","CONSUMPTION","LPG","ETRANS",{"$f":"OFFSET(Data!$A$3,MATCH($F236,Data!$A$4:$A$40,0),MATCH($E236,Data!$B$3:$AF$3,0))","v":{"$error":"#N/A"}},null,{"$f":"ROUND(IF(H236=0,0,IF(G236=0,0,((H236/G236)-1)*100)),3)","v":0}]
[null,"LPG","of which International aviation","CONSUMPTION","LPG","EINTLAIR",{"$f":"OFFSET(Data!$A$3,MATCH($F237,Data!$A$4:$A$40,0),MATCH($E237,Data!$B$3:$AF$3,0))","v":{"$error":"#N/A"}},null,{"$f":"ROUND(IF(H237=0,0,IF(G237=0,0,((H237/G237)-1)*100)),3)","v":0},{"$f":"IF(H237>H236,\"Deliveries for International aviation cannot be greater than the total energy use in the Transport sector.\",\"\")","v":""}]
[null,"LPG","Industry sector","CONSUMPTION","LPG","EIND",{"$f":"OFFSET(Data!$A$3,MATCH($F238,Data!$A$4:$A$40,0),MATCH($E238,Data!$B$3:$AF$3,0))","v":{"$error":"#N/A"}},null,{"$f":"ROUND(IF(H238=0,0,IF(G238=0,0,((H238/G238)-1)*100)),3)","v":0}]
[null,"LPG","Other sectors","CONSUMPTION","LPG","EOTHER",{"$f":"OFFSET(Data!$A$3,MATCH($F239,Data!$A$4:$A$40,0),MATCH($E239,Data!$B$3:$AF$3,0))","v":{"$error":"#N/A"}},null,0,{"$f":"IF(OR(SUM(H240:H241)=H239,SUM(H240:H241)<H239),\"\",\"The total consumption in Other sectors must not be less than the sum of its parts if reported.\")","v":""}]
[null,"LPG","of which Residential","CONSUMPTION","LPG","ERESIDENT",{"$f":"OFFSET(Data!$A$3,MATCH($F240,Data!$A$4:$A$40,0),MATCH($E240,Data!$B$3:$AF$3,0))","v":{"$error":"#N/A"}},null,0]
[null,"LPG","of which Commercial/public services","CONSUMPTION","LPG","ECOMMPUB",{"$f":"OFFSET(Data!$A$3,MATCH($F241,Data!$A$4:$A$40,0),MATCH($E241,Data!$B$3:$AF$3,0))","v":{"$error":"#N/A"}},null,0]
[null,"Naphtha","Primary product receipts","BALANCE","NAPHTHA","PPRECPTS",{"$f":"OFFSET(Data!$A$3,MATCH($F242,Data!$A$4:$A$40,0),MATCH($E242,Data!$B$3:$AF$3,0))","v":{"$error":"#N/A"}},null,0]
[null,"Naphtha","Refinery gross output","BALANCE","NAPHTHA","REFGROUT",{"$f":"OFFSET(Data!$A$3,MATCH($F243,Data!$A$4:$A$40,0),MATCH($E243,Data!$B$3:$AF$3,0))","v":{"$error":"#N/A"}},null,0]
[null,"Naphtha","Recycled products","BALANCE","NAPHTHA","RECYCLED",{"$f":"OFFSET(Data!$A$3,MATCH($F244,Data!$A$4:$A$40,0),MATCH($E244,Data!$B$3:$AF$3,0))","v":{"$error":"#N/A"}},null,0]
[null,"Naphtha","Refinery fuel","BALANCE","NAPHTHA","REFFUEL",{"$f":"OFFSET(Data!$A$3,MATCH($F245,Data!$A$4:$A$40,0),MATCH($E245,Data!$B$3:$AF$3,0))","v":{"$error":"#N/A"}},null,0]
[null,"Naphtha","Total Imports (Balance)","BALANCE","NAPHTHA","TOTIMPSB",{"$f":"OFFSET(Data!$A$3,MATCH($F246,Data!$A$4:$A$40,0),MATCH($E246,Data!$B$3:$AF$3,0))","v":{"$error":"#N/A"}},null,0]
[null,"Naphtha","Total Exports (Balance)","BALANCE","NAPHTHA","TOTEXPSB",{"$f":"OFFSET(Data!$A$3,MATCH($F247,Data!$A$4:$A$40,0),MATCH($E247,Data!$B$3:$AF$3,0))","v":{"$error":"#N/A"}},null,0]
[null,"Naphtha","International marine bunkers","BALANCE","NAPHTHA","BUNKERS",{"$f":"OFFSET(Data!$A$3,MATCH($F248,Data!$A$4:$A$40,0),MATCH($E248,Data!$B$3:$AF$3,0))","v":{"$error":"#N/A"}},null,0]
[null,"Naphtha","Interproduct transfers","BALANCE","NAPHTHA","IPTRANSF",{"$f":"OFFSET(Data!$A$3,MATCH($F249,Data!$A$4:$A$40,0),MATCH($E249,Data!$B$3:$AF$3,0))","v":{"$error":"#N/A"}},null,0]
[null,"Naphtha","Products transferred","BALANCE","NAPHTHA","PTRANSF",{"$f":"OFFSET(Data!$A$3,MATCH($F250,Data!$A$4:$A$40,0),MATCH($E250,Data!$B$3:$AF$3,0))","v":{"$error":"#N/A"}},null,0]
[null,"Naphtha","Stock Changes (National Territory)","BALANCE","NAPHTHA","STCHANAT",{"$f":"OFFSET(Data!$A$3,MATCH($F251,Data!$A$4:$A$40,0),MATCH($E251,Data!$B$3:$AF$3,0))","v":{"$error":"#N/A"}},null,0]
[null,"Naphtha","Gross inland deliveries (Calculated)","BALANCE","NAPHTHA","GDINCTRC",{"$f":"OFFSET(Data!$A$3,MATCH($F252,Data!$A$4:$A$40,0),MATCH($E252,Data!$B$3:$AF$3,0))","v":{"$error":"#N/A"}},{"$f":"H242+H243+H244-H245+H246-H247-H248+H249-H250+H251","v":0},0]
[null,"Naphtha","Statistical Differences","BALANCE","NAPHTHA","STATDIFF",{"$f":"OFFSET(Data!$A$3,MATCH($F253,Data!$A$4:$A$40,0),MATCH($E253,Data!$B$3:$AF$3,0))","v":{"$error":"#N/A"}},{"$f":"H252-H254","v":0},0]
[null,"Naphtha","Gross inland deliveries (Observed)","BALANCE","NAPHTHA","GDINCTRO",{"$f":"OFFSET(Data!$A$3,MATCH($F254,Data!$A$4:$A$40,0),MATCH($E254,Data!$B$3:$AF$3,0))","v":{"$error":"#N/A"}},null,0,{"$f":"IF(OR(H255+H257+H258+H259=H254,H255+H257+H258+H260+H262=H254),\"\",\"Unless the breakdown are not available, the total gross inland deliveries (observed) must be equivalent to the sum of its parts.\")","v":""}]
[null,"Naphtha","Transformation sector","CONSUMPTION","NAPHTHA","TOTTRANF",{"$f":"OFFSET(Data!$A$3,MATCH($F255,Data!$A$4:$A$40,0),MATCH($E255,Data!$B$3:$AF$3,0))","v":{"$error":"#N/A"}},null,0,{"$f":"IF(H256>H255,\"The Transformation sector demand cannot be less than its memo item.\",\"\")","v":""}]
[null,"Naphtha","of which input to electricity and heat generation","CONSUMPTION","NAPHTHA","MTOELEHEAT",null,null,null,{"$f":"IF(H256>H255,\"This memo item cannot be more than the Transformation sector total.\",\"\")","v":""}]
[null,"Naphtha","Energy sector","CONSUMPTION","NAPHTHA","TOTENGY",{"$f":"OFFSET(Data!$A$3,MATCH($F257,Data!$A$4:$A$40,0),MATCH($E257,Data!$B$3:$AF$3,0))","v":{"$error":"#N/A"}},null,{"$f":"IF(H257=0,0,IF(G257=0,0,((H257/G257)-1)*100))","v":0}]
[null,"Naphtha","Distribution losses","CONSUMPTION","NAPHTHA","DISTLOSS",{"$f":"OFFSET(Data!$A$3,MATCH($F258,Data!$A$4:$A$40,0),MATCH($E258,Data!$B$3:$AF$3,0))","v":{"$error":"#N/A"}},null,0,{"$f":"IF(H258<0,\"Distribution losses cannot be negative.\",\"\")","v":""}]
[null,"Naphtha","Total final consumption","CONSUMPTION","NAPHTHA","FINCONS",{"$f":"OFFSET(Data!$A$3,MATCH($F259,Data!$A$4:$A$40,0),MATCH($E259,Data!$B$3:$AF$3,0))","v":{"$error":"#N/A"}},null,0,{"$f":"IF(H260+H262=H259,\"\",\"Unless the breakdown are not available, total final consumption must be equivalent to the sum of its final energy use and non-energy use parts.\")","v":""}]
[null,"Naphtha","Total final non-energy use consumption","CONSUMPTION","NAPHTHA","NEFINCONS",{"$f":"OFFSET(Data!$A$3,MATCH($F260,Data!$A$4:$A$40,0),MATCH($E260,Data!$B$3:$AF$3,0))","v":{"$error":"#N/A"}},null,0]
[null,"Naphtha","Industry sector","CONSUMPTION","NAPHTHA","NEIND",{"$f":"OFFSET(Data!$A$3,MATCH($F261,Data!$A$4:$A$40,0),MATCH($E261,Data!$B$3:$AF$3,0))","v":{"$error":"#N/A"}},null,{"$f":"ROUND(IF(H261=0,0,IF(G261=0,0,((H261/G261)-1)*100)),3)","v":0},{"$f":"IF(H261>H260,\"Consumption in the Industry sector cannot be greater than the Total final non-energy use.\",\"\")","v":""}]
[null,"Naphtha","Total final energy consumption","CONSUMPTION","NAPHTHA","EFINCONS",{"$f":"OFFSET(Data!$A$3,MATCH($F262,Data!$A$4:$A$40,0),MATCH($E262,Data!$B$3:$AF$3,0))","v":{"$error":"#N/A"}},null,{"$f":"ROUND(IF(H262=0,0,IF(G262=0,0,((H262/G262)-1)*100)),3)","v":0},{"$f":"IF(H263+H265+H266=H262,\"\",\"Unless the breakdown are not available, the total final energy consumption must be equivalent to the sum of its parts.\")","v":""}]
[null,"Naphtha","Transport sector","CONSUMPTION","NAPHTHA","ETRANS",{"$f":"OFFSET(Data!$A$3,MATCH($F263,Data!$A$4:$A$40,0),MATCH($E263,Data!$B$3:$AF$3,0))","v":{"$error":"#N/A"}},null,{"$f":"ROUND(IF(H263=0,0,IF(G263=0,0,((H263/G263)-1)*100)),3)","v":0}]
[null,"Naphtha","of which International aviation","CONSUMPTION","NAPHTHA","EINTLAIR",{"$f":"OFFSET(Data!$A$3,MATCH($F264,Data!$A$4:$A$40,0),MATCH($E264,Data!$B$3:$AF$3,0))","v":{"$error":"#N/A"}},null,{"$f":"ROUND(IF(H264=0,0,IF(G264=0,0,((H264/G264)-1)*100)),3)","v":0},{"$f":"IF(H264>H263,\"Deliveries for International aviation cannot be greater than the total energy use in the Transport sector.\",\"\")","v":""}]
[null,"Naphtha","Industry sector","CONSUMPTION","NAPHTHA","EIND",{"$f":"OFFSET(Data!$A$3,MATCH($F265,Data!$A$4:$A$40,0),MATCH($E265,Data!$B$3:$AF$3,0))","v":{"$error":"#N/A"}},null,0]
[null,"Naphtha","Other sectors","CONSUMPTION","NAPHTHA","EOTHER",{"$f":"OFFSET(Data!$A$3,MATCH($F266,Data!$A$4:$A$40,0),MATCH($E266,Data!$B$3:$AF$3,0))","v":{"$error":"#N/A"}},null,0,{"$f":"IF(OR(SUM(H267:H268)=H266,SUM(H267:H268)<H266),\"\",\"The total consumption in Other sectors must not be less than the sum of its parts if reported.\")","v":""}]
[null,"Naphtha","of which Residential","CONSUMPTION","NAPHTHA","ERESIDENT",{"$f":"OFFSET(Data!$A$3,MATCH($F267,Data!$A$4:$A$40,0),MATCH($E267,Data!$B$3:$AF$3,0))","v":{"$error":"#N/A"}},null,0]
[null,"Naphtha","of which Commercial/public services","CONSUMPTION","NAPHTHA","ECOMMPUB",{"$f":"OFFSET(Data!$A$3,MATCH($F268,Data!$A$4:$A$40,0),MATCH($E268,Data!$B$3:$AF$3,0))","v":{"$error":"#N/A"}},null,0]
[null,"Total motor gasoline","Primary product receipts","BALANCE","MOTORGAS","PPRECPTS",{"$f":"OFFSET(Data!$A$3,MATCH($F269,Data!$A$4:$A$40,0),MATCH($E269,Data!$B$3:$AF$3,0))","v":{"$error":"#N/A"}},{"$f":"H296+H323","v":0},0]
[null,"Total motor gasoline","Refinery gross output","BALANCE","MOTORGAS","REFGROUT",{"$f":"OFFSET(Data!$A$3,MATCH($F270,Data!$A$4:$A$40,0),MATCH($E270,Data!$B$3:$AF$3,0))","v":{"$error":"#N/A"}},0,0]
[null,"Total motor gasoline","Recycled products","BALANCE","MOTORGAS","RECYCLED",{"$f":"OFFSET(Data!$A$3,MATCH($F271,Data!$A$4:$A$40,0),MATCH($E271,Data!$B$3:$AF$3,0))","v":{"$error":"#N/A"}},0,0]
[null,"Total motor gasoline","Refinery fuel","BALANCE","MOTORGAS","REFFUEL",{"$f":"OFFSET(Data!$A$3,MATCH($F272,Data!$A$4:$A$40,0),MATCH($E272,Data!$B$3:$AF$3,0))","v":{"$error":"#N/A"}},0,0]
[null,"Total motor gasoline","Total Imports (Balance)","BALANCE","MOTORGAS","TOTIMPSB",{"$f":"OFFSET(Data!$A$3,MATCH($F273,Data!$A$4:$A$40,0),MATCH($E273,Data!$B$3:$AF$3,0))","v":{"$error":"#N/A"}},0,0]
[null,"Total motor gasoline","Total Exports (Balance)","BALANCE","MOTORGAS","TOTEXPSB",{"$f":"OFFSET(Data!$A$3,MATCH($F274,Data!$A$4:$A$40,0),MATCH($E274,Data!$B$3:$AF$3,0))","v":{"$error":"#N/A"}},0,0]
[null,"Total motor gasoline","International marine bunkers","BALANCE","MOTORGAS","BUNKERS",{"$f":"OFFSET(Data!$A$3,MATCH($F275,Data!$A$4:$A$40,0),MATCH($E275,Data!$B$3:$AF$3,0))","v":{"$error":"#N/A"}},0,0]
[null,"Total motor gasoline","Interproduct transfers","BALANCE","MOTORGAS","IPTRANSF",{"$f":"OFFSET(Data!$A$3,MATCH($F276,Data!$A$4:$A$40,0),MATCH($E276,Data!$B$3:$AF$3,0))","v":{"$error":"#N/A"}},0,0]
[null,"Total motor gasoline","Products transferred","BALANCE","MOTORGAS","PTRANSF",{"$f":"OFFSET(Data!$A$3,MATCH($F277,Data!$A$4:$A$40,0),MATCH($E277,Data!$B$3:$AF$3,0))","v":{"$error":"#N/A"}},0,{"$f":"IF(H277=0,0,IF(G277=0,0,((H277/G277)-1)*100))","v":0}]
[null,"Total motor gasoline","Stock Changes (National Territory)","BALANCE","MOTORGAS","STCHANAT",{"$f":"OFFSET(Data!$A$3,MATCH($F278,Data!$A$4:$A$40,0),MATCH($E278,Data!$B$3:$AF$3,0))","v":{"$error":"#N/A"}},0,0]
[null,"Total motor gasoline","Gross inland deliveries (Calculated)","BALANCE","MOTORGAS","GDINCTRC",{"$f":"OFFSET(Data!$A$3,MATCH($F279,Data!$A$4:$A$40,0),MATCH($E279,Data!$B$3:$AF$3,0))","v":{"$error":"#N/A"}},0,0]
[null,"Total motor gasoline","Statistical Differences","BALANCE","MOTORGAS","STATDIFF",{"$f":"OFFSET(Data!$A$3,MATCH($F280,Data!$A$4:$A$40,0),MATCH($E280,Data!$B$3:$AF$3,0))","v":{"$error":"#N/A"}},0,0]
[null,"Total motor gasoline","Gross inland deliveries (Observed)","BALANCE","MOTORGAS","GDINCTRO",{"$f":"OFFSET(Data!$A$3,MATCH($F281,Data!$A$4:$A$40,0),MATCH($E281,Data!$B$3:$AF$3,0))","v":{"$error":"#N/A"}},0,0,{"$f":"IF(OR(H282+H284+H285+H286=H281,H282+H284+H285+H287+H289=H281),\"\",\"Unless the breakdown are not available, the total gross inland deliveries (observed) must be equivalent to the sum of its parts.\")","v":""}]
[null,"Total motor gasoline","Transformation sector","CONSUMPTION","MOTORGAS","TOTTRANF",{"$f":"OFFSET(Data!$A$3,MATCH($F282,Data!$A$4:$A$40,0),MATCH($E282,Data!$B$3:$AF$3,0))","v":{"$error":"#N/A"}},0,0,{"$f":"IF(H283>H282,\"The Transformation sector demand cannot be less than its memo item.\",\"\")","v":""}]
[null,"Total motor gasoline","of which input to electricity and heat generation","CONSUMPTION","MOTORGAS","MTOELEHEAT",null,0,null,{"$f":"IF(H283>H282,\"This memo item cannot be more than the Transformation sector total.\",\"\")","v":""}]
[null,"Total motor gasoline","Energy sector","CONSUMPTION","MOTORGAS","TOTENGY",{"$f":"OFFSET(Data!$A$3,MATCH($F284,Data!$A$4:$A$40,0),MATCH($E284,Data!$B$3:$AF$3,0))","v":{"$error":"#N/A"}},0,0]
[null,"Total motor gasoline","Distribution losses","CONSUMPTION","MOTORGAS","DISTLOSS",{"$f":"OFFSET(Data!$A$3,MATCH($F285,Data!$A$4:$A$40,0),MATCH($E285,Data!$B$3:$AF$3,0))","v":{"$error":"#N/A"}},0,0,{"$f":"IF(H285<0,\"Distribution losses cannot be negative.\",\"\")","v":""}]
[null,"Total motor gasoline","Total final consumption","CONSUMPTION","MOTORGAS","FINCONS",{"$f":"OFFSET(Data!$A$3,MATCH($F286,Data!$A$4:$A$40,0),MATCH($E286,Data!$B$3:$AF$3,0))","v":{"$error":"#N/A"}},{"$f":"ROUND(H313+H340,3)","v":0},0,{"$f":"IF(H287+H289=H286,\"\",\"Unless the breakdown are not available, total final consumption must be equivalent to the sum of its final energy use and non-energy use parts.\")","v":""}]
[null,"Total motor gasoline","Total final non-energy use consumption","CONSUMPTION","MOTORGAS","NEFINCONS",{"$f":"OFFSET(Data!$A$3,MATCH($F287,Data!$A$4:$A$40,0),MATCH($E287,Data!$B$3:$AF$3,0))","v":{"$error":"#N/A"}},{"$f":"ROUND(H314+H341,3)","v":0},0]
[null,"Total motor gasoline","Industry sector","CONSUMPTION","MOTORGAS","NEIND",{"$f":"OFFSET(Data!$A$3,MATCH($F288,Data!$A$4:$A$40,0),MATCH($E288,Data!$B$3:$AF$3,0))","v":{"$error":"#N/A"}},{"$f":"ROUND(H315+H342,3)","v":0},{"$f":"ROUND(IF(H288=0,0,IF(G288=0,0,((H288/G288)-1)*100)),3)","v":0},{"$f":"IF(H288>H287,\"Consumption in the Industry sector cannot be greater than the Total final non-energy use.\",\"\")","v":""}]
[null,"Total motor gasoline","Total final energy consumption","CONSUMPTION","MOTORGAS","EFINCONS",{"$f":"OFFSET(Data!$A$3,MATCH($F289,Data!$A$4:$A$40,0),MATCH($E289,Data!$B$3:$AF$3,0))","v":{"$error":"#N/A"}},0,{"$f":"ROUND(IF(H289=0,0,IF(G289=0,0,((H289/G289)-1)*100)),3)","v":0},{"$f":"IF(H290+H292+H293=H289,\"\",\"Unless the breakdown are not available, the total final energy consumption must be equivalent to the sum of its parts.\")","v":""}]
[null,"Total motor gasoline","Transport sector","CONSUMPTION","MOTORGAS","ETRANS",{"$f":"OFFSET(Data!$A$3,MATCH($F290,Data!$A$4:$A$40,0),MATCH($E290,Data!$B$3:$AF$3,0))","v":{"$error":"#N/A"}},0,{"$f":"ROUND(IF(H290=0,0,IF(G290=0,0,((H290/G290)-1)*100)),3)","v":0}]
[null,"Total motor gasoline","of which International aviation","CONSUMPTION","MOTORGAS","EINTLAIR",{"$f":"OFFSET(Data!$A$3,MATCH($F291,Data!$A$4:$A$40,0),MATCH($E291,Data!$B$3:$AF$3,0))","v":{"$error":"#N/A"}},{"$f":"ROUND(H318+H345,3)","v":0},{"$f":"ROUND(IF(H291=0,0,IF(G291=0,0,((H291/G291)-1)*100)),3)","v":0},{"$f":"IF(H291>H290,\"Deliveries for International aviation cannot be greater than the total energy use in the Transport sector.\",\"\")","v":""}]
[null,"Total motor gasoline","Industry sector","CONSUMPTION","MOTORGAS","EIND",{"$f":"OFFSET(Data!$A$3,MATCH($F292,Data!$A$4:$A$40,0),MATCH($E292,Data!$B$3:$AF$3,0))","v":{"$error":"#N/A"}},0,0]
[null,"Total motor gasoline","Other sectors","CONSUMPTION","MOTORGAS","EOTHER",{"$f":"OFFSET(Data!$A$3,MATCH($F293,Data!$A$4:$A$40,0),MATCH($E293,Data!$B$3:$AF$3,0))","v":{"$error":"#N/A"}},0,0,{"$f":"IF(OR(SUM(H294:H295)=H293,SUM(H294:H295)<H293),\"\",\"The total consumption in Other sectors must not be less than the sum of its parts if reported.\")","v":""}]
[null,"Total motor gasoline","of which Residential","CONSUMPTION","MOTORGAS","ERESIDENT",{"$f":"OFFSET(Data!$A$3,MATCH($F294,Data!$A$4:$A$40,0),MATCH($E294,Data!$B$3:$AF$3,0))","v":{"$error":"#N/A"}},0,0]
[null,"Total motor gasoline","of which Commercial/public services","CONSUMPTION","MOTORGAS","ECOMMPUB",{"$f":"OFFSET(Data!$A$3,MATCH($F295,Data!$A$4:$A$40,0),MATCH($E295,Data!$B$3:$AF$3,0))","v":{"$error":"#N/A"}},0,0]
[null,"Biogasoline","Primary product receipts","BALANCE","BIOGASOL","PPRECPTS",{"$f":"OFFSET(Data!$A$3,MATCH($F296,Data!$A$4:$A$40,0),MATCH($E296,Data!$B$3:$AF$3,0))","v":{"$error":"#N/A"}},null,0]
[null,"Biogasoline","Refinery gross output","BALANCE","BIOGASOL","REFGROUT",{"$f":"OFFSET(Data!$A$3,MATCH($F297,Data!$A$4:$A$40,0),MATCH($E297,Data!$B$3:$AF$3,0))","v":{"$error":"#N/A"}},null,0,{"$f":"IF(H297=0,\"\",\"Caution: Biofuels are normally blended with fossil fuels and are not part of Refinery output.\")","v":""}]
[null,"Biogasoline","Recycled products","BALANCE","BIOGASOL","RECYCLED",{"$f":"OFFSET(Data!$A$3,MATCH($F298,Data!$A$4:$A$40,0),MATCH($E298,Data!$B$3:$AF$3,0))","v":{"$error":"#N/A"}},null,0]
[null,"Biogasoline","Refinery fuel","BALANCE","BIOGASOL","REFFUEL",{"$f":"OFFSET(Data!$A$3,MATCH($F299,Data!$A$4:$A$40,0),MATCH($E299,Data!$B$3:$AF$3,0))","v":{"$error":"#N/A"}},null,0]
[null,"Biogasoline","Total Imports (Balance)","BALANCE","BIOGASOL","TOTIMPSB",{"$f":"OFFSET(Data!$A$3,MATCH($F300,Data!$A$4:$A$40,0),MATCH($E300,Data!$B$3:$AF$3,0))","v":{"$error":"#N/A"}},null,0,{"$f":"IF(H300=0,\"\",\"Imports of biofuels reported in AOS are premixed or traded already-blended with the oil products. Please identify the import origins in the remarks.\")","v":""}]
[null,"Biogasoline","Total Exports (Balance)","BALANCE","BIOGASOL","TOTEXPSB",{"$f":"OFFSET(Data!$A$3,MATCH($F301,Data!$A$4:$A$40,0),MATCH($E301,Data!$B$3:$AF$3,0))","v":{"$error":"#N/A"}},null,0,{"$f":"IF(H301=0,\"\",\"Exports of biofuels reported in AOS are premixed or traded already-blended with the oil products. Please identify the export destinations in the remarks.\")","v":""}]
[null,"Biogasoline","International marine bunkers","BALANCE","BIOGASOL","BUNKERS",{"$f":"OFFSET(Data!$A$3,MATCH($F302,Data!$A$4:$A$40,0),MATCH($E302,Data!$B$3:$AF$3,0))","v":{"$error":"#N/A"}},null,0]
[null,"Biogasoline","Interproduct transfers","BALANCE","BIOGASOL","IPTRANSF",{"$f":"OFFSET(Data!$A$3,MATCH($F303,Data!$A$4:$A$40,0),MATCH($E303,Data!$B$3:$AF$3,0))","v":{"$error":"#N/A"}},null,0]
[null,"Biogasoline","Products transferred","BALANCE","BIOGASOL","PTRANSF",{"$f":"OFFSET(Data!$A$3,MATCH($F304,Data!$A$4:$A$40,0),MATCH($E304,Data!$B$3:$AF$3,0))","v":{"$error":"#N/A"}},null,0]
[null,"Biogasoline","Stock Changes (National Territory)","BALANCE","BIOGASOL","STCHANAT",{"$f":"OFFSET(Data!$A$3,MATCH($F305,Data!$A$4:$A$40,0),MATCH($E305,Data!$B$3:$AF$3,0))","v":{"$error":"#N/A"}},null,0]
[null,"Biogasoline","Gross inland deliveries (Calculated)","BALANCE","BIOGASOL","GDINCTRC",{"$f":"OFFSET(Data!$A$3,MATCH($F306,Data!$A$4:$A$40,0),MATCH($E306,Data!$B$3:$AF$3,0))","v":{"$error":"#N/A"}},{"$f":"H296+H297+H298-H299+H300-H301-H302+H303-H304+H305","v":0},0]
[null,"Biogasoline","Statistical Differences","BALANCE","BIOGASOL","STATDIFF",{"$f":"OFFSET(Data!$A$3,MATCH($F307,Data!$A$4:$A$40,0),MATCH($E307,Data!$B$3:$AF$3,0))","v":{"$error":"#N/A"}},{"$f":"H306-H308","v":0},0]
[null,"Biogasoline","Gross inland deliveries (Observed)","BALANCE","BIOGASOL","GDINCTRO",{"$f":"OFFSET(Data!$A$3,MATCH($F308,Data!$A$4:$A$40,0),MATCH($E308,Data!$B$3:$AF$3,0))","v":{"$error":"#N/A"}},null,0,{"$f":"IF(OR(H309+H311+H312+H313=H308,H309+H311+H312+H314+H316=H308),\"\",\"Unless the breakdown are not available, the total gross inland deliveries (observed) must be equivalent to the sum of its parts.\")","v":""}]
[null,"Biogasoline","Transformation sector","CONSUMPTION","BIOGASOL","TOTTRANF",{"$f":"OFFSET(Data!$A$3,MATCH($F309,Data!$A$4:$A$40,0),MATCH($E309,Data!$B$3:$AF$3,0))","v":{"$error":"#N/A"}},null,0,{"$f":"IF(H310>H309,\"The Transformation sector demand cannot be less than its memo item.\",\"\")","v":""}]
[null,"Biogasoline","of which input to electricity and heat generation","CONSUMPTION","BIOGASOL","MTOELEHEAT",null,null,null,{"$f":"IF(H310>H309,\"This memo item cannot be more than the Transformation sector total.\",\"\")","v":""}]
[null,"Biogasoline","Energy sector","CONSUMPTION","BIOGASOL","TOTENGY",{"$f":"OFFSET(Data!$A$3,MATCH($F311,Data!$A$4:$A$40,0),MATCH($E311,Data!$B$3:$AF$3,0))","v":{"$error":"#N/A"}},null,{"$f":"IF(H311=0,0,IF(G311=0,0,((H311/G311)-1)*100))","v":0}]
[null,"Biogasoline","Distribution losses","CONSUMPTION","BIOGASOL","DISTLOSS",{"$f":"OFFSET(Data!$A$3,MATCH($F312,Data!$A$4:$A$40,0),MATCH($E312,Data!$B$3:$AF$3,0))","v":{"$error":"#N/A"}},null,0,{"$f":"IF(H312<0,\"Distribution losses cannot be negative.\",\"\")","v":""}]
[null,"Biogasoline","Total final consumption","CONSUMPTION","BIOGASOL","FINCONS",{"$f":"OFFSET(Data!$A$3,MATCH($F313,Data!$A$4:$A$40,0),MATCH($E313,Data!$B$3:$AF$3,0))","v":{"$error":"#N/A"}},null,0,{"$f":"IF(H314+H316=H313,\"\",\"Unless the breakdown are not available, total final consumption must be equivalent to the sum of its final energy use and non-energy use parts.\")","v":""}]
[null,"Biogasoline","Total final non-energy use consumption","CONSUMPTION","BIOGASOL","NEFINCONS",{"$f":"OFFSET(Data!$A$3,MATCH($F314,Data!$A$4:$A$40,0),MATCH($E314,Data!$B$3:$AF$3,0))","v":{"$error":"#N/A"}},null,0]
[null,"Biogasoline","Industry sector","CONSUMPTION","BIOGASOL","NEIND",{"$f":"OFFSET(Data!$A$3,MATCH($F315,Data!$A$4:$A$40,0),MATCH($E315,Data!$B$3:$AF$3,0))","v":{"$error":"#N/A"}},null,{"$f":"ROUND(IF(H315=0,0,IF(G315=0,0,((H315/G315)-1)*100)),3)","v":0},{"$f":"IF(H315>H314,\"Consumption in the Industry sector cannot be greater than the Total final non-energy use.\",\"\")","v":""}]
[null,"Biogasoline","Total final energy consumption","CONSUMPTION","BIOGASOL","EFINCONS",{"$f":"OFFSET(Data!$A$3,MATCH($F316,Data!$A$4:$A$40,0),MATCH($E316,Data!$B$3:$AF$3,0))","v":{"$error":"#N/A"}},null,{"$f":"ROUND(IF(H316=0,0,IF(G316=0,0,((H316/G316)-1)*100)),3)","v":0},{"$f":"IF(H317+H319+H320=H316,\"\",\"Unless the breakdown are not available, the total final energy consumption must be equivalent to the sum of its parts.\")","v":""}]
[null,"Biogasoline","Transport sector","CONSUMPTION","BIOGASOL","ETRANS",{"$f":"OFFSET(Data!$A$3,MATCH($F317,Data!$A$4:$A$40,0),MATCH($E317,Data!$B$3:$AF$3,0))","v":{"$error":"#N/A"}},null,{"$f":"ROUND(IF(H317=0,0,IF(G317=0,0,((H317/G317)-1)*100)),3)","v":0}]
[null,"Biogasoline","of which International aviation","CONSUMPTION","BIOGASOL","EINTLAIR",{"$f":"OFFSET(Data!$A$3,MATCH($F318,Data!$A$4:$A$40,0),MATCH($E318,Data!$B$3:$AF$3,0))","v":{"$error":"#N/A"}},null,{"$f":"ROUND(IF(H318=0,0,IF(G318=0,0,((H318/G318)-1)*100)),3)","v":0},{"$f":"IF(H318>H317,\"Deliveries for International aviation cannot be greater than the total energy use in the Transport sector.\",\"\")","v":""}]
[null,"Biogasoline","Industry sector","CONSUMPTION","BIOGASOL","EIND",{"$f":"OFFSET(Data!$A$3,MATCH($F319,Data!$A$4:$A$40,0),MATCH($E319,Data!$B$3:$AF$3,0))","v":{"$error":"#N/A"}},null,0]
[null,"Biogasoline","Other sectors","CONSUMPTION","BIOGASOL","EOTHER",{"$f":"OFFSET(Data!$A$3,MATCH($F320,Data!$A$4:$A$40,0),MATCH($E320,Data!$B$3:$AF$3,0))","v":{"$error":"#N/A"}},null,0,{"$f":"IF(OR(SUM(H321:H322)=H320,SUM(H321:H322)<H320),\"\",\"The total consumption in Other sectors must not be less than the sum of its parts if reported.\")","v":""}]
[null,"Biogasoline","of which Residential","CONSUMPTION","BIOGASOL","ERESIDENT",{"$f":"OFFSET(Data!$A$3,MATCH($F321,Data!$A$4:$A$40,0),MATCH($E321,Data!$B$3:$AF$3,0))","v":{"$error":"#N/A"}},null,0]
[null,"Biogasoline","of which Commercial/public services","CONSUMPTION","BIOGASOL","ECOMMPUB",{"$f":"OFFSET(Data!$A$3,MATCH($F322,Data!$A$4:$A$40,0),MATCH($E322,Data!$B$3:$AF$3,0))","v":{"$error":"#N/A"}},null,0]
[null,"Non-biogasoline","Primary product receipts","BALANCE","NONBIOGASO","PPRECPTS",{"$f":"OFFSET(Data!$A$3,MATCH($F323,Data!$A$4:$A$40,0),MATCH($E323,Data!$B$3:$AF$3,0))","v":{"$error":"#N/A"}},null,0]
[null,"Non-biogasoline","Refinery gross output","BALANCE","NONBIOGASO","REFGROUT",{"$f":"OFFSET(Data!$A$3,MATCH($F324,Data!$A$4:$A$40,0),MATCH($E324,Data!$B$3:$AF$3,0))","v":{"$error":"#N/A"}},null,0]
[null,"Non-biogasoline","Recycled products","BALANCE","NONBIOGASO","RECYCLED",{"$f":"OFFSET(Data!$A$3,MATCH($F325,Data!$A$4:$A$40,0),MATCH($E325,Data!$B$3:$AF$3,0))","v":{"$error":"#N/A"}},null,0]
[null,"Non-biogasoline","Refinery fuel","BALANCE","NONBIOGASO","REFFUEL",{"$f":"OFFSET(Data!$A$3,MATCH($F326,Data!$A$4:$A$40,0),MATCH($E326,Data!$B$3:$AF$3,0))","v":{"$error":"#N/A"}},null,0]
[null,"Non-biogasoline","Total Imports (Balance)","BALANCE","NONBIOGASO","TOTIMPSB",{"$f":"OFFSET(Data!$A$3,MATCH($F327,Data!$A$4:$A$40,0),MATCH($E327,Data!$B$3:$AF$3,0))","v":{"$error":"#N/A"}},null,0]
[null,"Non-biogasoline","Total Exports (Balance)","BALANCE","NONBIOGASO","TOTEXPSB",{"$f":"OFFSET(Data!$A$3,MATCH($F328,Data!$A$4:$A$40,0),MATCH($E328,Data!$B$3:$AF$3,0))","v":{"$error":"#N/A"}},null,0]
[null,"Non-biogasoline","International marine bunkers","BALANCE","NONBIOGASO","BUNKERS",{"$f":"OFFSET(Data!$A$3,MATCH($F329,Data!$A$4:$A$40,0),MATCH($E329,Data!$B$3:$AF$3,0))","v":{"$error":"#N/A"}},null,0]
[null,"Non-biogasoline","Interproduct transfers","BALANCE","NONBIOGASO","IPTRANSF",{"$f":"OFFSET(Data!$A$3,MATCH($F330,Data!$A$4:$A$40,0),MATCH($E330,Data!$B$3:$AF$3,0))","v":{"$error":"#N/A"}},null,0]
[null,"Non-biogasoline","Products transferred","BALANCE","NONBIOGASO","PTRANSF",{"$f":"OFFSET(Data!$A$3,MATCH($F331,Data!$A$4:$A$40,0),MATCH($E331,Data!$B$3:$AF$3,0))","v":{"$error":"#N/A"}},null,0]
[null,"Non-biogasoline","Stock Changes (National Territory)","BALANCE","NONBIOGASO","STCHANAT",{"$f":"OFFSET(Data!$A$3,MATCH($F332,Data!$A$4:$A$40,0),MATCH($E332,Data!$B$3:$AF$3,0))","v":{"$error":"#N/A"}},null,0]
[null,"Non-biogasoline","Gross inland deliveries (Calculated)","BALANCE","NONBIOGASO","GDINCTRC",{"$f":"OFFSET(Data!$A$3,MATCH($F333,Data!$A$4:$A$40,0),MATCH($E333,Data!$B$3:$AF$3,0))","v":{"$error":"#N/A"}},{"$f":"H323+H324+H325-H326+H327-H328-H329+H330-H331+H332","v":0},0]
[null,"Non-biogasoline","Statistical Differences","BALANCE","NONBIOGASO","STATDIFF",{"$f":"OFFSET(Data!$A$3,MATCH($F334,Data!$A$4:$A$40,0),MATCH($E334,Data!$B$3:$AF$3,0))","v":{"$error":"#N/A"}},{"$f":"H333-H335","v":0},0]
[null,"Non-biogasoline","Gross inland deliveries (Observed)","BALANCE","NONBIOGASO","GDINCTRO",{"$f":"OFFSET(Data!$A$3,MATCH($F335,Data!$A$4:$A$40,0),MATCH($E335,Data!$B$3:$AF$3,0))","v":{"$error":"#N/A"}},null,0,{"$f":"IF(OR(H336+H338+H339+H340=H335,H336+H338+H339+H341+H343=H335),\"\",\"Unless the breakdown are not available, the total gross inland deliveries (observed) must be equivalent to the sum of its parts.\")","v":""}]
[null,"Non-biogasoline","Transformation sector","CONSUMPTION","NONBIOGASO","TOTTRANF",{"$f":"OFFSET(Data!$A$3,MATCH($F336,Data!$A$4:$A$40,0),MATCH($E336,Data!$B$3:$AF$3,0))","v":{"$error":"#N/A"}},null,0,{"$f":"IF(H337>H336,\"The Transformation sector demand cannot be less than its memo item.\",\"\")","v":""}]
[null,"Non-biogasoline","of which input to electricity and heat generation","CONSUMPTION","NONBIOGASO","MTOELEHEAT",null,null,null,{"$f":"IF(H337>H336,\"This memo item cannot be more than the Transformation sector total.\",\"\")","v":""}]
[null,"Non-biogasoline","Energy sector","CONSUMPTION","NONBIOGASO","TOTENGY",{"$f":"OFFSET(Data!$A$3,MATCH($F338,Data!$A$4:$A$40,0),MATCH($E338,Data!$B$3:$AF$3,0))","v":{"$error":"#N/A"}},null,{"$f":"IF(H338=0,0,IF(G338=0,0,((H338/G338)-1)*100))","v":0}]
[null,"Non-biogasoline","Distribution losses","CONSUMPTION","NONBIOGASO","DISTLOSS",{"$f":"OFFSET(Data!$A$3,MATCH($F339,Data!$A$4:$A$40,0),MATCH($E339,Data!$B$3:$AF$3,0))","v":{"$error":"#N/A"}},null,0,{"$f":"IF(H339<0,\"Distribution losses cannot be negative.\",\"\")","v":""}]
[null,"Non-biogasoline","Total final consumption","CONSUMPTION","NONBIOGASO","FINCONS",{"$f":"OFFSET(Data!$A$3,MATCH($F340,Data!$A$4:$A$40,0),MATCH($E340,Data!$B$3:$AF$3,0))","v":{"$error":"#N/A"}},null,0,{"$f":"IF(H341+H343=H340,\"\",\"Unless the breakdown are not available, total final consumption must be equivalent to the sum of its final energy use and non-energy use parts.\")","v":""}]
[null,"Non-biogasoline","Total final non-energy use consumption","CONSUMPTION","NONBIOGASO","NEFINCONS",{"$f":"OFFSET(Data!$A$3,MATCH($F341,Data!$A$4:$A$40,0),MATCH($E341,Data!$B$3:$AF$3,0))","v":{"$error":"#N/A"}},null,0]
[null,"Non-biogasoline","Industry sector","CONSUMPTION","NONBIOGASO","NEIND",{"$f":"OFFSET(Data!$A$3,MATCH($F342,Data!$A$4:$A$40,0),MATCH($E342,Data!$B$3:$AF$3,0))","v":{"$error":"#N/A"}},null,{"$f":"ROUND(IF(H342=0,0,IF(G342=0,0,((H342/G342)-1)*100)),3)","v":0},{"$f":"IF(H342>H341,\"Consumption in the Industry sector cannot be greater than the Total final non-energy use.\",\"\")","v":""}]
[null,"Non-biogasoline","Total final energy consumption","CONSUMPTION","NONBIOGASO","EFINCONS",{"$f":"OFFSET(Data!$A$3,MATCH($F343,Data!$A$4:$A$40,0),MATCH($E343,Data!$B$3:$AF$3,0))","v":{"$error":"#N/A"}},null,{"$f":"ROUND(IF(H343=0,0,IF(G343=0,0,((H343/G343)-1)*100)),3)","v":0},{"$f":"IF(H344+H346+H347=H343,\"\",\"Unless the breakdown are not available, the total final energy consumption must be equivalent to the sum of its parts.\")","v":""}]
[null,"Non-biogasoline","Transport sector","CONSUMPTION","NONBIOGASO","ETRANS",{"$f":"OFFSET(Data!$A$3,MATCH($F344,Data!$A$4:$A$40,0),MATCH($E344,Data!$B$3:$AF$3,0))","v":{"$error":"#N/A"}},null,{"$f":"ROUND(IF(H344=0,0,IF(G344=0,0,((H344/G344)-1)*100)),3)","v":0}]
[null,"Non-biogasoline","of which International aviation","CONSUMPTION","NONBIOGASO","EINTLAIR",{"$f":"OFFSET(Data!$A$3,MATCH($F345,Data!$A$4:$A$40,0),MATCH($E345,Data!$B$3:$AF$3,0))","v":{"$error":"#N/A"}},null,{"$f":"ROUND(IF(H345=0,0,IF(G345=0,0,((H345/G345)-1)*100)),3)","v":0},{"$f":"IF(H345>H344,\"Deliveries for International aviation cannot be greater than the total energy use in the Transport sector.\",\"\")","v":""}]
[null,"Non-biogasoline","Industry sector","CONSUMPTION","NONBIOGASO","EIND",{"$f":"OFFSET(Data!$A$3,MATCH($F346,Data!$A$4:$A$40,0),MATCH($E346,Data!$B$3:$AF$3,0))","v":{"$error":"#N/A"}},null,{"$f":"ROUND(IF(H346=0,0,IF(G346=0,0,((H346/G346)-1)*100)),3)","v":0}]
[null,"Non-biogasoline","Other sectors","CONSUMPTION","NONBIOGASO","EOTHER",{"$f":"OFFSET(Data!$A$3,MATCH($F347,Data!$A$4:$A$40,0),MATCH($E347,Data!$B$3:$AF$3,0))","v":{"$error":"#N/A"}},null,0,{"$f":"IF(OR(SUM(H348:H349)=H347,SUM(H348:H349)<H347),\"\",\"The total consumption in Other sectors must not be less than the sum of its parts if reported.\")","v":""}]
[null,"Non-biogasoline","of which Residential","CONSUMPTION","NONBIOGASO","ERESIDENT",{"$f":"OFFSET(Data!$A$3,MATCH($F348,Data!$A$4:$A$40,0),MATCH($E348,Data!$B$3:$AF$3,0))","v":{"$error":"#N/A"}},null,0]
[null,"Non-biogasoline","of which Commercial/public services","CONSUMPTION","NONBIOGASO","ECOMMPUB",{"$f":"OFFSET(Data!$A$3,MATCH($F349,Data!$A$4:$A$40,0),MATCH($E349,Data!$B$3:$AF$3,0))","v":{"$error":"#N/A"}},null,0]
[null,"Aviation gasoline","Primary product receipts","BALANCE","AVGAS","PPRECPTS",{"$f":"OFFSET(Data!$A$3,MATCH($F350,Data!$A$4:$A$40,0),MATCH($E350,Data!$B$3:$AF$3,0))","v":{"$error":"#N/A"}},null,{"$f":"IF(H350=0,0,IF(G350=0,0,((H350/G350)-1)*100))","v":0}]
[null,"Aviation gasoline","Refinery gross output","BALANCE","AVGAS","REFGROUT",{"$f":"OFFSET(Data!$A$3,MATCH($F351,Data!$A$4:$A$40,0),MATCH($E351,Data!$B$3:$AF$3,0))","v":{"$error":"#N/A"}},null,0]
[null,"Aviation gasoline","Recycled products","BALANCE","AVGAS","RECYCLED",{"$f":"OFFSET(Data!$A$3,MATCH($F352,Data!$A$4:$A$40,0),MATCH($E352,Data!$B$3:$AF$3,0))","v":{"$error":"#N/A"}},null,0]
[null,"Aviation gasoline","Refinery fuel","BALANCE","AVGAS","REFFUEL",{"$f":"OFFSET(Data!$A$3,MATCH($F353,Data!$A$4:$A$40,0),MATCH($E353,Data!$B$3:$AF$3,0))","v":{"$error":"#N/A"}},null,0]
[null,"Aviation gasoline","Total Imports (Balance)","BALANCE","AVGAS","TOTIMPSB",{"$f":"OFFSET(Data!$A$3,MATCH($F354,Data!$A$4:$A$40,0),MATCH($E354,Data!$B$3:$AF$3,0))","v":{"$error":"#N/A"}},null,0]
[null,"Aviation gasoline","Total Exports (Balance)","BALANCE","AVGAS","TOTEXPSB",{"$f":"OFFSET(Data!$A$3,MATCH($F355,Data!$A$4:$A$40,0),MATCH($E355,Data!$B$3:$AF$3,0))","v":{"$error":"#N/A"}},null,0]
[null,"Aviation gasoline","International marine bunkers","BALANCE","AVGAS","BUNKERS",{"$f":"OFFSET(Data!$A$3,MATCH($F356,Data!$A$4:$A$40,0),MATCH($E356,Data!$B$3:$AF$3,0))","v":{"$error":"#N/A"}},null,0]
[null,"Aviation gasoline","Interproduct transfers","BALANCE","AVGAS","IPTRANSF",{"$f":"OFFSET(Data!$A$3,MATCH($F357,Data!$A$4:$A$40,0),MATCH($E357,Data!$B$3:$AF$3,0))","v":{"$error":"#N/A"}},null,0]
[null,"Aviation gasoline","Products transferred","BALANCE","AVGAS","PTRANSF",{"$f":"OFFSET(Data!$A$3,MATCH($F358,Data!$A$4:$A$40,0),MATCH($E358,Data!$B$3:$AF$3,0))","v":{"$error":"#N/A"}},null,0]
[null,"Aviation gasoline","Stock Changes (National Territory)","BALANCE","AVGAS","STCHANAT",{"$f":"OFFSET(Data!$A$3,MATCH($F359,Data!$A$4:$A$40,0),MATCH($E359,Data!$B$3:$AF$3,0))","v":{"$error":"#N/A"}},null,0]
[null,"Aviation gasoline","Gross inland deliveries (Calculated)","BALANCE","AVGAS","GDINCTRC",{"$f":"OFFSET(Data!$A$3,MATCH($F360,Data!$A$4:$A$40,0),MATCH($E360,Data!$B$3:$AF$3,0))","v":{"$error":"#N/A"}},{"$f":"H350+H351+H352-H353+H354-H355-H356+H357-H358+H359","v":0},0]
[null,"Aviation gasoline","Statistical Differences","BALANCE","AVGAS","STATDIFF",{"$f":"OFFSET(Data!$A$3,MATCH($F361,Data!$A$4:$A$40,0),MATCH($E361,Data!$B$3:$AF$3,0))","v":{"$error":"#N/A"}},{"$f":"H360-H362","v":0},0]
[null,"Aviation gasoline","Gross inland deliveries (Observed)","BALANCE","AVGAS","GDINCTRO",{"$f":"OFFSET(Data!$A$3,MATCH($F362,Data!$A$4:$A$40,0),MATCH($E362,Data!$B$3:$AF$3,0))","v":{"$error":"#N/A"}},null,0,{"$f":"IF(OR(H363+H365+H366+H367=H362,H363+H365+H366+H368+H370=H362),\"\",\"Unless the breakdown are not available, the total gross inland deliveries (observed) must be equivalent to the sum of its parts.\")","v":""}]
[null,"Aviation gasoline","Transformation sector","CONSUMPTION","AVGAS","TOTTRANF",{"$f":"OFFSET(Data!$A$3,MATCH($F363,Data!$A$4:$A$40,0),MATCH($E363,Data!$B$3:$AF$3,0))","v":{"$error":"#N/A"}},null,0,{"$f":"IF(H364>H363,\"The Transformation sector demand cannot be less than its memo item.\",\"\")","v":""}]
[null,"Aviation gasoline","of which input to electricity and heat generation","CONSUMPTION","AVGAS","MTOELEHEAT",null,null,null,{"$f":"IF(H364>H363,\"This memo item cannot be more than the Transformation sector total.\",\"\")","v":""}]
[null,"Aviation gasoline","Energy sector","CONSUMPTION","AVGAS","TOTENGY",{"$f":"OFFSET(Data!$A$3,MATCH($F365,Data!$A$4:$A$40,0),MATCH($E365,Data!$B$3:$AF$3,0))","v":{"$error":"#N/A"}},null,{"$f":"IF(H365=0,0,IF(G365=0,0,((H365/G365)-1)*100))","v":0}]
[null,"Aviation gasoline","Distribution losses","CONSUMPTION","AVGAS","DISTLOSS",{"$f":"OFFSET(Data!$A$3,MATCH($F366,Data!$A$4:$A$40,0),MATCH($E366,Data!$B$3:$AF$3,0))","v":{"$error":"#N/A"}},null,0,{"$f":"IF(H366<0,\"Distribution losses cannot be negative.\",\"\")","v":""}]
[null,"Aviation gasoline","Total final consumption","CONSUMPTION","AVGAS","FINCONS",{"$f":"OFFSET(Data!$A$3,MATCH($F367,Data!$A$4:$A$40,0),MATCH($E367,Data!$B$3:$AF$3,0))","v":{"$error":"#N/A"}},null,0,{"$f":"IF(H368+H370=H367,\"\",\"Unless the breakdown are not available, total final consumption must be equivalent to the sum of its final energy use and non-energy use parts.\")","v":""}]
[null,"Aviation gasoline","Total final non-energy use consumption","CONSUMPTION","AVGAS","NEFINCONS",{"$f":"OFFSET(Data!$A$3,MATCH($F368,Data!$A$4:$A$40,0),MATCH($E368,Data!$B$3:$AF$3,0))","v":{"$error":"#N/A"}},null,0]
[null,"Aviation gasoline","Industry sector","CONSUMPTION","AVGAS","NEIND",{"$f":"OFFSET(Data!$A$3,MATCH($F369,Data!$A$4:$A$40,0),MATCH($E369,Data!$B$3:$AF$3,0))","v":{"$error":"#N/A"}},null,{"$f":"ROUND(IF(H369=0,0,IF(G369=0,0,((H369/G369)-1)*100)),3)","v":0},{"$f":"IF(H369>H368,\"Consumption in the Industry sector cannot be greater than the Total final non-energy use.\",\"\")","v":""}]
[null,"Aviation gasoline","Total final energy consumption","CONSUMPTION","AVGAS","EFINCONS",{"$f":"OFFSET(Data!$A$3,MATCH($F370,Data!$A$4:$A$40,0),MATCH($E370,Data!$B$3:$AF$3,0))","v":{"$error":"#N/A"}},null,{"$f":"ROUND(IF(H370=0,0,IF(G370=0,0,((H370/G370)-1)*100)),3)","v":0},{"$f":"IF(H371+H373+H374=H370,\"\",\"Unless the breakdown are not available, the total final energy consumption must be equivalent to the sum of its parts.\")","v":""}]
[null,"Aviation gasoline","Transport sector","CONSUMPTION","AVGAS","ETRANS",{"$f":"OFFSET(Data!$A$3,MATCH($F371,Data!$A$4:$A$40,0),MATCH($E371,Data!$B$3:$AF$3,0))","v":{"$error":"#N/A"}},null,{"$f":"ROUND(IF(H371=0,0,IF(G371=0,0,((H371/G371)-1)*100)),3)","v":0}]
[null,"Aviation gasoline","of which International aviation","CONSUMPTION","AVGAS","EINTLAIR",{"$f":"OFFSET(Data!$A$3,MATCH($F372,Data!$A$4:$A$40,0),MATCH($E372,Data!$B$3:$AF$3,0))","v":{"$error":"#N/A"}},null,{"$f":"ROUND(IF(H372=0,0,IF(G372=0,0,((H372/G372)-1)*100)),3)","v":0},{"$f":"IF(H372>H371,\"Deliveries for International aviation cannot be greater than the total energy use in the Transport sector.\",\"\")","v":""}]
[null,"Aviation gasoline","Industry sector","CONSUMPTION","AVGAS","EIND",{"$f":"OFFSET(Data!$A$3,MATCH($F373,Data!$A$4:$A$40,0),MATCH($E373,Data!$B$3:$AF$3,0))","v":{"$error":"#N/A"}},null,{"$f":"ROUND(IF(H373=0,0,IF(G373=0,0,((H373/G373)-1)*100)),3)","v":0}]
[null,"Aviation gasoline","Other sectors","CONSUMPTION","AVGAS","EOTHER",{"$f":"OFFSET(Data!$A$3,MATCH($F374,Data!$A$4:$A$40,0),MATCH($E374,Data!$B$3:$AF$3,0))","v":{"$error":"#N/A"}},null,0,{"$f":"IF(OR(SUM(H375:H376)=H374,SUM(H375:H376)<H374),\"\",\"The total consumption in Other sectors must not be less than the sum of its parts if reported.\")","v":""}]
[null,"Aviation gasoline","of which Residential","CONSUMPTION","AVGAS","ERESIDENT",{"$f":"OFFSET(Data!$A$3,MATCH($F375,Data!$A$4:$A$40,0),MATCH($E375,Data!$B$3:$AF$3,0))","v":{"$error":"#N/A"}},null,0]
[null,"Aviation gasoline","of which Commercial/public services","CONSUMPTION","AVGAS","ECOMMPUB",{"$f":"OFFSET(Data!$A$3,MATCH($F376,Data!$A$4:$A$40,0),MATCH($E376,Data!$B$3:$AF$3,0))","v":{"$error":"#N/A"}},null,0]
[null,"Gasoline type jet fuel","Primary product receipts","BALANCE","JETGAS","PPRECPTS",{"$f":"OFFSET(Data!$A$3,MATCH($F377,Data!$A$4:$A$40,0),MATCH($E377,Data!$B$3:$AF$3,0))","v":{"$error":"#N/A"}},null,0]
[null,"Gasoline type jet fuel","Refinery gross output","BALANCE","JETGAS","REFGROUT",{"$f":"OFFSET(Data!$A$3,MATCH($F378,Data!$A$4:$A$40,0),MATCH($E378,Data!$B$3:$AF$3,0))","v":{"$error":"#N/A"}},null,0]
[null,"Gasoline type jet fuel","Recycled products","BALANCE","JETGAS","RECYCLED",{"$f":"OFFSET(Data!$A$3,MATCH($F379,Data!$A$4:$A$40,0),MATCH($E379,Data!$B$3:$AF$3,0))","v":{"$error":"#N/A"}},null,0]
[null,"Gasoline type jet fuel","Refinery fuel","BALANCE","JETGAS","REFFUEL",{"$f":"OFFSET(Data!$A$3,MATCH($F380,Data!$A$4:$A$40,0),MATCH($E380,Data!$B$3:$AF$3,0))","v":{"$error":"#N/A"}},null,0]
[null,"Gasoline type jet fuel","Total Imports (Balance)","BALANCE","JETGAS","TOTIMPSB",{"$f":"OFFSET(Data!$A$3,MATCH($F381,Data!$A$4:$A$40,0),MATCH($E381,Data!$B$3:$AF$3,0))","v":{"$error":"#N/A"}},null,0]
[null,"Gasoline type jet fuel","Total Exports (Balance)","BALANCE","JETGAS","TOTEXPSB",{"$f":"OFFSET(Data!$A$3,MATCH($F382,Data!$A$4:$A$40,0),MATCH($E382,Data!$B$3:$AF$3,0))","v":{"$error":"#N/A"}},null,0]
[null,"Gasoline type jet fuel","International marine bunkers","BALANCE","JETGAS","BUNKERS",{"$f":"OFFSET(Data!$A$3,MATCH($F383,Data!$A$4:$A$40,0),MATCH($E383,Data!$B$3:$AF$3,0))","v":{"$error":"#N/A"}},null,0]
[null,"Gasoline type jet fuel","Interproduct transfers","BALANCE","JETGAS","IPTRANSF",{"$f":"OFFSET(Data!$A$3,MATCH($F384,Data!$A$4:$A$40,0),MATCH($E384,Data!$B$3:$AF$3,0))","v":{"$error":"#N/A"}},null,0]
[null,"Gasoline type jet fuel","Products transferred","BALANCE","JETGAS","PTRANSF",{"$f":"OFFSET(Data!$A$3,MATCH($F385,Data!$A$4:$A$40,0),MATCH($E385,Data!$B$3:$AF$3,0))","v":{"$error":"#N/A"}},null,0]
[null,"Gasoline type jet fuel","Stock Changes (National Territory)","BALANCE","JETGAS","STCHANAT",{"$f":"OFFSET(Data!$A$3,MATCH($F386,Data!$A$4:$A$40,0),MATCH($E386,Data!$B$3:$AF$3,0))","v":{"$error":"#N/A"}},null,0]
[null,"Gasoline type jet fuel","Gross inland deliveries (Calculated)","BALANCE","JETGAS","GDINCTRC",{"$f":"OFFSET(Data!$A$3,MATCH($F387,Data!$A$4:$A$40,0),MATCH($E387,Data!$B$3:$AF$3,0))","v":{"$error":"#N/A"}},{"$f":"H377+H378+H379-H380+H381-H382-H383+H384-H385+H386","v":0},0]
[null,"Gasoline type jet fuel","Statistical Differences","BALANCE","JETGAS","STATDIFF",{"$f":"OFFSET(Data!$A$3,MATCH($F388,Data!$A$4:$A$40,0),MATCH($E388,Data!$B$3:$AF$3,0))","v":{"$error":"#N/A"}},{"$f":"H387-H389","v":0},0]
[null,"Gasoline type jet fuel","Gross inland deliveries (Observed)","BALANCE","JETGAS","GDINCTRO",{"$f":"OFFSET(Data!$A$3,MATCH($F389,Data!$A$4:$A$40,0),MATCH($E389,Data!$B$3:$AF$3,0))","v":{"$error":"#N/A"}},null,0,{"$f":"IF(OR(H390+H392+H393+H394=H389,H390+H392+H393+H395+H397=H389),\"\",\"Unless the breakdown are not available, the total gross inland deliveries (observed) must be equivalent to the sum of its parts.\")","v":""}]
[null,"Gasoline type jet fuel","Transformation sector","CONSUMPTION","JETGAS","TOTTRANF",{"$f":"OFFSET(Data!$A$3,MATCH($F390,Data!$A$4:$A$40,0),MATCH($E390,Data!$B$3:$AF$3,0))","v":{"$error":"#N/A"}},null,0,{"$f":"IF(H391>H390,\"The Transformation sector demand cannot be less than its memo item.\",\"\")","v":""}]
[null,"Gasoline type jet fuel","of which input to electricity and heat generation","CONSUMPTION","JETGAS","MTOELEHEAT",null,null,null,{"$f":"IF(H391>H390,\"This memo item cannot be more than the Transformation sector total.\",\"\")","v":""}]
[null,"Gasoline type jet fuel","Energy sector","CONSUMPTION","JETGAS","TOTENGY",{"$f":"OFFSET(Data!$A$3,MATCH($F392,Data!$A$4:$A$40,0),MATCH($E392,Data!$B$3:$AF$3,0))","v":{"$error":"#N/A"}},null,{"$f":"IF(H392=0,0,IF(G392=0,0,((H392/G392)-1)*100))","v":0}]
[null,"Gasoline type jet fuel","Distribution losses","CONSUMPTION","JETGAS","DISTLOSS",{"$f":"OFFSET(Data!$A$3,MATCH($F393,Data!$A$4:$A$40,0),MATCH($E393,Data!$B$3:$AF$3,0))","v":{"$error":"#N/A"}},null,0,{"$f":"IF(H393<0,\"Distribution losses cannot be negative.\",\"\")","v":""}]
[null,"Gasoline type jet fuel","Total final consumption","CONSUMPTION","JETGAS","FINCONS",{"$f":"OFFSET(Data!$A$3,MATCH($F394,Data!$A$4:$A$40,0),MATCH($E394,Data!$B$3:$AF$3,0))","v":{"$error":"#N/A"}},null,0,{"$f":"IF(H395+H397=H394,\"\",\"Unless the breakdown are not available, total final consumption must be equivalent to the sum of its final energy use and non-energy use parts.\")","v":""}]
[null,"Gasoline type jet fuel","Total final non-energy use consumption","CONSUMPTION","JETGAS","NEFINCONS",{"$f":"OFFSET(Data!$A$3,MATCH($F395,Data!$A$4:$A$40,0),MATCH($E395,Data!$B$3:$AF$3,0))","v":{"$error":"#N/A"}},null,0]
[null,"Gasoline type jet fuel","Industry sector","CONSUMPTION","JETGAS","NEIND",{"$f":"OFFSET(Data!$A$3,MATCH($F396,Data!$A$4:$A$40,0),MATCH($E396,Data!$B$3:$AF$3,0))","v":{"$error":"#N/A"}},null,{"$f":"ROUND(IF(H396=0,0,IF(G396=0,0,((H396/G396)-1)*100)),3)","v":0},{"$f":"IF(H396>H395,\"Consumption in the Industry sector cannot be greater than the Total final non-energy use.\",\"\")","v":""}]
[null,"Gasoline type jet fuel","Total final energy consumption","CONSUMPTION","JETGAS","EFINCONS",{"$f":"OFFSET(Data!$A$3,MATCH($F397,Data!$A$4:$A$40,0),MATCH($E397,Data!$B$3:$AF$3,0))","v":{"$error":"#N/A"}},null,{"$f":"ROUND(IF(H397=0,0,IF(G397=0,0,((H397/G397)-1)*100)),3)","v":0},{"$f":"IF(H398+H400+H401=H397,\"\",\"Unless the breakdown are not available, the total final energy consumption must be equivalent to the sum of its parts.\")","v":""}]
[null,"Gasoline type jet fuel","Transport sector","CONSUMPTION","JETGAS","ETRANS",{"$f":"OFFSET(Data!$A$3,MATCH($F398,Data!$A$4:$A$40,0),MATCH($E398,Data!$B$3:$AF$3,0))","v":{"$error":"#N/A"}},null,{"$f":"ROUND(IF(H398=0,0,IF(G398=0,0,((H398/G398)-1)*100)),3)","v":0}]
[null,"Gasoline type jet fuel","of which International aviation","CONSUMPTION","JETGAS","EINTLAIR",{"$f":"OFFSET(Data!$A$3,MATCH($F399,Data!$A$4:$A$40,0),MATCH($E399,Data!$B$3:$AF$3,0))","v":{"$error":"#N/A"}},null,{"$f":"ROUND(IF(H399=0,0,IF(G399=0,0,((H399/G399)-1)*100)),3)","v":0},{"$f":"IF(H399>H398,\"Deliveries for International aviation cannot be greater than the total energy use in the Transport sector.\",\"\")","v":""}]
[null,"Gasoline type jet fuel","Industry sector","CONSUMPTION","JETGAS","EIND",{"$f":"OFFSET(Data!$A$3,MATCH($F400,Data!$A$4:$A$40,0),MATCH($E400,Data!$B$3:$AF$3,0))","v":{"$error":"#N/A"}},null,0]
[null,"Gasoline type jet fuel","Other sectors","CONSUMPTION","JETGAS","EOTHER",{"$f":"OFFSET(Data!$A$3,MATCH($F401,Data!$A$4:$A$40,0),MATCH($E401,Data!$B$3:$AF$3,0))","v":{"$error":"#N/A"}},null,0,{"$f":"IF(OR(SUM(H402:H403)=H401,SUM(H402:H403)<H401),\"\",\"The total consumption in Other sectors must not be less than the sum of its parts if reported.\")","v":""}]
[null,"Gasoline type jet fuel","of which Residential","CONSUMPTION","JETGAS","ERESIDENT",{"$f":"OFFSET(Data!$A$3,MATCH($F402,Data!$A$4:$A$40,0),MATCH($E402,Data!$B$3:$AF$3,0))","v":{"$error":"#N/A"}},null,0]
[null,"Gasoline type jet fuel","of which Commercial/public services","CONSUMPTION","JETGAS","ECOMMPUB",{"$f":"OFFSET(Data!$A$3,MATCH($F403,Data!$A$4:$A$40,0),MATCH($E403,Data!$B$3:$AF$3,0))","v":{"$error":"#N/A"}},null,0]
[null,"Total kerosene type jet fuel","Primary product receipts","BALANCE","JETKERO","PPRECPTS",{"$f":"OFFSET(Data!$A$3,MATCH($F404,Data!$A$4:$A$40,0),MATCH($E404,Data!$B$3:$AF$3,0))","v":{"$error":"#N/A"}},{"$f":"H431+H458","v":0},0]
[null,"Total kerosene type jet fuel","Refinery gross output","BALANCE","JETKERO","REFGROUT",{"$f":"OFFSET(Data!$A$3,MATCH($F405,Data!$A$4:$A$40,0),MATCH($E405,Data!$B$3:$AF$3,0))","v":{"$error":"#N/A"}},0,0]
[null,"Total kerosene type jet fuel","Recycled products","BALANCE","JETKERO","RECYCLED",{"$f":"OFFSET(Data!$A$3,MATCH($F406,Data!$A$4:$A$40,0),MATCH($E406,Data!$B$3:$AF$3,0))","v":{"$error":"#N/A"}},0,0]
[null,"Total kerosene type jet fuel","Refinery fuel","BALANCE","JETKERO","REFFUEL",{"$f":"OFFSET(Data!$A$3,MATCH($F407,Data!$A$4:$A$40,0),MATCH($E407,Data!$B$3:$AF$3,0))","v":{"$error":"#N/A"}},0,0]
[null,"Total kerosene type jet fuel","Total Imports (Balance)","BALANCE","JETKERO","TOTIMPSB",{"$f":"OFFSET(Data!$A$3,MATCH($F408,Data!$A$4:$A$40,0),MATCH($E408,Data!$B$3:$AF$3,0))","v":{"$error":"#N/A"}},0,0]
[null,"Total kerosene type jet fuel","Total Exports (Balance)","BALANCE","JETKERO","TOTEXPSB",{"$f":"OFFSET(Data!$A$3,MATCH($F409,Data!$A$4:$A$40,0),MATCH($E409,Data!$B$3:$AF$3,0))","v":{"$error":"#N/A"}},0,0]
[null,"Total kerosene type jet fuel","International marine bunkers","BALANCE","JETKERO","BUNKERS",{"$f":"OFFSET(Data!$A$3,MATCH($F410,Data!$A$4:$A$40,0),MATCH($E410,Data!$B$3:$AF$3,0))","v":{"$error":"#N/A"}},0,0]
[null,"Total kerosene type jet fuel","Interproduct transfers","BALANCE","JETKERO","IPTRANSF",{"$f":"OFFSET(Data!$A$3,MATCH($F411,Data!$A$4:$A$40,0),MATCH($E411,Data!$B$3:$AF$3,0))","v":{"$error":"#N/A"}},0,0]
[null,"Total kerosene type jet fuel","Products transferred","BALANCE","JETKERO","PTRANSF",{"$f":"OFFSET(Data!$A$3,MATCH($F412,Data!$A$4:$A$40,0),MATCH($E412,Data!$B$3:$AF$3,0))","v":{"$error":"#N/A"}},0,0]
[null,"Total kerosene type jet fuel","Stock Changes (National Territory)","BALANCE","JETKERO","STCHANAT",{"$f":"OFFSET(Data!$A$3,MATCH($F413,Data!$A$4:$A$40,0),MATCH($E413,Data!$B$3:$AF$3,0))","v":{"$error":"#N/A"}},0,0]
[null,"Total kerosene type jet fuel","Gross inland deliveries (Calculated)","BALANCE","JETKERO","GDINCTRC",{"$f":"OFFSET(Data!$A$3,MATCH($F414,Data!$A$4:$A$40,0),MATCH($E414,Data!$B$3:$AF$3,0))","v":{"$error":"#N/A"}},0,0]
[null,"Total kerosene type jet fuel","Statistical Differences","BALANCE","JETKERO","STATDIFF",{"$f":"OFFSET(Data!$A$3,MATCH($F415,Data!$A$4:$A$40,0),MATCH($E415,Data!$B$3:$AF$3,0))","v":{"$error":"#N/A"}},0,0]
[null,"Total kerosene type jet fuel","Gross inland deliveries (Observed)","BALANCE","JETKERO","GDINCTRO",{"$f":"OFFSET(Data!$A$3,MATCH($F416,Data!$A$4:$A$40,0),MATCH($E416,Data!$B$3:$AF$3,0))","v":{"$error":"#N/A"}},0,0,{"$f":"IF(OR(H417+H419+H420+H421=H416,H417+H419+H420+H422+H424=H416),\"\",\"Unless the breakdown are not available, the total gross inland deliveries (observed) must be equivalent to the sum of its parts.\")","v":""}]
[null,"Total kerosene type jet fuel","Transformation sector","CONSUMPTION","JETKERO","TOTTRANF",{"$f":"OFFSET(Data!$A$3,MATCH($F417,Data!$A$4:$A$40,0),MATCH($E417,Data!$B$3:$AF$3,0))","v":{"$error":"#N/A"}},0,0,{"$f":"IF(H418>H417,\"The Transformation sector demand cannot be less than its memo item.\",\"\")","v":""}]
[null,"Total kerosene type jet fuel","of which input to electricity and heat generation","CONSUMPTION","JETKERO","MTOELEHEAT",null,0,null,{"$f":"IF(H418>H417,\"This memo item cannot be more than the Transformation sector total.\",\"\")","v":""}]
[null,"Total kerosene type jet fuel","Energy sector","CONSUMPTION","JETKERO","TOTENGY",{"$f":"OFFSET(Data!$A$3,MATCH($F419,Data!$A$4:$A$40,0),MATCH($E419,Data!$B$3:$AF$3,0))","v":{"$error":"#N/A"}},0,0]
[null,"Total kerosene type jet fuel","Distribution losses","CONSUMPTION","JETKERO","DISTLOSS",{"$f":"OFFSET(Data!$A$3,MATCH($F420,Data!$A$4:$A$40,0),MATCH($E420,Data!$B$3:$AF$3,0))","v":{"$error":"#N/A"}},0,0,{"$f":"IF(H420<0,\"Distribution losses cannot be negative.\",\"\")","v":""}]
[null,"Total kerosene type jet fuel","Total final consumption","CONSUMPTION","JETKERO","FINCONS",{"$f":"OFFSET(Data!$A$3,MATCH($F421,Data!$A$4:$A$40,0),MATCH($E421,Data!$B$3:$AF$3,0))","v":{"$error":"#N/A"}},0,{"$f":"IF(H421=0,0,IF(G421=0,0,((H421/G421)-1)*100))","v":0},{"$f":"IF(H422+H424=H421,\"\",\"Unless the breakdown are not available, total final consumption must be equivalent to the sum of its final energy use and non-energy use parts.\")","v":""}]
[null,"Total kerosene type jet fuel","Total final non-energy use consumption","CONSUMPTION","JETKERO","NEFINCONS",{"$f":"OFFSET(Data!$A$3,MATCH($F422,Data!$A$4:$A$40,0),MATCH($E422,Data!$B$3:$AF$3,0))","v":{"$error":"#N/A"}},0,0]
[null,"Total kerosene type jet fuel","Industry sector","CONSUMPTION","JETKERO","NEIND",{"$f":"OFFSET(Data!$A$3,MATCH($F423,Data!$A$4:$A$40,0),MATCH($E423,Data!$B$3:$AF$3,0))","v":{"$error":"#N/A"}},{"$f":"ROUND(H450+H477,3)","v":0},{"$f":"ROUND(IF(H423=0,0,IF(G423=0,0,((H423/G423)-1)*100)),3)","v":0},{"$f":"IF(H423>H422,\"Consumption in the Industry sector cannot be greater than the Total final non-energy use.\",\"\")","v":""}]
[null,"Total kerosene type jet fuel","Total final energy consumption","CONSUMPTION","JETKERO","EFINCONS",{"$f":"OFFSET(Data!$A$3,MATCH($F424,Data!$A$4:$A$40,0),MATCH($E424,Data!$B$3:$AF$3,0))","v":{"$error":"#N/A"}},{"$f":"ROUND(H451+H478,3)","v":0},0,{"$f":"IF(H425+H427+H428=H424,\"\",\"Unless the breakdown are not available, the total final energy consumption must be equivalent to the sum of its parts.\")","v":""}]
[null,"Total kerosene type jet fuel","Transport sector","CONSUMPTION","JETKERO","ETRANS",{"$f":"OFFSET(Data!$A$3,MATCH($F425,Data!$A$4:$A$40,0),MATCH($E425,Data!$B$3:$AF$3,0))","v":{"$error":"#N/A"}},{"$f":"ROUND(H452+H479,3)","v":0},0]
[null,"Total kerosene type jet fuel","of which International aviation","CONSUMPTION","JETKERO","EINTLAIR",{"$f":"OFFSET(Data!$A$3,MATCH($F426,Data!$A$4:$A$40,0),MATCH($E426,Data!$B$3:$AF$3,0))","v":{"$error":"#N/A"}},{"$f":"ROUND(H453+H480,3)","v":0},0,{"$f":"IF(H426>H425,\"Deliveries for International aviation cannot be greater than the total energy use in the Transport sector.\",\"\")","v":""}]
[null,"Total kerosene type jet fuel","Industry sector","CONSUMPTION","JETKERO","EIND",{"$f":"OFFSET(Data!$A$3,MATCH($F427,Data!$A$4:$A$40,0),MATCH($E427,Data!$B$3:$AF$3,0))","v":{"$error":"#N/A"}},{"$f":"H454+H481","v":0},0]
[null,"Total kerosene type jet fuel","Other sectors","CONSUMPTION","JETKERO","EOTHER",{"$f":"OFFSET(Data!$A$3,MATCH($F428,Data!$A$4:$A$40,0),MATCH($E428,Data!$B$3:$AF$3,0))","v":{"$error":"#N/A"}},{"$f":"H455+H482","v":0},0,{"$f":"IF(OR(SUM(H429:H430)=H428,SUM(H429:H430)<H428),\"\",\"The total consumption in Other sectors must not be less than the sum of its parts if reported.\")","v":""}]
[null,"Total kerosene type jet fuel","of which Residential","CONSUMPTION","JETKERO","ERESIDENT",{"$f":"OFFSET(Data!$A$3,MATCH($F429,Data!$A$4:$A$40,0),MATCH($E429,Data!$B$3:$AF$3,0))","v":{"$error":"#N/A"}},{"$f":"H456+H483","v":0},0]
[null,"Total kerosene type jet fuel","of which Commercial/public services","CONSUMPTION","JETKERO","ECOMMPUB",{"$f":"OFFSET(Data!$A$3,MATCH($F430,Data!$A$4:$A$40,0),MATCH($E430,Data!$B$3:$AF$3,0))","v":{"$error":"#N/A"}},{"$f":"ROUND(H457+H484,3)","v":0},0]
[null,"Bio jet kerosene","Primary product receipts","BALANCE","BIOJETKERO","PPRECPTS",{"$f":"OFFSET(Data!$A$3,MATCH($F431,Data!$A$4:$A$40,0),MATCH($E431,Data!$B$3:$AF$3,0))","v":{"$error":"#N/A"}},null,0]
[null,"Bio jet kerosene","Refinery gross output","BALANCE","BIOJETKERO","REFGROUT",{"$f":"OFFSET(Data!$A$3,MATCH($F432,Data!$A$4:$A$40,0),MATCH($E432,Data!$B$3:$AF$3,0))","v":{"$error":"#N/A"}},null,0,{"$f":"IF(H432=0,\"\",\"Caution: Biofuels are normally blended with fossil fuels and are not part of Refinery output.\")","v":""}]
[null,"Bio jet kerosene","Recycled products","BALANCE","BIOJETKERO","RECYCLED",{"$f":"OFFSET(Data!$A$3,MATCH($F433,Data!$A$4:$A$40,0),MATCH($E433,Data!$B$3:$AF$3,0))","v":{"$error":"#N/A"}},null,0]
[null,"Bio jet kerosene","Refinery fuel","BALANCE","BIOJETKERO","REFFUEL",{"$f":"OFFSET(Data!$A$3,MATCH($F434,Data!$A$4:$A$40,0),MATCH($E434,Data!$B$3:$AF$3,0))","v":{"$error":"#N/A"}},null,0]
[null,"Bio jet kerosene","Total Imports (Balance)","BALANCE","BIOJETKERO","TOTIMPSB",{"$f":"OFFSET(Data!$A$3,MATCH($F435,Data!$A$4:$A$40,0),MATCH($E435,Data!$B$3:$AF$3,0))","v":{"$error":"#N/A"}},null,0,{"$f":"IF(H435=0,\"\",\"Imports of biofuels reported in AOS are premixed or traded already-blended with the oil products. Please identify the import origins in the remarks.\")","v":""}]
[null,"Bio jet kerosene","Total Exports (Balance)","BALANCE","BIOJETKERO","TOTEXPSB",{"$f":"OFFSET(Data!$A$3,MATCH($F436,Data!$A$4:$A$40,0),MATCH($E436,Data!$B$3:$AF$3,0))","v":{"$error":"#N/A"}},null,0,{"$f":"IF(H436=0,\"\",\"Exports of biofuels reported in AOS are premixed or traded already-blended with the oil products. Please identify the export destinations in the remarks.\")","v":""}]
[null,"Bio jet kerosene","International marine bunkers","BALANCE","BIOJETKERO","BUNKERS",{"$f":"OFFSET(Data!$A$3,MATCH($F437,Data!$A$4:$A$40,0),MATCH($E437,Data!$B$3:$AF$3,0))","v":{"$error":"#N/A"}},null,0]
[null,"Bio jet kerosene","Interproduct transfers","BALANCE","BIOJETKERO","IPTRANSF",{"$f":"OFFSET(Data!$A$3,MATCH($F438,Data!$A$4:$A$40,0),MATCH($E438,Data!$B$3:$AF$3,0))","v":{"$error":"#N/A"}},null,0]
[null,"Bio jet kerosene","Products transferred","BALANCE","BIOJETKERO","PTRANSF",{"$f":"OFFSET(Data!$A$3,MATCH($F439,Data!$A$4:$A$40,0),MATCH($E439,Data!$B$3:$AF$3,0))","v":{"$error":"#N/A"}},null,0]
[null,"Bio jet kerosene","Stock Changes (National Territory)","BALANCE","BIOJETKERO","STCHANAT",{"$f":"OFFSET(Data!$A$3,MATCH($F440,Data!$A$4:$A$40,0),MATCH($E440,Data!$B$3:$AF$3,0))","v":{"$error":"#N/A"}},null,0]
[null,"Bio jet kerosene","Gross inland deliveries (Calculated)","BALANCE","BIOJETKERO","GDINCTRC",{"$f":"OFFSET(Data!$A$3,MATCH($F441,Data!$A$4:$A$40,0),MATCH($E441,Data!$B$3:$AF$3,0))","v":{"$error":"#N/A"}},{"$f":"H431+H432+H433-H434+H435-H436-H437+H438-H439+H440","v":0},0]
[null,"Bio jet kerosene","Statistical Differences","BALANCE","BIOJETKERO","STATDIFF",{"$f":"OFFSET(Data!$A$3,MATCH($F442,Data!$A$4:$A$40,0),MATCH($E442,Data!$B$3:$AF$3,0))","v":{"$error":"#N/A"}},{"$f":"H441-H443","v":0},0]
[null,"Bio jet kerosene","Gross inland deliveries (Observed)","BALANCE","BIOJETKERO","GDINCTRO",{"$f":"OFFSET(Data!$A$3,MATCH($F443,Data!$A$4:$A$40,0),MATCH($E443,Data!$B$3:$AF$3,0))","v":{"$error":"#N/A"}},null,0,{"$f":"IF(OR(H444+H446+H447+H448=H443,H444+H446+H447+H449+H451=H443),\"\",\"Unless the breakdown are not available, the total gross inland deliveries (observed) must be equivalent to the sum of its parts.\")","v":""}]
[null,"Bio jet kerosene","Transformation sector","CONSUMPTION","BIOJETKERO","TOTTRANF",{"$f":"OFFSET(Data!$A$3,MATCH($F444,Data!$A$4:$A$40,0),MATCH($E444,Data!$B$3:$AF$3,0))","v":{"$error":"#N/A"}},null,0,{"$f":"IF(H445>H444,\"The Transformation sector demand cannot be less than its memo item.\",\"\")","v":""}]
[null,"Bio jet kerosene","of which input to electricity and heat generation","CONSUMPTION","BIOJETKERO","MTOELEHEAT",null,null,null,{"$f":"IF(H445>H444,\"This memo item cannot be more than the Transformation sector total.\",\"\")","v":""}]
[null,"Bio jet kerosene","Energy sector","CONSUMPTION","BIOJETKERO","TOTENGY",{"$f":"OFFSET(Data!$A$3,MATCH($F446,Data!$A$4:$A$40,0),MATCH($E446,Data!$B$3:$AF$3,0))","v":{"$error":"#N/A"}},null,{"$f":"IF(H446=0,0,IF(G446=0,0,((H446/G446)-1)*100))","v":0}]
[null,"Bio jet kerosene","Distribution losses","CONSUMPTION","BIOJETKERO","DISTLOSS",{"$f":"OFFSET(Data!$A$3,MATCH($F447,Data!$A$4:$A$40,0),MATCH($E447,Data!$B$3:$AF$3,0))","v":{"$error":"#N/A"}},null,0,{"$f":"IF(H447<0,\"Distribution losses cannot be negative.\",\"\")","v":""}]
[null,"Bio jet kerosene","Total final consumption","CONSUMPTION","BIOJETKERO","FINCONS",{"$f":"OFFSET(Data!$A$3,MATCH($F448,Data!$A$4:$A$40,0),MATCH($E448,Data!$B$3:$AF$3,0))","v":{"$error":"#N/A"}},null,0,{"$f":"IF(H449+H451=H448,\"\",\"Unless the breakdown are not available, total final consumption must be equivalent to the sum of its final energy use and non-energy use parts.\")","v":""}]
[null,"Bio jet kerosene","Total final non-energy use consumption","CONSUMPTION","BIOJETKERO","NEFINCONS",{"$f":"OFFSET(Data!$A$3,MATCH($F449,Data!$A$4:$A$40,0),MATCH($E449,Data!$B$3:$AF$3,0))","v":{"$error":"#N/A"}},null,0]
[null,"Bio jet kerosene","Industry sector","CONSUMPTION","BIOJETKERO","NEIND",{"$f":"OFFSET(Data!$A$3,MATCH($F450,Data!$A$4:$A$40,0),MATCH($E450,Data!$B$3:$AF$3,0))","v":{"$error":"#N/A"}},null,{"$f":"ROUND(IF(H450=0,0,IF(G450=0,0,((H450/G450)-1)*100)),3)","v":0},{"$f":"IF(H450>H449,\"Consumption in the Industry sector cannot be greater than the Total final non-energy use.\",\"\")","v":""}]
[null,"Bio jet kerosene","Total final energy consumption","CONSUMPTION","BIOJETKERO","EFINCONS",{"$f":"OFFSET(Data!$A$3,MATCH($F451,Data!$A$4:$A$40,0),MATCH($E451,Data!$B$3:$AF$3,0))","v":{"$error":"#N/A"}},null,{"$f":"ROUND(IF(H451=0,0,IF(G451=0,0,((H451/G451)-1)*100)),3)","v":0},{"$f":"IF(H452+H454+H455=H451,\"\",\"Unless the breakdown are not available, the total final energy consumption must be equivalent to the sum of its parts.\")","v":""}]
[null,"Bio jet kerosene","Transport sector","CONSUMPTION","BIOJETKERO","ETRANS",{"$f":"OFFSET(Data!$A$3,MATCH($F452,Data!$A$4:$A$40,0),MATCH($E452,Data!$B$3:$AF$3,0))","v":{"$error":"#N/A"}},null,{"$f":"ROUND(IF(H452=0,0,IF(G452=0,0,((H452/G452)-1)*100)),3)","v":0}]
[null,"Bio jet kerosene","of which International aviation","CONSUMPTION","BIOJETKERO","EINTLAIR",{"$f":"OFFSET(Data!$A$3,MATCH($F453,Data!$A$4:$A$40,0),MATCH($E453,Data!$B$3:$AF$3,0))","v":{"$error":"#N/A"}},null,{"$f":"ROUND(IF(H453=0,0,IF(G453=0,0,((H453/G453)-1)*100)),3)","v":0},{"$f":"IF(H453>H452,\"Deliveries for International aviation cannot be greater than the total energy use in the Transport sector.\",\"\")","v":""}]
[null,"Bio jet kerosene","Industry sector","CONSUMPTION","BIOJETKERO","EIND",{"$f":"OFFSET(Data!$A$3,MATCH($F454,Data!$A$4:$A$40,0),MATCH($E454,Data!$B$3:$AF$3,0))","v":{"$error":"#N/A"}},null,0]
[null,"Bio jet kerosene","Other sectors","CONSUMPTION","BIOJETKERO","EOTHER",{"$f":"OFFSET(Data!$A$3,MATCH($F455,Data!$A$4:$A$40,0),MATCH($E455,Data!$B$3:$AF$3,0))","v":{"$error":"#N/A"}},null,0,{"$f":"IF(OR(SUM(H456:H457)=H455,SUM(H456:H457)<H455),\"\",\"The total consumption in Other sectors must not be less than the sum of its parts if reported.\")","v":""}]
[null,"Bio jet kerosene","of which Residential","CONSUMPTION","BIOJETKERO","ERESIDENT",{"$f":"OFFSET(Data!$A$3,MATCH($F456,Data!$A$4:$A$40,0),MATCH($E456,Data!$B$3:$AF$3,0))","v":{"$error":"#N/A"}},null,0]
[null,"Bio jet kerosene","of which Commercial/public services","CONSUMPTION","BIOJETKERO","ECOMMPUB",{"$f":"OFFSET(Data!$A$3,MATCH($F457,Data!$A$4:$A$40,0),MATCH($E457,Data!$B$3:$AF$3,0))","v":{"$error":"#N/A"}},null,0]
[null,"Non-bio jet kerosene","Primary product receipts","BALANCE","NONBIOJETK","PPRECPTS",{"$f":"OFFSET(Data!$A$3,MATCH($F458,Data!$A$4:$A$40,0),MATCH($E458,Data!$B$3:$AF$3,0))","v":{"$error":"#N/A"}},null,0]
[null,"Non-bio jet kerosene","Refinery gross output","BALANCE","NONBIOJETK","REFGROUT",{"$f":"OFFSET(Data!$A$3,MATCH($F459,Data!$A$4:$A$40,0),MATCH($E459,Data!$B$3:$AF$3,0))","v":{"$error":"#N/A"}},null,0]
[null,"Non-bio jet kerosene","Recycled products","BALANCE","NONBIOJETK","RECYCLED",{"$f":"OFFSET(Data!$A$3,MATCH($F460,Data!$A$4:$A$40,0),MATCH($E460,Data!$B$3:$AF$3,0))","v":{"$error":"#N/A"}},null,0]
[null,"Non-bio jet kerosene","Refinery fuel","BALANCE","NONBIOJETK","REFFUEL",{"$f":"OFFSET(Data!$A$3,MATCH($F461,Data!$A$4:$A$40,0),MATCH($E461,Data!$B$3:$AF$3,0))","v":{"$error":"#N/A"}},null,0]
[null,"Non-bio jet kerosene","Total Imports (Balance)","BALANCE","NONBIOJETK","TOTIMPSB",{"$f":"OFFSET(Data!$A$3,MATCH($F462,Data!$A$4:$A$40,0),MATCH($E462,Data!$B$3:$AF$3,0))","v":{"$error":"#N/A"}},null,0]
[null,"Non-bio jet kerosene","Total Exports (Balance)","BALANCE","NONBIOJETK","TOTEXPSB",{"$f":"OFFSET(Data!$A$3,MATCH($F463,Data!$A$4:$A$40,0),MATCH($E463,Data!$B$3:$AF$3,0))","v":{"$error":"#N/A"}},null,0]
[null,"Non-bio jet kerosene","International marine bunkers","BALANCE","NONBIOJETK","BUNKERS",{"$f":"OFFSET(Data!$A$3,MATCH($F464,Data!$A$4:$A$40,0),MATCH($E464,Data!$B$3:$AF$3,0))","v":{"$error":"#N/A"}},null,0]
[null,"Non-bio jet kerosene","Interproduct transfers","BALANCE","NONBIOJETK","IPTRANSF",{"$f":"OFFSET(Data!$A$3,MATCH($F465,Data!$A$4:$A$40,0),MATCH($E465,Data!$B$3:$AF$3,0))","v":{"$error":"#N/A"}},null,0]
[null,"Non-bio jet kerosene","Products transferred","BALANCE","NONBIOJETK","PTRANSF",{"$f":"OFFSET(Data!$A$3,MATCH($F466,Data!$A$4:$A$40,0),MATCH($E466,Data!$B$3:$AF$3,0))","v":{"$error":"#N/A"}},null,0]
[null,"Non-bio jet kerosene","Stock Changes (National Territory)","BALANCE","NONBIOJETK","STCHANAT",{"$f":"OFFSET(Data!$A$3,MATCH($F467,Data!$A$4:$A$40,0),MATCH($E467,Data!$B$3:$AF$3,0))","v":{"$error":"#N/A"}},null,0]
[null,"Non-bio jet kerosene","Gross inland deliveries (Calculated)","BALANCE","NONBIOJETK","GDINCTRC",{"$f":"OFFSET(Data!$A$3,MATCH($F468,Data!$A$4:$A$40,0),MATCH($E468,Data!$B$3:$AF$3,0))","v":{"$error":"#N/A"}},{"$f":"H458+H459+H460-H461+H462-H463-H464+H465-H466+H467","v":0},0]
[null,"Non-bio jet kerosene","Statistical Differences","BALANCE","NONBIOJETK","STATDIFF",{"$f":"OFFSET(Data!$A$3,MATCH($F469,Data!$A$4:$A$40,0),MATCH($E469,Data!$B$3:$AF$3,0))","v":{"$error":"#N/A"}},{"$f":"H468-H470","v":0},0]
[null,"Non-bio jet kerosene","Gross inland deliveries (Observed)","BALANCE","NONBIOJETK","GDINCTRO",{"$f":"OFFSET(Data!$A$3,MATCH($F470,Data!$A$4:$A$40,0),MATCH($E470,Data!$B$3:$AF$3,0))","v":{"$error":"#N/A"}},null,{"$f":"IF(H470=0,0,IF(G470=0,0,((H470/G470)-1)*100))","v":0},{"$f":"IF(OR(H471+H473+H474+H475=H470,H471+H473+H474+H476+H478=H470),\"\",\"Unless the breakdown are not available, the total gross inland deliveries (observed) must be equivalent to the sum of its parts.\")","v":""}]
[null,"Non-bio jet kerosene","Transformation sector","CONSUMPTION","NONBIOJETK","TOTTRANF",{"$f":"OFFSET(Data!$A$3,MATCH($F471,Data!$A$4:$A$40,0),MATCH($E471,Data!$B$3:$AF$3,0))","v":{"$error":"#N/A"}},null,0,{"$f":"IF(H472>H471,\"The Transformation sector demand cannot be less than its memo item.\",\"\")","v":""}]
[null,"Non-bio jet kerosene","of which input to electricity and heat generation","CONSUMPTION","NONBIOJETK","MTOELEHEAT",null,null,null,{"$f":"IF(H472>H471,\"This memo item cannot be more than the Transformation sector total.\",\"\")","v":""}]
[null,"Non-bio jet kerosene","Energy sector","CONSUMPTION","NONBIOJETK","TOTENGY",{"$f":"OFFSET(Data!$A$3,MATCH($F473,Data!$A$4:$A$40,0),MATCH($E473,Data!$B$3:$AF$3,0))","v":{"$error":"#N/A"}},null,{"$f":"IF(H473=0,0,IF(G473=0,0,((H473/G473)-1)*100))","v":0}]
[null,"Non-bio jet kerosene","Distribution losses","CONSUMPTION","NONBIOJETK","DISTLOSS",{"$f":"OFFSET(Data!$A$3,MATCH($F474,Data!$A$4:$A$40,0),MATCH($E474,Data!$B$3:$AF$3,0))","v":{"$error":"#N/A"}},null,0,{"$f":"IF(H474<0,\"Distribution losses cannot be negative.\",\"\")","v":""}]
[null,"Non-bio jet kerosene","Total final consumption","CONSUMPTION","NONBIOJETK","FINCONS",{"$f":"OFFSET(Data!$A$3,MATCH($F475,Data!$A$4:$A$40,0),MATCH($E475,Data!$B$3:$AF$3,0))","v":{"$error":"#N/A"}},null,0,{"$f":"IF(H476+H478=H475,\"\",\"Unless the breakdown are not available, total final consumption must be equivalent to the sum of its final energy use and non-energy use parts.\")","v":""}]
[null,"Non-bio jet kerosene","Total final non-energy use consumption","CONSUMPTION","NONBIOJETK","NEFINCONS",{"$f":"OFFSET(Data!$A$3,MATCH($F476,Data!$A$4:$A$40,0),MATCH($E476,Data!$B$3:$AF$3,0))","v":{"$error":"#N/A"}},null,0]
[null,"Non-bio jet kerosene","Industry sector","CONSUMPTION","NONBIOJETK","NEIND",{"$f":"OFFSET(Data!$A$3,MATCH($F477,Data!$A$4:$A$40,0),MATCH($E477,Data!$B$3:$AF$3,0))","v":{"$error":"#N/A"}},null,{"$f":"ROUND(IF(H477=0,0,IF(G477=0,0,((H477/G477)-1)*100)),3)","v":0},{"$f":"IF(H477>H476,\"Consumption in the Industry sector cannot be greater than the Total final non-energy use.\",\"\")","v":""}]
[null,"Non-bio jet kerosene","Total final energy consumption","CONSUMPTION","NONBIOJETK","EFINCONS",{"$f":"OFFSET(Data!$A$3,MATCH($F478,Data!$A$4:$A$40,0),MATCH($E478,Data!$B$3:$AF$3,0))","v":{"$error":"#N/A"}},null,{"$f":"ROUND(IF(H478=0,0,IF(G478=0,0,((H478/G478)-1)*100)),3)","v":0},{"$f":"IF(H479+H481+H482=H478,\"\",\"Unless the breakdown are not available, the total final energy consumption must be equivalent to the sum of its parts.\")","v":""}]
[null,"Non-bio jet kerosene","Transport sector","CONSUMPTION","NONBIOJETK","ETRANS",{"$f":"OFFSET(Data!$A$3,MATCH($F479,Data!$A$4:$A$40,0),MATCH($E479,Data!$B$3:$AF$3,0))","v":{"$error":"#N/A"}},null,{"$f":"ROUND(IF(H479=0,0,IF(G479=0,0,((H479/G479)-1)*100)),3)","v":0}]
[null,"Non-bio jet kerosene","of which International aviation","CONSUMPTION","NONBIOJETK","EINTLAIR",{"$f":"OFFSET(Data!$A$3,MATCH($F480,Data!$A$4:$A$40,0),MATCH($E480,Data!$B$3:$AF$3,0))","v":{"$error":"#N/A"}},null,{"$f":"ROUND(IF(H480=0,0,IF(G480=0,0,((H480/G480)-1)*100)),3)","v":0},{"$f":"IF(H480>H479,\"Deliveries for International aviation cannot be greater than the total energy use in the Transport sector.\",\"\")","v":""}]
[null,"Non-bio jet kerosene","Industry sector","CONSUMPTION","NONBIOJETK","EIND",{"$f":"OFFSET(Data!$A$3,MATCH($F481,Data!$A$4:$A$40,0),MATCH($E481,Data!$B$3:$AF$3,0))","v":{"$error":"#N/A"}},null,0]
[null,"Non-bio jet kerosene","Other sectors","CONSUMPTION","NONBIOJETK","EOTHER",{"$f":"OFFSET(Data!$A$3,MATCH($F482,Data!$A$4:$A$40,0),MATCH($E482,Data!$B$3:$AF$3,0))","v":{"$error":"#N/A"}},null,0,{"$f":"IF(OR(SUM(H483:H484)=H482,SUM(H483:H484)<H482),\"\",\"The total consumption in Other sectors must not be less than the sum of its parts if reported.\")","v":""}]
[null,"Non-bio jet kerosene","of which Residential","CONSUMPTION","NONBIOJETK","ERESIDENT",{"$f":"OFFSET(Data!$A$3,MATCH($F483,Data!$A$4:$A$40,0),MATCH($E483,Data!$B$3:$AF$3,0))","v":{"$error":"#N/A"}},null,0]
[null,"Non-bio jet kerosene","of which Commercial/public services","CONSUMPTION","NONBIOJETK","ECOMMPUB",{"$f":"OFFSET(Data!$A$3,MATCH($F484,Data!$A$4:$A$40,0),MATCH($E484,Data!$B$3:$AF$3,0))","v":{"$error":"#N/A"}},null,0]
[null,"Other kerosene","Primary product receipts","BALANCE","OTHKERO","PPRECPTS",{"$f":"OFFSET(Data!$A$3,MATCH($F485,Data!$A$4:$A$40,0),MATCH($E485,Data!$B$3:$AF$3,0))","v":{"$error":"#N/A"}},null,0]
[null,"Other kerosene","Refinery gross output","BALANCE","OTHKERO","REFGROUT",{"$f":"OFFSET(Data!$A$3,MATCH($F486,Data!$A$4:$A$40,0),MATCH($E486,Data!$B$3:$AF$3,0))","v":{"$error":"#N/A"}},null,0]
[null,"Other kerosene","Recycled products","BALANCE","OTHKERO","RECYCLED",{"$f":"OFFSET(Data!$A$3,MATCH($F487,Data!$A$4:$A$40,0),MATCH($E487,Data!$B$3:$AF$3,0))","v":{"$error":"#N/A"}},null,0]
[null,"Other kerosene","Refinery fuel","BALANCE","OTHKERO","REFFUEL",{"$f":"OFFSET(Data!$A$3,MATCH($F488,Data!$A$4:$A$40,0),MATCH($E488,Data!$B$3:$AF$3,0))","v":{"$error":"#N/A"}},null,0]
[null,"Other kerosene","Total Imports (Balance)","BALANCE","OTHKERO","TOTIMPSB",{"$f":"OFFSET(Data!$A$3,MATCH($F489,Data!$A$4:$A$40,0),MATCH($E489,Data!$B$3:$AF$3,0))","v":{"$error":"#N/A"}},null,0]
[null,"Other kerosene","Total Exports (Balance)","BALANCE","OTHKERO","TOTEXPSB",{"$f":"OFFSET(Data!$A$3,MATCH($F490,Data!$A$4:$A$40,0),MATCH($E490,Data!$B$3:$AF$3,0))","v":{"$error":"#N/A"}},null,0]
[null,"Other kerosene","International marine bunkers","BALANCE","OTHKERO","BUNKERS",{"$f":"OFFSET(Data!$A$3,MATCH($F491,Data!$A$4:$A$40,0),MATCH($E491,Data!$B$3:$AF$3,0))","v":{"$error":"#N/A"}},null,0]
[null,"Other kerosene","Interproduct transfers","BALANCE","OTHKERO","IPTRANSF",{"$f":"OFFSET(Data!$A$3,MATCH($F492,Data!$A$4:$A$40,0),MATCH($E492,Data!$B$3:$AF$3,0))","v":{"$error":"#N/A"}},null,0]
[null,"Other kerosene","Products transferred","BALANCE","OTHKERO","PTRANSF",{"$f":"OFFSET(Data!$A$3,MATCH($F493,Data!$A$4:$A$40,0),MATCH($E493,Data!$B$3:$AF$3,0))","v":{"$error":"#N/A"}},null,{"$f":"IF(H493=0,0,IF(G493=0,0,((H493/G493)-1)*100))","v":0}]
[null,"Other kerosene","Stock Changes (National Territory)","BALANCE","OTHKERO","STCHANAT",{"$f":"OFFSET(Data!$A$3,MATCH($F494,Data!$A$4:$A$40,0),MATCH($E494,Data!$B$3:$AF$3,0))","v":{"$error":"#N/A"}},null,0]
[null,"Other kerosene","Gross inland deliveries (Calculated)","BALANCE","OTHKERO","GDINCTRC",{"$f":"OFFSET(Data!$A$3,MATCH($F495,Data!$A$4:$A$40,0),MATCH($E495,Data!$B$3:$AF$3,0))","v":{"$error":"#N/A"}},{"$f":"H485+H486+H487-H488+H489-H490-H491+H492-H493+H494","v":0},0]
[null,"Other kerosene","Statistical Differences","BALANCE","OTHKERO","STATDIFF",{"$f":"OFFSET(Data!$A$3,MATCH($F496,Data!$A$4:$A$40,0),MATCH($E496,Data!$B$3:$AF$3,0))","v":{"$error":"#N/A"}},{"$f":"H495-H497","v":0},0]
[null,"Other kerosene","Gross inland deliveries (Observed)","BALANCE","OTHKERO","GDINCTRO",{"$f":"OFFSET(Data!$A$3,MATCH($F497,Data!$A$4:$A$40,0),MATCH($E497,Data!$B$3:$AF$3,0))","v":{"$error":"#N/A"}},null,0,{"$f":"IF(OR(H498+H500+H501+H502=H497,H498+H500+H501+H503+H505=H497),\"\",\"Unless the breakdown are not available, the total gross inland deliveries (observed) must be equivalent to the sum of its parts.\")","v":""}]
[null,"Other kerosene","Transformation sector","CONSUMPTION","OTHKERO","TOTTRANF",{"$f":"OFFSET(Data!$A$3,MATCH($F498,Data!$A$4:$A$40,0),MATCH($E498,Data!$B$3:$AF$3,0))","v":{"$error":"#N/A"}},null,0,{"$f":"IF(H499>H498,\"The Transformation sector demand cannot be less than its memo item.\",\"\")","v":""}]
[null,"Other kerosene","of which input to electricity and heat generation","CONSUMPTION","OTHKERO","MTOELEHEAT",null,null,null,{"$f":"IF(H499>H498,\"This memo item cannot be more than the Transformation sector total.\",\"\")","v":""}]
[null,"Other kerosene","Energy sector","CONSUMPTION","OTHKERO","TOTENGY",{"$f":"OFFSET(Data!$A$3,MATCH($F500,Data!$A$4:$A$40,0),MATCH($E500,Data!$B$3:$AF$3,0))","v":{"$error":"#N/A"}},null,{"$f":"IF(H500=0,0,IF(G500=0,0,((H500/G500)-1)*100))","v":0}]
[null,"Other kerosene","Distribution losses","CONSUMPTION","OTHKERO","DISTLOSS",{"$f":"OFFSET(Data!$A$3,MATCH($F501,Data!$A$4:$A$40,0),MATCH($E501,Data!$B$3:$AF$3,0))","v":{"$error":"#N/A"}},null,0,{"$f":"IF(H501<0,\"Distribution losses cannot be negative.\",\"\")","v":""}]
[null,"Other kerosene","Total final consumption","CONSUMPTION","OTHKERO","FINCONS",{"$f":"OFFSET(Data!$A$3,MATCH($F502,Data!$A$4:$A$40,0),MATCH($E502,Data!$B$3:$AF$3,0))","v":{"$error":"#N/A"}},null,0,{"$f":"IF(H503+H505=H502,\"\",\"Unless the breakdown are not available, total final consumption must be equivalent to the sum of its final energy use and non-energy use parts.\")","v":""}]
[null,"Other kerosene","Total final non-energy use consumption","CONSUMPTION","OTHKERO","NEFINCONS",{"$f":"OFFSET(Data!$A$3,MATCH($F503,Data!$A$4:$A$40,0),MATCH($E503,Data!$B$3:$AF$3,0))","v":{"$error":"#N/A"}},null,0]
[null,"Other kerosene","Industry sector","CONSUMPTION","OTHKERO","NEIND",{"$f":"OFFSET(Data!$A$3,MATCH($F504,Data!$A$4:$A$40,0),MATCH($E504,Data!$B$3:$AF$3,0))","v":{"$error":"#N/A"}},null,{"$f":"ROUND(IF(H504=0,0,IF(G504=0,0,((H504/G504)-1)*100)),3)","v":0},{"$f":"IF(H504>H503,\"Consumption in the Industry sector cannot be greater than the Total final non-energy use.\",\"\")","v":""}]
[null,"Other kerosene","Total final energy consumption","CONSUMPTION","OTHKERO","EFINCONS",{"$f":"OFFSET(Data!$A$3,MATCH($F505,Data!$A$4:$A$40,0),MATCH($E505,Data!$B$3:$AF$3,0))","v":{"$error":"#N/A"}},null,{"$f":"ROUND(IF(H505=0,0,IF(G505=0,0,((H505/G505)-1)*100)),3)","v":0},{"$f":"IF(H506+H508+H509=H505,\"\",\"Unless the breakdown are not available, the total final energy consumption must be equivalent to the sum of its parts.\")","v":""}]
[null,"Other kerosene","Transport sector","CONSUMPTION","OTHKERO","ETRANS",{"$f":"OFFSET(Data!$A$3,MATCH($F506,Data!$A$4:$A$40,0),MATCH($E506,Data!$B$3:$AF$3,0))","v":{"$error":"#N/A"}},null,{"$f":"ROUND(IF(H506=0,0,IF(G506=0,0,((H506/G506)-1)*100)),3)","v":0}]
[null,"Other kerosene","of which International aviation","CONSUMPTION","OTHKERO","EINTLAIR",{"$f":"OFFSET(Data!$A$3,MATCH($F507,Data!$A$4:$A$40,0),MATCH($E507,Data!$B$3:$AF$3,0))","v":{"$error":"#N/A"}},null,{"$f":"ROUND(IF(H507=0,0,IF(G507=0,0,((H507/G507)-1)*100)),3)","v":0},{"$f":"IF(H507>H506,\"Deliveries for International aviation cannot be greater than the total energy use in the Transport sector.\",\"\")","v":""}]
[null,"Other kerosene","Industry sector","CONSUMPTION","OTHKERO","EIND",{"$f":"OFFSET(Data!$A$3,MATCH($F508,Data!$A$4:$A$40,0),MATCH($E508,Data!$B$3:$AF$3,0))","v":{"$error":"#N/A"}},null,0]
[null,"Other kerosene","Other sectors","CONSUMPTION","OTHKERO","EOTHER",{"$f":"OFFSET(Data!$A$3,MATCH($F509,Data!$A$4:$A$40,0),MATCH($E509,Data!$B$3:$AF$3,0))","v":{"$error":"#N/A"}},null,0,{"$f":"IF(OR(SUM(H510:H511)=H509,SUM(H510:H511)<H509),\"\",\"The total consumption in Other sectors must not be less than the sum of its parts if reported.\")","v":""}]
[null,"Other kerosene","of which Residential","CONSUMPTION","OTHKERO","ERESIDENT",{"$f":"OFFSET(Data!$A$3,MATCH($F510,Data!$A$4:$A$40,0),MATCH($E510,Data!$B$3:$AF$3,0))","v":{"$error":"#N/A"}},null,0]
[null,"Other kerosene","of which Commercial/public services","CONSUMPTION","OTHKERO","ECOMMPUB",{"$f":"OFFSET(Data!$A$3,MATCH($F511,Data!$A$4:$A$40,0),MATCH($E511,Data!$B$3:$AF$3,0))","v":{"$error":"#N/A"}},null,0]
[null,"Road diesel","Primary product receipts","BALANCE","DIESEL","PPRECPTS",{"$f":"OFFSET(Data!$A$3,MATCH($F512,Data!$A$4:$A$40,0),MATCH($E512,Data!$B$3:$AF$3,0))","v":{"$error":"#N/A"}},null,{"$f":"IF(H512=0,0,IF(G512=0,0,((H512/G512)-1)*100))","v":0},{"$f":"IF(H512+H539=H566,\"\",\"Sum of Road diesel and Heating & other gasoil not equal to sum of Biodiesel and Non-bio gas/diesel.\")","v":""}]
[null,"Road diesel","Refinery gross output","BALANCE","DIESEL","REFGROUT",{"$f":"OFFSET(Data!$A$3,MATCH($F513,Data!$A$4:$A$40,0),MATCH($E513,Data!$B$3:$AF$3,0))","v":{"$error":"#N/A"}},null,0,""]
[null,"Road diesel","Recycled products","BALANCE","DIESEL","RECYCLED",{"$f":"OFFSET(Data!$A$3,MATCH($F514,Data!$A$4:$A$40,0),MATCH($E514,Data!$B$3:$AF$3,0))","v":{"$error":"#N/A"}},null,0,""]
[null,"Road diesel","Refinery fuel","BALANCE","DIESEL","REFFUEL",{"$f":"OFFSET(Data!$A$3,MATCH($F515,Data!$A$4:$A$40,0),MATCH($E515,Data!$B$3:$AF$3,0))","v":{"$error":"#N/A"}},null,0,""]
[null,"Road diesel","Total Imports (Balance)","BALANCE","DIESEL","TOTIMPSB",{"$f":"OFFSET(Data!$A$3,MATCH($F516,Data!$A$4:$A$40,0),MATCH($E516,Data!$B$3:$AF$3,0))","v":{"$error":"#N/A"}},null,0,""]
[null,"Road diesel","Total Exports (Balance)","BALANCE","DIESEL","TOTEXPSB",{"$f":"OFFSET(Data!$A$3,MATCH($F517,Data!$A$4:$A$40,0),MATCH($E517,Data!$B$3:$AF$3,0))","v":{"$error":"#N/A"}},null,0,""]
[null,"Road diesel","International marine bunkers","BALANCE","DIESEL","BUNKERS",{"$f":"OFFSET(Data!$A$3,MATCH($F518,Data!$A$4:$A$40,0),MATCH($E518,Data!$B$3:$AF$3,0))","v":{"$error":"#N/A"}},null,0,""]
[null,"Road diesel","Interproduct transfers","BALANCE","DIESEL","IPTRANSF",{"$f":"OFFSET(Data!$A$3,MATCH($F519,Data!$A$4:$A$40,0),MATCH($E519,Data!$B$3:$AF$3,0))","v":{"$error":"#N/A"}},null,0,""]
[null,"Road diesel","Products transferred","BALANCE","DIESEL","PTRANSF",{"$f":"OFFSET(Data!$A$3,MATCH($F520,Data!$A$4:$A$40,0),MATCH($E520,Data!$B$3:$AF$3,0))","v":{"$error":"#N/A"}},null,0,""]
[null,"Road diesel","Stock Changes (National Territory)","BALANCE","DIESEL","STCHANAT",{"$f":"OFFSET(Data!$A$3,MATCH($F521,Data!$A$4:$A$40,0),MATCH($E521,Data!$B$3:$AF$3,0))","v":{"$error":"#N/A"}},null,0,""]
[null,"Road diesel","Gross inland deliveries (Calculated)","BALANCE","DIESEL","GDINCTRC",{"$f":"OFFSET(Data!$A$3,MATCH($F522,Data!$A$4:$A$40,0),MATCH($E522,Data!$B$3:$AF$3,0))","v":{"$error":"#N/A"}},{"$f":"H512+H513+H514-H515+H516-H517-H518+H519-H520+H521","v":0},0,""]
[null,"Road diesel","Statistical Differences","BALANCE","DIESEL","STATDIFF",{"$f":"OFFSET(Data!$A$3,MATCH($F523,Data!$A$4:$A$40,0),MATCH($E523,Data!$B$3:$AF$3,0))","v":{"$error":"#N/A"}},{"$f":"H522-H524","v":0},0,""]
[null,"Road diesel","Gross inland deliveries (Observed)","BALANCE","DIESEL","GDINCTRO",{"$f":"OFFSET(Data!$A$3,MATCH($F524,Data!$A$4:$A$40,0),MATCH($E524,Data!$B$3:$AF$3,0))","v":{"$error":"#N/A"}},null,0,{"$f":"IF(OR(H525+H527+H528+H529=H524,H525+H527+H528+H530+H532=H524),\"\",\"Unless the breakdown are not available, the total gross inland deliveries (observed) must be equivalent to the sum of its parts.\")","v":""}]
[null,"Road diesel","Transformation sector","CONSUMPTION","DIESEL","TOTTRANF",{"$f":"OFFSET(Data!$A$3,MATCH($F525,Data!$A$4:$A$40,0),MATCH($E525,Data!$B$3:$AF$3,0))","v":{"$error":"#N/A"}},null,0,{"$f":"IF(H526>H525,\"The Transformation sector demand cannot be less than its memo item.\",\"\")","v":""}]
[null,"Road diesel","of which input to electricity and heat generation","CONSUMPTION","DIESEL","MTOELEHEAT",null,null,null,{"$f":"IF(H526>H525,\"This memo item cannot be more than the Transformation sector total.\",\"\")","v":""}]
[null,"Road diesel","Energy sector","CONSUMPTION","DIESEL","TOTENGY",{"$f":"OFFSET(Data!$A$3,MATCH($F527,Data!$A$4:$A$40,0),MATCH($E527,Data!$B$3:$AF$3,0))","v":{"$error":"#N/A"}},null,{"$f":"IF(H527=0,0,IF(G527=0,0,((H527/G527)-1)*100))","v":0}]
[null,"Road diesel","Distribution losses","CONSUMPTION","DIESEL","DISTLOSS",{"$f":"OFFSET(Data!$A$3,MATCH($F528,Data!$A$4:$A$40,0),MATCH($E528,Data!$B$3:$AF$3,0))","v":{"$error":"#N/A"}},null,0,{"$f":"IF(H528<0,\"Distribution losses cannot be negative.\",\"\")","v":""}]
[null,"Road diesel","Total final consumption","CONSUMPTION","DIESEL","FINCONS",{"$f":"OFFSET(Data!$A$3,MATCH($F529,Data!$A$4:$A$40,0),MATCH($E529,Data!$B$3:$AF$3,0))","v":{"$error":"#N/A"}},null,0,{"$f":"IF(H530+H532=H529,\"\",\"Unless the breakdown are not available, total final consumption must be equivalent to the sum of its final energy use and non-energy use parts.\")","v":""}]
[null,"Road diesel","Total final non-energy use consumption","CONSUMPTION","DIESEL","NEFINCONS",{"$f":"OFFSET(Data!$A$3,MATCH($F530,Data!$A$4:$A$40,0),MATCH($E530,Data!$B$3:$AF$3,0))","v":{"$error":"#N/A"}},null,0]
[null,"Road diesel","Industry sector","CONSUMPTION","DIESEL","NEIND",{"$f":"OFFSET(Data!$A$3,MATCH($F531,Data!$A$4:$A$40,0),MATCH($E531,Data!$B$3:$AF$3,0))","v":{"$error":"#N/A"}},null,{"$f":"ROUND(IF(H531=0,0,IF(G531=0,0,((H531/G531)-1)*100)),3)","v":0},{"$f":"IF(H531>H530,\"Consumption in the Industry sector cannot be greater than the Total final non-energy use.\",\"\")","v":""}]
[null,"Road diesel","Total final energy consumption","CONSUMPTION","DIESEL","EFINCONS",{"$f":"OFFSET(Data!$A$3,MATCH($F532,Data!$A$4:$A$40,0),MATCH($E532,Data!$B$3:$AF$3,0))","v":{"$error":"#N/A"}},null,{"$f":"ROUND(IF(H532=0,0,IF(G532=0,0,((H532/G532)-1)*100)),3)","v":0},{"$f":"IF(H533+H535+H536=H532,\"\",\"Unless the breakdown are not available, the total final energy consumption must be equivalent to the sum of its parts.\")","v":""}]
[null,"Road diesel","Transport sector","CONSUMPTION","DIESEL","ETRANS",{"$f":"OFFSET(Data!$A$3,MATCH($F533,Data!$A$4:$A$40,0),MATCH($E533,Data!$B$3:$AF$3,0))","v":{"$error":"#N/A"}},null,{"$f":"ROUND(IF(H533=0,0,IF(G533=0,0,((H533/G533)-1)*100)),3)","v":0}]
[null,"Road diesel","of which International aviation","CONSUMPTION","DIESEL","EINTLAIR",{"$f":"OFFSET(Data!$A$3,MATCH($F534,Data!$A$4:$A$40,0),MATCH($E534,Data!$B$3:$AF$3,0))","v":{"$error":"#N/A"}},null,{"$f":"ROUND(IF(H534=0,0,IF(G534=0,0,((H534/G534)-1)*100)),3)","v":0},{"$f":"IF(H534>H533,\"Deliveries for International aviation cannot be greater than the total energy use in the Transport sector.\",\"\")","v":""}]
[null,"Road diesel","Industry sector","CONSUMPTION","DIESEL","EIND",{"$f":"OFFSET(Data!$A$3,MATCH($F535,Data!$A$4:$A$40,0),MATCH($E535,Data!$B$3:$AF$3,0))","v":{"$error":"#N/A"}},null,0]
[null,"Road diesel","Other sectors","CONSUMPTION","DIESEL","EOTHER",{"$f":"OFFSET(Data!$A$3,MATCH($F536,Data!$A$4:$A$40,0),MATCH($E536,Data!$B$3:$AF$3,0))","v":{"$error":"#N/A"}},null,0,{"$f":"IF(OR(SUM(H537:H538)=H536,SUM(H537:H538)<H536),\"\",\"The total consumption in Other sectors must not be less than the sum of its parts if reported.\")","v":""}]
[null,"Road diesel","of which Residential","CONSUMPTION","DIESEL","ERESIDENT",{"$f":"OFFSET(Data!$A$3,MATCH($F537,Data!$A$4:$A$40,0),MATCH($E537,Data!$B$3:$AF$3,0))","v":{"$error":"#N/A"}},null,0]
[null,"Road diesel","of which Commercial/public services","CONSUMPTION","DIESEL","ECOMMPUB",{"$f":"OFFSET(Data!$A$3,MATCH($F538,Data!$A$4:$A$40,0),MATCH($E538,Data!$B$3:$AF$3,0))","v":{"$error":"#N/A"}},null,0]
[null,"Heating and other gasoil","Primary product receipts","BALANCE","HEATOIL","PPRECPTS",{"$f":"OFFSET(Data!$A$3,MATCH($F539,Data!$A$4:$A$40,0),MATCH($E539,Data!$B$3:$AF$3,0))","v":{"$error":"#N/A"}},null,{"$f":"IF(H539=0,0,IF(G539=0,0,((H539/G539)-1)*100))","v":0},{"$f":"IF(H512+H539=H566,\"\",\"Sum of Road diesel and Heating & other gasoil not equal to sum of Biodiesel and Non-bio gas/diesel.\")","v":""}]
[null,"Heating and other gasoil","Refinery gross output","BALANCE","HEATOIL","REFGROUT",{"$f":"OFFSET(Data!$A$3,MATCH($F540,Data!$A$4:$A$40,0),MATCH($E540,Data!$B$3:$AF$3,0))","v":{"$error":"#N/A"}},null,0,""]
[null,"Heating and other gasoil","Recycled products","BALANCE","HEATOIL","RECYCLED",{"$f":"OFFSET(Data!$A$3,MATCH($F541,Data!$A$4:$A$40,0),MATCH($E541,Data!$B$3:$AF$3,0))","v":{"$error":"#N/A"}},null,0,""]
[null,"Heating and other gasoil","Refinery fuel","BALANCE","HEATOIL","REFFUEL",{"$f":"OFFSET(Data!$A$3,MATCH($F542,Data!$A$4:$A$40,0),MATCH($E542,Data!$B$3:$AF$3,0))","v":{"$error":"#N/A"}},null,0,""]
[null,"Heating and other gasoil","Total Imports (Balance)","BALANCE","HEATOIL","TOTIMPSB",{"$f":"OFFSET(Data!$A$3,MATCH($F543,Data!$A$4:$A$40,0),MATCH($E543,Data!$B$3:$AF$3,0))","v":{"$error":"#N/A"}},null,0,""]
[null,"Heating and other gasoil","Total Exports (Balance)","BALANCE","HEATOIL","TOTEXPSB",{"$f":"OFFSET(Data!$A$3,MATCH($F544,Data!$A$4:$A$40,0),MATCH($E544,Data!$B$3:$AF$3,0))","v":{"$error":"#N/A"}},null,0,""]
[null,"Heating and other gasoil","International marine bunkers","BALANCE","HEATOIL","BUNKERS",{"$f":"OFFSET(Data!$A$3,MATCH($F545,Data!$A$4:$A$40,0),MATCH($E545,Data!$B$3:$AF$3,0))","v":{"$error":"#N/A"}},null,0,""]
[null,"Heating and other gasoil","Interproduct transfers","BALANCE","HEATOIL","IPTRANSF",{"$f":"OFFSET(Data!$A$3,MATCH($F546,Data!$A$4:$A$40,0),MATCH($E546,Data!$B$3:$AF$3,0))","v":{"$error":"#N/A"}},null,0,""]
[null,"Heating and other gasoil","Products transferred","BALANCE","HEATOIL","PTRANSF",{"$f":"OFFSET(Data!$A$3,MATCH($F547,Data!$A$4:$A$40,0),MATCH($E547,Data!$B$3:$AF$3,0))","v":{"$error":"#N/A"}},null,0,""]
[null,"Heating and other gasoil","Stock Changes (National Territory)","BALANCE","HEATOIL","STCHANAT",{"$f":"OFFSET(Data!$A$3,MATCH($F548,Data!$A$4:$A$40,0),MATCH($E548,Data!$B$3:$AF$3,0))","v":{"$error":"#N/A"}},null,0,""]
[null,"Heating and other gasoil","Gross inland deliveries (Calculated)","BALANCE","HEATOIL","GDINCTRC",{"$f":"OFFSET(Data!$A$3,MATCH($F549,Data!$A$4:$A$40,0),MATCH($E549,Data!$B$3:$AF$3,0))","v":{"$error":"#N/A"}},{"$f":"H539+H540+H541-H542+H543-H544-H545+H546-H547+H548","v":0},0,""]
[null,"Heating and other gasoil","Statistical Differences","BALANCE","HEATOIL","STATDIFF",{"$f":"OFFSET(Data!$A$3,MATCH($F550,Data!$A$4:$A$40,0),MATCH($E550,Data!$B$3:$AF$3,0))","v":{"$error":"#N/A"}},{"$f":"H549-H551","v":0},0,""]
[null,"Heating and other gasoil","Gross inland deliveries (Observed)","BALANCE","HEATOIL","GDINCTRO",{"$f":"OFFSET(Data!$A$3,MATCH($F551,Data!$A$4:$A$40,0),MATCH($E551,Data!$B$3:$AF$3,0))","v":{"$error":"#N/A"}},null,0,{"$f":"IF(OR(H552+H554+H555+H556=H551,H552+H554+H555+H557+H559=H551),\"\",\"Unless the breakdown are not available, the total gross inland deliveries (observed) must be equivalent to the sum of its parts.\")","v":""}]
[null,"Heating and other gasoil","Transformation sector","CONSUMPTION","HEATOIL","TOTTRANF",{"$f":"OFFSET(Data!$A$3,MATCH($F552,Data!$A$4:$A$40,0),MATCH($E552,Data!$B$3:$AF$3,0))","v":{"$error":"#N/A"}},null,0,{"$f":"IF(H553>H552,\"The Transformation sector demand cannot be less than its memo item.\",\"\")","v":""}]
[null,"Heating and other gasoil","of which input to electricity and heat generation","CONSUMPTION","HEATOIL","MTOELEHEAT",null,null,null,{"$f":"IF(H553>H552,\"This memo item cannot be more than the Transformation sector total.\",\"\")","v":""}]
[null,"Heating and other gasoil","Energy sector","CONSUMPTION","HEATOIL","TOTENGY",{"$f":"OFFSET(Data!$A$3,MATCH($F554,Data!$A$4:$A$40,0),MATCH($E554,Data!$B$3:$AF$3,0))","v":{"$error":"#N/A"}},null,{"$f":"IF(H554=0,0,IF(G554=0,0,((H554/G554)-1)*100))","v":0}]
[null,"Heating and other gasoil","Distribution losses","CONSUMPTION","HEATOIL","DISTLOSS",{"$f":"OFFSET(Data!$A$3,MATCH($F555,Data!$A$4:$A$40,0),MATCH($E555,Data!$B$3:$AF$3,0))","v":{"$error":"#N/A"}},null,0,{"$f":"IF(H555<0,\"Distribution losses cannot be negative.\",\"\")","v":""}]
[null,"Heating and other gasoil","Total final consumption","CONSUMPTION","HEATOIL","FINCONS",{"$f":"OFFSET(Data!$A$3,MATCH($F556,Data!$A$4:$A$40,0),MATCH($E556,Data!$B$3:$AF$3,0))","v":{"$error":"#N/A"}},null,0,{"$f":"IF(H557+H559=H556,\"\",\"Unless the breakdown are not available, total final consumption must be equivalent to the sum of its final energy use and non-energy use parts.\")","v":""}]
[null,"Heating and other gasoil","Total final non-energy use consumption","CONSUMPTION","HEATOIL","NEFINCONS",{"$f":"OFFSET(Data!$A$3,MATCH($F557,Data!$A$4:$A$40,0),MATCH($E557,Data!$B$3:$AF$3,0))","v":{"$error":"#N/A"}},null,0]
[null,"Heating and other gasoil","Industry sector","CONSUMPTION","HEATOIL","NEIND",{"$f":"OFFSET(Data!$A$3,MATCH($F558,Data!$A$4:$A$40,0),MATCH($E558,Data!$B$3:$AF$3,0))","v":{"$error":"#N/A"}},null,{"$f":"ROUND(IF(H558=0,0,IF(G558=0,0,((H558/G558)-1)*100)),3)","v":0},{"$f":"IF(H558>H557,\"Consumption in the Industry sector cannot be greater than the Total final non-energy use.\",\"\")","v":""}]
[null,"Heating and other gasoil","Total final energy consumption","CONSUMPTION","HEATOIL","EFINCONS",{"$f":"OFFSET(Data!$A$3,MATCH($F559,Data!$A$4:$A$40,0),MATCH($E559,Data!$B$3:$AF$3,0))","v":{"$error":"#N/A"}},null,{"$f":"ROUND(IF(H559=0,0,IF(G559=0,0,((H559/G559)-1)*100)),3)","v":0},{"$f":"IF(H560+H562+H563=H559,\"\",\"Unless the breakdown are not available, the total final energy consumption must be equivalent to the sum of its parts.\")","v":""}]
[null,"Heating and other gasoil","Transport sector","CONSUMPTION","HEATOIL","ETRANS",{"$f":"OFFSET(Data!$A$3,MATCH($F560,Data!$A$4:$A$40,0),MATCH($E560,Data!$B$3:$AF$3,0))","v":{"$error":"#N/A"}},null,{"$f":"ROUND(IF(H560=0,0,IF(G560=0,0,((H560/G560)-1)*100)),3)","v":0}]
[null,"Heating and other gasoil","of which International aviation","CONSUMPTION","HEATOIL","EINTLAIR",{"$f":"OFFSET(Data!$A$3,MATCH($F561,Data!$A$4:$A$40,0),MATCH($E561,Data!$B$3:$AF$3,0))","v":{"$error":"#N/A"}},null,{"$f":"ROUND(IF(H561=0,0,IF(G561=0,0,((H561/G561)-1)*100)),3)","v":0},{"$f":"IF(H561>H560,\"Deliveries for International aviation cannot be greater than the total energy use in the Transport sector.\",\"\")","v":""}]
[null,"Heating and other gasoil","Industry sector","CONSUMPTION","HEATOIL","EIND",{"$f":"OFFSET(Data!$A$3,MATCH($F562,Data!$A$4:$A$40,0),MATCH($E562,Data!$B$3:$AF$3,0))","v":{"$error":"#N/A"}},null,{"$f":"ROUND(IF(H562=0,0,IF(G562=0,0,((H562/G562)-1)*100)),3)","v":0}]
[null,"Heating and other gasoil","Other sectors","CONSUMPTION","HEATOIL","EOTHER",{"$f":"OFFSET(Data!$A$3,MATCH($F563,Data!$A$4:$A$40,0),MATCH($E563,Data!$B$3:$AF$3,0))","v":{"$error":"#N/A"}},null,0,{"$f":"IF(OR(SUM(H564:H565)=H563,SUM(H564:H565)<H563),\"\",\"The total consumption in Other sectors must not be less than the sum of its parts if reported.\")","v":""}]
[null,"Heating and other gasoil","of which Residential","CONSUMPTION","HEATOIL","ERESIDENT",{"$f":"OFFSET(Data!$A$3,MATCH($F564,Data!$A$4:$A$40,0),MATCH($E564,Data!$B$3:$AF$3,0))","v":{"$error":"#N/A"}},null,0]
[null,"Heating and other gasoil","of which Commercial/public services","CONSUMPTION","HEATOIL","ECOMMPUB",{"$f":"OFFSET(Data!$A$3,MATCH($F565,Data!$A$4:$A$40,0),MATCH($E565,Data!$B$3:$AF$3,0))","v":{"$error":"#N/A"}},null,0]
[null,"Total gas/diesel oil","Primary product receipts","BALANCE","GASDIES","PPRECPTS",{"$f":"OFFSET(Data!$A$3,MATCH($F566,Data!$A$4:$A$40,0),MATCH($E566,Data!$B$3:$AF$3,0))","v":{"$error":"#N/A"}},{"$f":"H593+H620","v":0},0]
[null,"Total gas/diesel oil","Refinery gross output","BALANCE","GASDIES","REFGROUT",{"$f":"OFFSET(Data!$A$3,MATCH($F567,Data!$A$4:$A$40,0),MATCH($E567,Data!$B$3:$AF$3,0))","v":{"$error":"#N/A"}},0,0]
[null,"Total gas/diesel oil","Recycled products","BALANCE","GASDIES","RECYCLED",{"$f":"OFFSET(Data!$A$3,MATCH($F568,Data!$A$4:$A$40,0),MATCH($E568,Data!$B$3:$AF$3,0))","v":{"$error":"#N/A"}},0,0]
[null,"Total gas/diesel oil","Refinery fuel","BALANCE","GASDIES","REFFUEL",{"$f":"OFFSET(Data!$A$3,MATCH($F569,Data!$A$4:$A$40,0),MATCH($E569,Data!$B$3:$AF$3,0))","v":{"$error":"#N/A"}},0,0]
[null,"Total gas/diesel oil","Total Imports (Balance)","BALANCE","GASDIES","TOTIMPSB",{"$f":"OFFSET(Data!$A$3,MATCH($F570,Data!$A$4:$A$40,0),MATCH($E570,Data!$B$3:$AF$3,0))","v":{"$error":"#N/A"}},0,0]
[null,"Total gas/diesel oil","Total Exports (Balance)","BALANCE","GASDIES","TOTEXPSB",{"$f":"OFFSET(Data!$A$3,MATCH($F571,Data!$A$4:$A$40,0),MATCH($E571,Data!$B$3:$AF$3,0))","v":{"$error":"#N/A"}},0,0]
[null,"Total gas/diesel oil","International marine bunkers","BALANCE","GASDIES","BUNKERS",{"$f":"OFFSET(Data!$A$3,MATCH($F572,Data!$A$4:$A$40,0),MATCH($E572,Data!$B$3:$AF$3,0))","v":{"$error":"#N/A"}},0,0]
[null,"Total gas/diesel oil","Interproduct transfers","BALANCE","GASDIES","IPTRANSF",{"$f":"OFFSET(Data!$A$3,MATCH($F573,Data!$A$4:$A$40,0),MATCH($E573,Data!$B$3:$AF$3,0))","v":{"$error":"#N/A"}},0,0]
[null,"Total gas/diesel oil","Products transferred","BALANCE","GASDIES","PTRANSF",{"$f":"OFFSET(Data!$A$3,MATCH($F574,Data!$A$4:$A$40,0),MATCH($E574,Data!$B$3:$AF$3,0))","v":{"$error":"#N/A"}},0,0]
[null,"Total gas/diesel oil","Stock Changes (National Territory)","BALANCE","GASDIES","STCHANAT",{"$f":"OFFSET(Data!$A$3,MATCH($F575,Data!$A$4:$A$40,0),MATCH($E575,Data!$B$3:$AF$3,0))","v":{"$error":"#N/A"}},0,0]
[null,"Total gas/diesel oil","Gross inland deliveries (Calculated)","BALANCE","GASDIES","GDINCTRC",{"$f":"OFFSET(Data!$A$3,MATCH($F576,Data!$A$4:$A$40,0),MATCH($E576,Data!$B$3:$AF$3,0))","v":{"$error":"#N/A"}},0,0]
[null,"Total gas/diesel oil","Statistical Differences","BALANCE","GASDIES","STATDIFF",{"$f":"OFFSET(Data!$A$3,MATCH($F577,Data!$A$4:$A$40,0),MATCH($E577,Data!$B$3:$AF$3,0))","v":{"$error":"#N/A"}},0,0]
[null,"Total gas/diesel oil","Gross inland deliveries (Observed)","BALANCE","GASDIES","GDINCTRO",{"$f":"OFFSET(Data!$A$3,MATCH($F578,Data!$A$4:$A$40,0),MATCH($E578,Data!$B$3:$AF$3,0))","v":{"$error":"#N/A"}},0,0,{"$f":"IF(OR(H579+H581+H582+H583=H578,H579+H581+H582+H584+H586=H578),\"\",\"Unless the breakdown are not available, the total gross inland deliveries (observed) must be equivalent to the sum of its parts.\")","v":""}]
[null,"Total gas/diesel oil","Transformation sector","CONSUMPTION","GASDIES","TOTTRANF",{"$f":"OFFSET(Data!$A$3,MATCH($F579,Data!$A$4:$A$40,0),MATCH($E579,Data!$B$3:$AF$3,0))","v":{"$error":"#N/A"}},0,0,{"$f":"IF(H580>H579,\"The Transformation sector demand cannot be less than its memo item.\",\"\")","v":""}]
[null,"Total gas/diesel oil","of which input to electricity and heat generation","CONSUMPTION","GASDIES","MTOELEHEAT",null,0,null,{"$f":"IF(H580>H579,\"This memo item cannot be more than the Transformation sector total.\",\"\")","v":""}]
[null,"Total gas/diesel oil","Energy sector","CONSUMPTION","GASDIES","TOTENGY",{"$f":"OFFSET(Data!$A$3,MATCH($F581,Data!$A$4:$A$40,0),MATCH($E581,Data!$B$3:$AF$3,0))","v":{"$error":"#N/A"}},0,0]
[null,"Total gas/diesel oil","Distribution losses","CONSUMPTION","GASDIES","DISTLOSS",{"$f":"OFFSET(Data!$A$3,MATCH($F582,Data!$A$4:$A$40,0),MATCH($E582,Data!$B$3:$AF$3,0))","v":{"$error":"#N/A"}},0,0,{"$f":"IF(H582<0,\"Distribution losses cannot be negative.\",\"\")","v":""}]
[null,"Total gas/diesel oil","Total final consumption","CONSUMPTION","GASDIES","FINCONS",{"$f":"OFFSET(Data!$A$3,MATCH($F583,Data!$A$4:$A$40,0),MATCH($E583,Data!$B$3:$AF$3,0))","v":{"$error":"#N/A"}},0,0,{"$f":"IF(H584+H586=H583,\"\",\"Unless the breakdown are not available, total final consumption must be equivalent to the sum of its final energy use and non-energy use parts.\")","v":""}]
[null,"Total gas/diesel oil","Total final non-energy use consumption","CONSUMPTION","GASDIES","NEFINCONS",{"$f":"OFFSET(Data!$A$3,MATCH($F584,Data!$A$4:$A$40,0),MATCH($E584,Data!$B$3:$AF$3,0))","v":{"$error":"#N/A"}},0,0]
[null,"Total gas/diesel oil","Industry sector","CONSUMPTION","GASDIES","NEIND",{"$f":"OFFSET(Data!$A$3,MATCH($F585,Data!$A$4:$A$40,0),MATCH($E585,Data!$B$3:$AF$3,0))","v":{"$error":"#N/A"}},{"$f":"ROUND(H612+H639,3)","v":0},{"$f":"ROUND(IF(H585=0,0,IF(G585=0,0,((H585/G585)-1)*100)),3)","v":0},{"$f":"IF(H585>H584,\"Consumption in the Industry sector cannot be greater than the Total final non-energy use.\",\"\")","v":""}]
[null,"Total gas/diesel oil","Total final energy consumption","CONSUMPTION","GASDIES","EFINCONS",{"$f":"OFFSET(Data!$A$3,MATCH($F586,Data!$A$4:$A$40,0),MATCH($E586,Data!$B$3:$AF$3,0))","v":{"$error":"#N/A"}},{"$f":"ROUND(H613+H640,3)","v":0},{"$f":"ROUND(IF(H586=0,0,IF(G586=0,0,((H586/G586)-1)*100)),3)","v":0},{"$f":"IF(H587+H589+H590=H586,\"\",\"Unless the breakdown are not available, the total final energy consumption must be equivalent to the sum of its parts.\")","v":""}]
[null,"Total gas/diesel oil","Transport sector","CONSUMPTION","GASDIES","ETRANS",{"$f":"OFFSET(Data!$A$3,MATCH($F587,Data!$A$4:$A$40,0),MATCH($E587,Data!$B$3:$AF$3,0))","v":{"$error":"#N/A"}},{"$f":"ROUND(H614+H641,3)","v":0},{"$f":"ROUND(IF(H587=0,0,IF(G587=0,0,((H587/G587)-1)*100)),3)","v":0}]
[null,"Total gas/diesel oil","of which International aviation","CONSUMPTION","GASDIES","EINTLAIR",{"$f":"OFFSET(Data!$A$3,MATCH($F588,Data!$A$4:$A$40,0),MATCH($E588,Data!$B$3:$AF$3,0))","v":{"$error":"#N/A"}},{"$f":"ROUND(H615+H642,3)","v":0},{"$f":"ROUND(IF(H588=0,0,IF(G588=0,0,((H588/G588)-1)*100)),3)","v":0},{"$f":"IF(H588>H587,\"Deliveries for International aviation cannot be greater than the total energy use in the Transport sector.\",\"\")","v":""}]
[null,"Total gas/diesel oil","Industry sector","CONSUMPTION","GASDIES","EIND",{"$f":"OFFSET(Data!$A$3,MATCH($F589,Data!$A$4:$A$40,0),MATCH($E589,Data!$B$3:$AF$3,0))","v":{"$error":"#N/A"}},{"$f":"H616+H643","v":0},0]
[null,"Total gas/diesel oil","Other sectors","CONSUMPTION","GASDIES","EOTHER",{"$f":"OFFSET(Data!$A$3,MATCH($F590,Data!$A$4:$A$40,0),MATCH($E590,Data!$B$3:$AF$3,0))","v":{"$error":"#N/A"}},{"$f":"H617+H644","v":0},0,{"$f":"IF(OR(SUM(H591:H592)=H590,SUM(H591:H592)<H590),\"\",\"The total consumption in Other sectors must not be less than the sum of its parts if reported.\")","v":""}]
[null,"Total gas/diesel oil","of which Residential","CONSUMPTION","GASDIES","ERESIDENT",{"$f":"OFFSET(Data!$A$3,MATCH($F591,Data!$A$4:$A$40,0),MATCH($E591,Data!$B$3:$AF$3,0))","v":{"$error":"#N/A"}},{"$f":"H618+H645","v":0},0]
[null,"Total gas/diesel oil","of which Commercial/public services","CONSUMPTION","GASDIES","ECOMMPUB",{"$f":"OFFSET(Data!$A$3,MATCH($F592,Data!$A$4:$A$40,0),MATCH($E592,Data!$B$3:$AF$3,0))","v":{"$error":"#N/A"}},{"$f":"ROUND(H619+H646,3)","v":0},0]
[null,"Biodiesels ","Primary product receipts","BALANCE","BIODIESEL","PPRECPTS",{"$f":"OFFSET(Data!$A$3,MATCH($F593,Data!$A$4:$A$40,0),MATCH($E593,Data!$B$3:$AF$3,0))","v":{"$error":"#N/A"}},null,0]
[null,"Biodiesels ","Refinery gross output","BALANCE","BIODIESEL","REFGROUT",{"$f":"OFFSET(Data!$A$3,MATCH($F594,Data!$A$4:$A$40,0),MATCH($E594,Data!$B$3:$AF$3,0))","v":{"$error":"#N/A"}},null,0,{"$f":"IF(H594=0,\"\",\"Caution: Biofuels are normally blended with fossil fuels and are not part of Refinery output.\")","v":""}]
[null,"Biodiesels ","Recycled products","BALANCE","BIODIESEL","RECYCLED",{"$f":"OFFSET(Data!$A$3,MATCH($F595,Data!$A$4:$A$40,0),MATCH($E595,Data!$B$3:$AF$3,0))","v":{"$error":"#N/A"}},null,0]
[null,"Biodiesels ","Refinery fuel","BALANCE","BIODIESEL","REFFUEL",{"$f":"OFFSET(Data!$A$3,MATCH($F596,Data!$A$4:$A$40,0),MATCH($E596,Data!$B$3:$AF$3,0))","v":{"$error":"#N/A"}},null,0]
[null,"Biodiesels ","Total Imports (Balance)","BALANCE","BIODIESEL","TOTIMPSB",{"$f":"OFFSET(Data!$A$3,MATCH($F597,Data!$A$4:$A$40,0),MATCH($E597,Data!$B$3:$AF$3,0))","v":{"$error":"#N/A"}},null,0,{"$f":"IF(H597=0,\"\",\"Imports of biofuels reported in AOS are premixed or traded already-blended with the oil products. Please identify the import origins in the remarks.\")","v":""}]
[null,"Biodiesels ","Total Exports (Balance)","BALANCE","BIODIESEL","TOTEXPSB",{"$f":"OFFSET(Data!$A$3,MATCH($F598,Data!$A$4:$A$40,0),MATCH($E598,Data!$B$3:$AF$3,0))","v":{"$error":"#N/A"}},null,0,{"$f":"IF(H598=0,\"\",\"Exports of biofuels reported in AOS are premixed or traded already-blended with the oil products. Please identify the export destinations in the remarks.\")","v":""}]
[null,"Biodiesels ","International marine bunkers","BALANCE","BIODIESEL","BUNKERS",{"$f":"OFFSET(Data!$A$3,MATCH($F599,Data!$A$4:$A$40,0),MATCH($E599,Data!$B$3:$AF$3,0))","v":{"$error":"#N/A"}},null,0]
[null,"Biodiesels ","Interproduct transfers","BALANCE","BIODIESEL","IPTRANSF",{"$f":"OFFSET(Data!$A$3,MATCH($F600,Data!$A$4:$A$40,0),MATCH($E600,Data!$B$3:$AF$3,0))","v":{"$error":"#N/A"}},null,0]
[null,"Biodiesels ","Products transferred","BALANCE","BIODIESEL","PTRANSF",{"$f":"OFFSET(Data!$A$3,MATCH($F601,Data!$A$4:$A$40,0),MATCH($E601,Data!$B$3:$AF$3,0))","v":{"$error":"#N/A"}},null,0]
[null,"Biodiesels ","Stock Changes (National Territory)","BALANCE","BIODIESEL","STCHANAT",{"$f":"OFFSET(Data!$A$3,MATCH($F602,Data!$A$4:$A$40,0),MATCH($E602,Data!$B$3:$AF$3,0))","v":{"$error":"#N/A"}},null,0]
[null,"Biodiesels ","Gross inland deliveries (Calculated)","BALANCE","BIODIESEL","GDINCTRC",{"$f":"OFFSET(Data!$A$3,MATCH($F603,Data!$A$4:$A$40,0),MATCH($E603,Data!$B$3:$AF$3,0))","v":{"$error":"#N/A"}},{"$f":"H593+H594+H595-H596+H597-H598-H599+H600-H601+H602","v":0},0]
[null,"Biodiesels ","Statistical Differences","BALANCE","BIODIESEL","STATDIFF",{"$f":"OFFSET(Data!$A$3,MATCH($F604,Data!$A$4:$A$40,0),MATCH($E604,Data!$B$3:$AF$3,0))","v":{"$error":"#N/A"}},{"$f":"H603-H605","v":0},0]
[null,"Biodiesels ","Gross inland deliveries (Observed)","BALANCE","BIODIESEL","GDINCTRO",{"$f":"OFFSET(Data!$A$3,MATCH($F605,Data!$A$4:$A$40,0),MATCH($E605,Data!$B$3:$AF$3,0))","v":{"$error":"#N/A"}},null,0,{"$f":"IF(OR(H606+H608+H609+H610=H605,H606+H608+H609+H611+H613=H605),\"\",\"Unless the breakdown are not available, the total gross inland deliveries (observed) must be equivalent to the sum of its parts.\")","v":""}]
[null,"Biodiesels ","Transformation sector","CONSUMPTION","BIODIESEL","TOTTRANF",{"$f":"OFFSET(Data!$A$3,MATCH($F606,Data!$A$4:$A$40,0),MATCH($E606,Data!$B$3:$AF$3,0))","v":{"$error":"#N/A"}},null,0,{"$f":"IF(H607>H606,\"The Transformation sector demand cannot be less than its memo item.\",\"\")","v":""}]
[null,"Biodiesels ","of which input to electricity and heat generation","CONSUMPTION","BIODIESEL","MTOELEHEAT",null,null,null,{"$f":"IF(H607>H606,\"This memo item cannot be more than the Transformation sector total.\",\"\")","v":""}]
[null,"Biodiesels ","Energy sector","CONSUMPTION","BIODIESEL","TOTENGY",{"$f":"OFFSET(Data!$A$3,MATCH($F608,Data!$A$4:$A$40,0),MATCH($E608,Data!$B$3:$AF$3,0))","v":{"$error":"#N/A"}},null,{"$f":"IF(H608=0,0,IF(G608=0,0,((H608/G608)-1)*100))","v":0}]
[null,"Biodiesels ","Distribution losses","CONSUMPTION","BIODIESEL","DISTLOSS",{"$f":"OFFSET(Data!$A$3,MATCH($F609,Data!$A$4:$A$40,0),MATCH($E609,Data!$B$3:$AF$3,0))","v":{"$error":"#N/A"}},null,0,{"$f":"IF(H609<0,\"Distribution losses cannot be negative.\",\"\")","v":""}]
[null,"Biodiesels ","Total final consumption","CONSUMPTION","BIODIESEL","FINCONS",{"$f":"OFFSET(Data!$A$3,MATCH($F610,Data!$A$4:$A$40,0),MATCH($E610,Data!$B$3:$AF$3,0))","v":{"$error":"#N/A"}},null,0,{"$f":"IF(H611+H613=H610,\"\",\"Unless the breakdown are not available, total final consumption must be equivalent to the sum of its final energy use and non-energy use parts.\")","v":""}]
[null,"Biodiesels ","Total final non-energy use consumption","CONSUMPTION","BIODIESEL","NEFINCONS",{"$f":"OFFSET(Data!$A$3,MATCH($F611,Data!$A$4:$A$40,0),MATCH($E611,Data!$B$3:$AF$3,0))","v":{"$error":"#N/A"}},null,0]
[null,"Biodiesels ","Industry sector","CONSUMPTION","BIODIESEL","NEIND",{"$f":"OFFSET(Data!$A$3,MATCH($F612,Data!$A$4:$A$40,0),MATCH($E612,Data!$B$3:$AF$3,0))","v":{"$error":"#N/A"}},null,{"$f":"ROUND(IF(H612=0,0,IF(G612=0,0,((H612/G612)-1)*100)),3)","v":0},{"$f":"IF(H612>H611,\"Consumption in the Industry sector cannot be greater than the Total final non-energy use.\",\"\")","v":""}]
[null,"Biodiesels ","Total final energy consumption","CONSUMPTION","BIODIESEL","EFINCONS",{"$f":"OFFSET(Data!$A$3,MATCH($F613,Data!$A$4:$A$40,0),MATCH($E613,Data!$B$3:$AF$3,0))","v":{"$error":"#N/A"}},null,{"$f":"ROUND(IF(H613=0,0,IF(G613=0,0,((H613/G613)-1)*100)),3)","v":0},{"$f":"IF(H614+H616+H617=H613,\"\",\"Unless the breakdown are not available, the total final energy consumption must be equivalent to the sum of its parts.\")","v":""}]
[null,"Biodiesels ","Transport sector","CONSUMPTION","BIODIESEL","ETRANS",{"$f":"OFFSET(Data!$A$3,MATCH($F614,Data!$A$4:$A$40,0),MATCH($E614,Data!$B$3:$AF$3,0))","v":{"$error":"#N/A"}},null,{"$f":"ROUND(IF(H614=0,0,IF(G614=0,0,((H614/G614)-1)*100)),3)","v":0}]
[null,"Biodiesels ","of which International aviation","CONSUMPTION","BIODIESEL","EINTLAIR",{"$f":"OFFSET(Data!$A$3,MATCH($F615,Data!$A$4:$A$40,0),MATCH($E615,Data!$B$3:$AF$3,0))","v":{"$error":"#N/A"}},null,{"$f":"ROUND(IF(H615=0,0,IF(G615=0,0,((H615/G615)-1)*100)),3)","v":0},{"$f":"IF(H615>H614,\"Deliveries for International aviation cannot be greater than the total energy use in the Transport sector.\",\"\")","v":""}]
[null,"Biodiesels ","Industry sector","CONSUMPTION","BIODIESEL","EIND",{"$f":"OFFSET(Data!$A$3,MATCH($F616,Data!$A$4:$A$40,0),MATCH($E616,Data!$B$3:$AF$3,0))","v":{"$error":"#N/A"}},null,0]
[null,"Biodiesels ","Other sectors","CONSUMPTION","BIODIESEL","EOTHER",{"$f":"OFFSET(Data!$A$3,MATCH($F617,Data!$A$4:$A$40,0),MATCH($E617,Data!$B$3:$AF$3,0))","v":{"$error":"#N/A"}},null,0,{"$f":"IF(OR(SUM(H618:H619)=H617,SUM(H618:H619)<H617),\"\",\"The total consumption in Other sectors must not be less than the sum of its parts if reported.\")","v":""}]
[null,"Biodiesels ","of which Residential","CONSUMPTION","BIODIESEL","ERESIDENT",{"$f":"OFFSET(Data!$A$3,MATCH($F618,Data!$A$4:$A$40,0),MATCH($E618,Data!$B$3:$AF$3,0))","v":{"$error":"#N/A"}},null,0]
[null,"Biodiesels ","of which Commercial/public services","CONSUMPTION","BIODIESEL","ECOMMPUB",{"$f":"OFFSET(Data!$A$3,MATCH($F619,Data!$A$4:$A$40,0),MATCH($E619,Data!$B$3:$AF$3,0))","v":{"$error":"#N/A"}},null,0]
[null,"Non-bio gas/diesel oil","Primary product receipts","BALANCE","NONBIODIES","PPRECPTS",{"$f":"OFFSET(Data!$A$3,MATCH($F620,Data!$A$4:$A$40,0),MATCH($E620,Data!$B$3:$AF$3,0))","v":{"$error":"#N/A"}},null,{"$f":"IF(H620=0,0,IF(G620=0,0,((H620/G620)-1)*100))","v":0}]
[null,"Non-bio gas/diesel oil","Refinery gross output","BALANCE","NONBIODIES","REFGROUT",{"$f":"OFFSET(Data!$A$3,MATCH($F621,Data!$A$4:$A$40,0),MATCH($E621,Data!$B$3:$AF$3,0))","v":{"$error":"#N/A"}},null,0]
[null,"Non-bio gas/diesel oil","Recycled products","BALANCE","NONBIODIES","RECYCLED",{"$f":"OFFSET(Data!$A$3,MATCH($F622,Data!$A$4:$A$40,0),MATCH($E622,Data!$B$3:$AF$3,0))","v":{"$error":"#N/A"}},null,0]
[null,"Non-bio gas/diesel oil","Refinery fuel","BALANCE","NONBIODIES","REFFUEL",{"$f":"OFFSET(Data!$A$3,MATCH($F623,Data!$A$4:$A$40,0),MATCH($E623,Data!$B$3:$AF$3,0))","v":{"$error":"#N/A"}},null,0]
[null,"Non-bio gas/diesel oil","Total Imports (Balance)","BALANCE","NONBIODIES","TOTIMPSB",{"$f":"OFFSET(Data!$A$3,MATCH($F624,Data!$A$4:$A$40,0),MATCH($E624,Data!$B$3:$AF$3,0))","v":{"$error":"#N/A"}},null,0]
[null,"Non-bio gas/diesel oil","Total Exports (Balance)","BALANCE","NONBIODIES","TOTEXPSB",{"$f":"OFFSET(Data!$A$3,MATCH($F625,Data!$A$4:$A$40,0),MATCH($E625,Data!$B$3:$AF$3,0))","v":{"$error":"#N/A"}},null,0]
[null,"Non-bio gas/diesel oil","International marine bunkers","BALANCE","NONBIODIES","BUNKERS",{"$f":"OFFSET(Data!$A$3,MATCH($F626,Data!$A$4:$A$40,0),MATCH($E626,Data!$B$3:$AF$3,0))","v":{"$error":"#N/A"}},null,0]
[null,"Non-bio gas/diesel oil","Interproduct transfers","BALANCE","NONBIODIES","IPTRANSF",{"$f":"OFFSET(Data!$A$3,MATCH($F627,Data!$A$4:$A$40,0),MATCH($E627,Data!$B$3:$AF$3,0))","v":{"$error":"#N/A"}},null,0]
[null,"Non-bio gas/diesel oil","Products transferred","BALANCE","NONBIODIES","PTRANSF",{"$f":"OFFSET(Data!$A$3,MATCH($F628,Data!$A$4:$A$40,0),MATCH($E628,Data!$B$3:$AF$3,0))","v":{"$error":"#N/A"}},null,0]
[null,"Non-bio gas/diesel oil","Stock Changes (National Territory)","BALANCE","NONBIODIES","STCHANAT",{"$f":"OFFSET(Data!$A$3,MATCH($F629,Data!$A$4:$A$40,0),MATCH($E629,Data!$B$3:$AF$3,0))","v":{"$error":"#N/A"}},null,0]
[null,"Non-bio gas/diesel oil","Gross inland deliveries (Calculated)","BALANCE","NONBIODIES","GDINCTRC",{"$f":"OFFSET(Data!$A$3,MATCH($F630,Data!$A$4:$A$40,0),MATCH($E630,Data!$B$3:$AF$3,0))","v":{"$error":"#N/A"}},{"$f":"H620+H621+H622-H623+H624-H625-H626+H627-H628+H629","v":0},0]
[null,"Non-bio gas/diesel oil","Statistical Differences","BALANCE","NONBIODIES","STATDIFF",{"$f":"OFFSET(Data!$A$3,MATCH($F631,Data!$A$4:$A$40,0),MATCH($E631,Data!$B$3:$AF$3,0))","v":{"$error":"#N/A"}},{"$f":"H630-H632","v":0},0]
[null,"Non-bio gas/diesel oil","Gross inland deliveries (Observed)","BALANCE","NONBIODIES","GDINCTRO",{"$f":"OFFSET(Data!$A$3,MATCH($F632,Data!$A$4:$A$40,0),MATCH($E632,Data!$B$3:$AF$3,0))","v":{"$error":"#N/A"}},null,0,{"$f":"IF(OR(H633+H635+H636+H637=H632,H633+H635+H636+H638+H640=H632),\"\",\"Unless the breakdown are not available, the total gross inland deliveries (observed) must be equivalent to the sum of its parts.\")","v":""}]
[null,"Non-bio gas/diesel oil","Transformation sector","CONSUMPTION","NONBIODIES","TOTTRANF",{"$f":"OFFSET(Data!$A$3,MATCH($F633,Data!$A$4:$A$40,0),MATCH($E633,Data!$B$3:$AF$3,0))","v":{"$error":"#N/A"}},null,0,{"$f":"IF(H634>H633,\"The Transformation sector demand cannot be less than its memo item.\",\"\")","v":""}]
[null,"Non-bio gas/diesel oil","of which input to electricity and heat generation","CONSUMPTION","NONBIODIES","MTOELEHEAT",null,null,null,{"$f":"IF(H634>H633,\"This memo item cannot be more than the Transformation sector total.\",\"\")","v":""}]
[null,"Non-bio gas/diesel oil","Energy sector","CONSUMPTION","NONBIODIES","TOTENGY",{"$f":"OFFSET(Data!$A$3,MATCH($F635,Data!$A$4:$A$40,0),MATCH($E635,Data!$B$3:$AF$3,0))","v":{"$error":"#N/A"}},null,{"$f":"IF(H635=0,0,IF(G635=0,0,((H635/G635)-1)*100))","v":0}]
[null,"Non-bio gas/diesel oil","Distribution losses","CONSUMPTION","NONBIODIES","DISTLOSS",{"$f":"OFFSET(Data!$A$3,MATCH($F636,Data!$A$4:$A$40,0),MATCH($E636,Data!$B$3:$AF$3,0))","v":{"$error":"#N/A"}},null,0,{"$f":"IF(H636<0,\"Distribution losses cannot be negative.\",\"\")","v":""}]
[null,"Non-bio gas/diesel oil","Total final consumption","CONSUMPTION","NONBIODIES","FINCONS",{"$f":"OFFSET(Data!$A$3,MATCH($F637,Data!$A$4:$A$40,0),MATCH($E637,Data!$B$3:$AF$3,0))","v":{"$error":"#N/A"}},null,0,{"$f":"IF(H638+H640=H637,\"\",\"Unless the breakdown are not available, total final consumption must be equivalent to the sum of its final energy use and non-energy use parts.\")","v":""}]
[null,"Non-bio gas/diesel oil","Total final non-energy use consumption","CONSUMPTION","NONBIODIES","NEFINCONS",{"$f":"OFFSET(Data!$A$3,MATCH($F638,Data!$A$4:$A$40,0),MATCH($E638,Data!$B$3:$AF$3,0))","v":{"$error":"#N/A"}},null,0]
[null,"Non-bio gas/diesel oil","Industry sector","CONSUMPTION","NONBIODIES","NEIND",{"$f":"OFFSET(Data!$A$3,MATCH($F639,Data!$A$4:$A$40,0),MATCH($E639,Data!$B$3:$AF$3,0))","v":{"$error":"#N/A"}},null,{"$f":"ROUND(IF(H639=0,0,IF(G639=0,0,((H639/G639)-1)*100)),3)","v":0},{"$f":"IF(H639>H638,\"Consumption in the Industry sector cannot be greater than the Total final non-energy use.\",\"\")","v":""}]
[null,"Non-bio gas/diesel oil","Total final energy consumption","CONSUMPTION","NONBIODIES","EFINCONS",{"$f":"OFFSET(Data!$A$3,MATCH($F640,Data!$A$4:$A$40,0),MATCH($E640,Data!$B$3:$AF$3,0))","v":{"$error":"#N/A"}},null,{"$f":"ROUND(IF(H640=0,0,IF(G640=0,0,((H640/G640)-1)*100)),3)","v":0},{"$f":"IF(H641+H643+H644=H640,\"\",\"Unless the breakdown are not available, the total final energy consumption must be equivalent to the sum of its parts.\")","v":""}]
[null,"Non-bio gas/diesel oil","Transport sector","CONSUMPTION","NONBIODIES","ETRANS",{"$f":"OFFSET(Data!$A$3,MATCH($F641,Data!$A$4:$A$40,0),MATCH($E641,Data!$B$3:$AF$3,0))","v":{"$error":"#N/A"}},null,{"$f":"ROUND(IF(H641=0,0,IF(G641=0,0,((H641/G641)-1)*100)),3)","v":0}]
[null,"Non-bio gas/diesel oil","of which International aviation","CONSUMPTION","NONBIODIES","EINTLAIR",{"$f":"OFFSET(Data!$A$3,MATCH($F642,Data!$A$4:$A$40,0),MATCH($E642,Data!$B$3:$AF$3,0))","v":{"$error":"#N/A"}},null,{"$f":"ROUND(IF(H642=0,0,IF(G642=0,0,((H642/G642)-1)*100)),3)","v":0},{"$f":"IF(H642>H641,\"Deliveries for International aviation cannot be greater than the total energy use in the Transport sector.\",\"\")","v":""}]
[null,"Non-bio gas/diesel oil","Industry sector","CONSUMPTION","NONBIODIES","EIND",{"$f":"OFFSET(Data!$A$3,MATCH($F643,Data!$A$4:$A$40,0),MATCH($E643,Data!$B$3:$AF$3,0))","v":{"$error":"#N/A"}},null,0]
[null,"Non-bio gas/diesel oil","Other sectors","CONSUMPTION","NONBIODIES","EOTHER",{"$f":"OFFSET(Data!$A$3,MATCH($F644,Data!$A$4:$A$40,0),MATCH($E644,Data!$B$3:$AF$3,0))","v":{"$error":"#N/A"}},null,0,{"$f":"IF(OR(SUM(H645:H646)=H644,SUM(H645:H646)<H644),\"\",\"The total consumption in Other sectors must not be less than the sum of its parts if reported.\")","v":""}]
[null,"Non-bio gas/diesel oil","of which Residential","CONSUMPTION","NONBIODIES","ERESIDENT",{"$f":"OFFSET(Data!$A$3,MATCH($F645,Data!$A$4:$A$40,0),MATCH($E645,Data!$B$3:$AF$3,0))","v":{"$error":"#N/A"}},null,0]
[null,"Non-bio gas/diesel oil","of which Commercial/public services","CONSUMPTION","NONBIODIES","ECOMMPUB",{"$f":"OFFSET(Data!$A$3,MATCH($F646,Data!$A$4:$A$40,0),MATCH($E646,Data!$B$3:$AF$3,0))","v":{"$error":"#N/A"}},null,0]
[null,"Total fuel oil","Primary product receipts","BALANCE","RESFUEL","PPRECPTS",{"$f":"OFFSET(Data!$A$3,MATCH($F647,Data!$A$4:$A$40,0),MATCH($E647,Data!$B$3:$AF$3,0))","v":{"$error":"#N/A"}},{"$f":"H674+H701","v":0},0]
[null,"Total fuel oil","Refinery gross output","BALANCE","RESFUEL","REFGROUT",{"$f":"OFFSET(Data!$A$3,MATCH($F648,Data!$A$4:$A$40,0),MATCH($E648,Data!$B$3:$AF$3,0))","v":{"$error":"#N/A"}},0,0]
[null,"Total fuel oil","Recycled products","BALANCE","RESFUEL","RECYCLED",{"$f":"OFFSET(Data!$A$3,MATCH($F649,Data!$A$4:$A$40,0),MATCH($E649,Data!$B$3:$AF$3,0))","v":{"$error":"#N/A"}},0,0]
[null,"Total fuel oil","Refinery fuel","BALANCE","RESFUEL","REFFUEL",{"$f":"OFFSET(Data!$A$3,MATCH($F650,Data!$A$4:$A$40,0),MATCH($E650,Data!$B$3:$AF$3,0))","v":{"$error":"#N/A"}},0,0]
[null,"Total fuel oil","Total Imports (Balance)","BALANCE","RESFUEL","TOTIMPSB",{"$f":"OFFSET(Data!$A$3,MATCH($F651,Data!$A$4:$A$40,0),MATCH($E651,Data!$B$3:$AF$3,0))","v":{"$error":"#N/A"}},0,0]
[null,"Total fuel oil","Total Exports (Balance)","BALANCE","RESFUEL","TOTEXPSB",{"$f":"OFFSET(Data!$A$3,MATCH($F652,Data!$A$4:$A$40,0),MATCH($E652,Data!$B$3:$AF$3,0))","v":{"$error":"#N/A"}},0,0]
[null,"Total fuel oil","International marine bunkers","BALANCE","RESFUEL","BUNKERS",{"$f":"OFFSET(Data!$A$3,MATCH($F653,Data!$A$4:$A$40,0),MATCH($E653,Data!$B$3:$AF$3,0))","v":{"$error":"#N/A"}},0,0]
[null,"Total fuel oil","Interproduct transfers","BALANCE","RESFUEL","IPTRANSF",{"$f":"OFFSET(Data!$A$3,MATCH($F654,Data!$A$4:$A$40,0),MATCH($E654,Data!$B$3:$AF$3,0))","v":{"$error":"#N/A"}},0,0]
[null,"Total fuel oil","Products transferred","BALANCE","RESFUEL","PTRANSF",{"$f":"OFFSET(Data!$A$3,MATCH($F655,Data!$A$4:$A$40,0),MATCH($E655,Data!$B$3:$AF$3,0))","v":{"$error":"#N/A"}},0,0]
[null,"Total fuel oil","Stock Changes (National Territory)","BALANCE","RESFUEL","STCHANAT",{"$f":"OFFSET(Data!$A$3,MATCH($F656,Data!$A$4:$A$40,0),MATCH($E656,Data!$B$3:$AF$3,0))","v":{"$error":"#N/A"}},0,0]
[null,"Total fuel oil","Gross inland deliveries (Calculated)","BALANCE","RESFUEL","GDINCTRC",{"$f":"OFFSET(Data!$A$3,MATCH($F657,Data!$A$4:$A$40,0),MATCH($E657,Data!$B$3:$AF$3,0))","v":{"$error":"#N/A"}},0,0]
[null,"Total fuel oil","Statistical Differences","BALANCE","RESFUEL","STATDIFF",{"$f":"OFFSET(Data!$A$3,MATCH($F658,Data!$A$4:$A$40,0),MATCH($E658,Data!$B$3:$AF$3,0))","v":{"$error":"#N/A"}},0,0]
[null,"Total fuel oil","Gross inland deliveries (Observed)","BALANCE","RESFUEL","GDINCTRO",{"$f":"OFFSET(Data!$A$3,MATCH($F659,Data!$A$4:$A$40,0),MATCH($E659,Data!$B$3:$AF$3,0))","v":{"$error":"#N/A"}},0,0,{"$f":"IF(OR(H660+H662+H663+H664=H659,H660+H662+H663+H665+H667=H659),\"\",\"Unless the breakdown are not available, the total gross inland deliveries (observed) must be equivalent to the sum of its parts.\")","v":""}]
[null,"Total fuel oil","Transformation sector","CONSUMPTION","RESFUEL","TOTTRANF",{"$f":"OFFSET(Data!$A$3,MATCH($F660,Data!$A$4:$A$40,0),MATCH($E660,Data!$B$3:$AF$3,0))","v":{"$error":"#N/A"}},0,0,{"$f":"IF(H661>H660,\"The Transformation sector demand cannot be less than its memo item.\",\"\")","v":""}]
[null,"Total fuel oil","of which input to electricity and heat generation","CONSUMPTION","RESFUEL","MTOELEHEAT",null,0,null,{"$f":"IF(H661>H660,\"This memo item cannot be more than the Transformation sector total.\",\"\")","v":""}]
[null,"Total fuel oil","Energy sector","CONSUMPTION","RESFUEL","TOTENGY",{"$f":"OFFSET(Data!$A$3,MATCH($F662,Data!$A$4:$A$40,0),MATCH($E662,Data!$B$3:$AF$3,0))","v":{"$error":"#N/A"}},0,0]
[null,"Total fuel oil","Distribution losses","CONSUMPTION","RESFUEL","DISTLOSS",{"$f":"OFFSET(Data!$A$3,MATCH($F663,Data!$A$4:$A$40,0),MATCH($E663,Data!$B$3:$AF$3,0))","v":{"$error":"#N/A"}},0,0,{"$f":"IF(H663<0,\"Distribution losses cannot be negative.\",\"\")","v":""}]
[null,"Total fuel oil","Total final consumption","CONSUMPTION","RESFUEL","FINCONS",{"$f":"OFFSET(Data!$A$3,MATCH($F664,Data!$A$4:$A$40,0),MATCH($E664,Data!$B$3:$AF$3,0))","v":{"$error":"#N/A"}},0,0,{"$f":"IF(H665+H667=H664,\"\",\"Unless the breakdown are not available, total final consumption must be equivalent to the sum of its final energy use and non-energy use parts.\")","v":""}]
[null,"Total fuel oil","Total final non-energy use consumption","CONSUMPTION","RESFUEL","NEFINCONS",{"$f":"OFFSET(Data!$A$3,MATCH($F665,Data!$A$4:$A$40,0),MATCH($E665,Data!$B$3:$AF$3,0))","v":{"$error":"#N/A"}},0,0]
[null,"Total fuel oil","Industry sector","CONSUMPTION","RESFUEL","NEIND",{"$f":"OFFSET(Data!$A$3,MATCH($F666,Data!$A$4:$A$40,0),MATCH($E666,Data!$B$3:$AF$3,0))","v":{"$error":"#N/A"}},{"$f":"ROUND(H693+H720,3)","v":0},{"$f":"ROUND(IF(H666=0,0,IF(G666=0,0,((H666/G666)-1)*100)),3)","v":0},{"$f":"IF(H666>H665,\"Consumption in the Industry sector cannot be greater than the Total final non-energy use.\",\"\")","v":""}]
[null,"Total fuel oil","Total final energy consumption","CONSUMPTION","RESFUEL","EFINCONS",{"$f":"OFFSET(Data!$A$3,MATCH($F667,Data!$A$4:$A$40,0),MATCH($E667,Data!$B$3:$AF$3,0))","v":{"$error":"#N/A"}},{"$f":"ROUND(H694+H721,3)","v":0},{"$f":"ROUND(IF(H667=0,0,IF(G667=0,0,((H667/G667)-1)*100)),3)","v":0},{"$f":"IF(H668+H670+H671=H667,\"\",\"Unless the breakdown are not available, the total final energy consumption must be equivalent to the sum of its parts.\")","v":""}]
[null,"Total fuel oil","Transport sector","CONSUMPTION","RESFUEL","ETRANS",{"$f":"OFFSET(Data!$A$3,MATCH($F668,Data!$A$4:$A$40,0),MATCH($E668,Data!$B$3:$AF$3,0))","v":{"$error":"#N/A"}},{"$f":"ROUND(H695+H722,3)","v":0},{"$f":"ROUND(IF(H668=0,0,IF(G668=0,0,((H668/G668)-1)*100)),3)","v":0}]
[null,"Total fuel oil","of which International aviation","CONSUMPTION","RESFUEL","EINTLAIR",{"$f":"OFFSET(Data!$A$3,MATCH($F669,Data!$A$4:$A$40,0),MATCH($E669,Data!$B$3:$AF$3,0))","v":{"$error":"#N/A"}},{"$f":"ROUND(H696+H723,3)","v":0},{"$f":"ROUND(IF(H669=0,0,IF(G669=0,0,((H669/G669)-1)*100)),3)","v":0},{"$f":"IF(H669>H668,\"Deliveries for International aviation cannot be greater than the total energy use in the Transport sector.\",\"\")","v":""}]
[null,"Total fuel oil","Industry sector","CONSUMPTION","RESFUEL","EIND",{"$f":"OFFSET(Data!$A$3,MATCH($F670,Data!$A$4:$A$40,0),MATCH($E670,Data!$B$3:$AF$3,0))","v":{"$error":"#N/A"}},{"$f":"H697+H724","v":0},0]
[null,"Total fuel oil","Other sectors","CONSUMPTION","RESFUEL","EOTHER",{"$f":"OFFSET(Data!$A$3,MATCH($F671,Data!$A$4:$A$40,0),MATCH($E671,Data!$B$3:$AF$3,0))","v":{"$error":"#N/A"}},{"$f":"H698+H725","v":0},0,{"$f":"IF(OR(SUM(H672:H673)=H671,SUM(H672:H673)<H671),\"\",\"The total consumption in Other sectors must not be less than the sum of its parts if reported.\")","v":""}]
[null,"Total fuel oil","of which Residential","CONSUMPTION","RESFUEL","ERESIDENT",{"$f":"OFFSET(Data!$A$3,MATCH($F672,Data!$A$4:$A$40,0),MATCH($E672,Data!$B$3:$AF$3,0))","v":{"$error":"#N/A"}},{"$f":"H699+H726","v":0},0]
[null,"Total fuel oil","of which Commercial/public services","CONSUMPTION","RESFUEL","ECOMMPUB",{"$f":"OFFSET(Data!$A$3,MATCH($F673,Data!$A$4:$A$40,0),MATCH($E673,Data!$B$3:$AF$3,0))","v":{"$error":"#N/A"}},{"$f":"ROUND(H700+H727,3)","v":0},0]
[null,"Low Sulphur fuel oil","Primary product receipts","BALANCE","LOWSULF","PPRECPTS",{"$f":"OFFSET(Data!$A$3,MATCH($F674,Data!$A$4:$A$40,0),MATCH($E674,Data!$B$3:$AF$3,0))","v":{"$error":"#N/A"}},null,0]
[null,"Low Sulphur fuel oil","Refinery gross output","BALANCE","LOWSULF","REFGROUT",{"$f":"OFFSET(Data!$A$3,MATCH($F675,Data!$A$4:$A$40,0),MATCH($E675,Data!$B$3:$AF$3,0))","v":{"$error":"#N/A"}},null,0]
[null,"Low Sulphur fuel oil","Recycled products","BALANCE","LOWSULF","RECYCLED",{"$f":"OFFSET(Data!$A$3,MATCH($F676,Data!$A$4:$A$40,0),MATCH($E676,Data!$B$3:$AF$3,0))","v":{"$error":"#N/A"}},null,0]
[null,"Low Sulphur fuel oil","Refinery fuel","BALANCE","LOWSULF","REFFUEL",{"$f":"OFFSET(Data!$A$3,MATCH($F677,Data!$A$4:$A$40,0),MATCH($E677,Data!$B$3:$AF$3,0))","v":{"$error":"#N/A"}},null,0]
[null,"Low Sulphur fuel oil","Total Imports (Balance)","BALANCE","LOWSULF","TOTIMPSB",{"$f":"OFFSET(Data!$A$3,MATCH($F678,Data!$A$4:$A$40,0),MATCH($E678,Data!$B$3:$AF$3,0))","v":{"$error":"#N/A"}},null,0]
[null,"Low Sulphur fuel oil","Total Exports (Balance)","BALANCE","LOWSULF","TOTEXPSB",{"$f":"OFFSET(Data!$A$3,MATCH($F679,Data!$A$4:$A$40,0),MATCH($E679,Data!$B$3:$AF$3,0))","v":{"$error":"#N/A"}},null,0]
[null,"Low Sulphur fuel oil","International marine bunkers","BALANCE","LOWSULF","BUNKERS",{"$f":"OFFSET(Data!$A$3,MATCH($F680,Data!$A$4:$A$40,0),MATCH($E680,Data!$B$3:$AF$3,0))","v":{"$error":"#N/A"}},null,0]
[null,"Low Sulphur fuel oil","Interproduct transfers","BALANCE","LOWSULF","IPTRANSF",{"$f":"OFFSET(Data!$A$3,MATCH($F681,Data!$A$4:$A$40,0),MATCH($E681,Data!$B$3:$AF$3,0))","v":{"$error":"#N/A"}},null,0]
[null,"Low Sulphur fuel oil","Products transferred","BALANCE","LOWSULF","PTRANSF",{"$f":"OFFSET(Data!$A$3,MATCH($F682,Data!$A$4:$A$40,0),MATCH($E682,Data!$B$3:$AF$3,0))","v":{"$error":"#N/A"}},null,0]
[null,"Low Sulphur fuel oil","Stock Changes (National Territory)","BALANCE","LOWSULF","STCHANAT",{"$f":"OFFSET(Data!$A$3,MATCH($F683,Data!$A$4:$A$40,0),MATCH($E683,Data!$B$3:$AF$3,0))","v":{"$error":"#N/A"}},null,0]
[null,"Low Sulphur fuel oil","Gross inland deliveries (Calculated)","BALANCE","LOWSULF","GDINCTRC",{"$f":"OFFSET(Data!$A$3,MATCH($F684,Data!$A$4:$A$40,0),MATCH($E684,Data!$B$3:$AF$3,0))","v":{"$error":"#N/A"}},{"$f":"H674+H675+H676-H677+H678-H679-H680+H681-H682+H683","v":0},0]
[null,"Low Sulphur fuel oil","Statistical Differences","BALANCE","LOWSULF","STATDIFF",{"$f":"OFFSET(Data!$A$3,MATCH($F685,Data!$A$4:$A$40,0),MATCH($E685,Data!$B$3:$AF$3,0))","v":{"$error":"#N/A"}},{"$f":"H684-H686","v":0},0]
[null,"Low Sulphur fuel oil","Gross inland deliveries (Observed)","BALANCE","LOWSULF","GDINCTRO",{"$f":"OFFSET(Data!$A$3,MATCH($F686,Data!$A$4:$A$40,0),MATCH($E686,Data!$B$3:$AF$3,0))","v":{"$error":"#N/A"}},null,{"$f":"IF(H686=0,0,IF(G686=0,0,((H686/G686)-1)*100))","v":0},{"$f":"IF(OR(H687+H689+H690+H691=H686,H687+H689+H690+H692+H694=H686),\"\",\"Unless the breakdown are not available, the total gross inland deliveries (observed) must be equivalent to the sum of its parts.\")","v":""}]
[null,"Low Sulphur fuel oil","Transformation sector","CONSUMPTION","LOWSULF","TOTTRANF",{"$f":"OFFSET(Data!$A$3,MATCH($F687,Data!$A$4:$A$40,0),MATCH($E687,Data!$B$3:$AF$3,0))","v":{"$error":"#N/A"}},null,0,{"$f":"IF(H688>H687,\"The Transformation sector demand cannot be less than its memo item.\",\"\")","v":""}]
[null,"Low Sulphur fuel oil","of which input to electricity and heat generation","CONSUMPTION","LOWSULF","MTOELEHEAT",null,null,null,{"$f":"IF(H688>H687,\"This memo item cannot be more than the Transformation sector total.\",\"\")","v":""}]
[null,"Low Sulphur fuel oil","Energy sector","CONSUMPTION","LOWSULF","TOTENGY",{"$f":"OFFSET(Data!$A$3,MATCH($F689,Data!$A$4:$A$40,0),MATCH($E689,Data!$B$3:$AF$3,0))","v":{"$error":"#N/A"}},null,{"$f":"IF(H689=0,0,IF(G689=0,0,((H689/G689)-1)*100))","v":0}]
[null,"Low Sulphur fuel oil","Distribution losses","CONSUMPTION","LOWSULF","DISTLOSS",{"$f":"OFFSET(Data!$A$3,MATCH($F690,Data!$A$4:$A$40,0),MATCH($E690,Data!$B$3:$AF$3,0))","v":{"$error":"#N/A"}},null,0,{"$f":"IF(H690<0,\"Distribution losses cannot be negative.\",\"\")","v":""}]
[null,"Low Sulphur fuel oil","Total final consumption","CONSUMPTION","LOWSULF","FINCONS",{"$f":"OFFSET(Data!$A$3,MATCH($F691,Data!$A$4:$A$40,0),MATCH($E691,Data!$B$3:$AF$3,0))","v":{"$error":"#N/A"}},null,0,{"$f":"IF(H692+H694=H691,\"\",\"Unless the breakdown are not available, total final consumption must be equivalent to the sum of its final energy use and non-energy use parts.\")","v":""}]
[null,"Low Sulphur fuel oil","Total final non-energy use consumption","CONSUMPTION","LOWSULF","NEFINCONS",{"$f":"OFFSET(Data!$A$3,MATCH($F692,Data!$A$4:$A$40,0),MATCH($E692,Data!$B$3:$AF$3,0))","v":{"$error":"#N/A"}},null,0]
[null,"Low Sulphur fuel oil","Industry sector","CONSUMPTION","LOWSULF","NEIND",{"$f":"OFFSET(Data!$A$3,MATCH($F693,Data!$A$4:$A$40,0),MATCH($E693,Data!$B$3:$AF$3,0))","v":{"$error":"#N/A"}},null,{"$f":"ROUND(IF(H693=0,0,IF(G693=0,0,((H693/G693)-1)*100)),3)","v":0},{"$f":"IF(H693>H692,\"Consumption in the Industry sector cannot be greater than the Total final non-energy use.\",\"\")","v":""}]
[null,"Low Sulphur fuel oil","Total final energy consumption","CONSUMPTION","LOWSULF","EFINCONS",{"$f":"OFFSET(Data!$A$3,MATCH($F694,Data!$A$4:$A$40,0),MATCH($E694,Data!$B$3:$AF$3,0))","v":{"$error":"#N/A"}},null,{"$f":"ROUND(IF(H694=0,0,IF(G694=0,0,((H694/G694)-1)*100)),3)","v":0},{"$f":"IF(H695+H697+H698=H694,\"\",\"Unless the breakdown are not available, the total final energy consumption must be equivalent to the sum of its parts.\")","v":""}]
[null,"Low Sulphur fuel oil","Transport sector","CONSUMPTION","LOWSULF","ETRANS",{"$f":"OFFSET(Data!$A$3,MATCH($F695,Data!$A$4:$A$40,0),MATCH($E695,Data!$B$3:$AF$3,0))","v":{"$error":"#N/A"}},null,{"$f":"ROUND(IF(H695=0,0,IF(G695=0,0,((H695/G695)-1)*100)),3)","v":0}]
[null,"Low Sulphur fuel oil","of which International aviation","CONSUMPTION","LOWSULF","EINTLAIR",{"$f":"OFFSET(Data!$A$3,MATCH($F696,Data!$A$4:$A$40,0),MATCH($E696,Data!$B$3:$AF$3,0))","v":{"$error":"#N/A"}},null,{"$f":"ROUND(IF(H696=0,0,IF(G696=0,0,((H696/G696)-1)*100)),3)","v":0},{"$f":"IF(H696>H695,\"Deliveries for International aviation cannot be greater than the total energy use in the Transport sector.\",\"\")","v":""}]
[null,"Low Sulphur fuel oil","Industry sector","CONSUMPTION","LOWSULF","EIND",{"$f":"OFFSET(Data!$A$3,MATCH($F697,Data!$A$4:$A$40,0),MATCH($E697,Data!$B$3:$AF$3,0))","v":{"$error":"#N/A"}},null,0]
[null,"Low Sulphur fuel oil","Other sectors","CONSUMPTION","LOWSULF","EOTHER",{"$f":"OFFSET(Data!$A$3,MATCH($F698,Data!$A$4:$A$40,0),MATCH($E698,Data!$B$3:$AF$3,0))","v":{"$error":"#N/A"}},null,0,{"$f":"IF(OR(SUM(H699:H700)=H698,SUM(H699:H700)<H698),\"\",\"The total consumption in Other sectors must not be less than the sum of its parts if reported.\")","v":""}]
[null,"Low Sulphur fuel oil","of which Residential","CONSUMPTION","LOWSULF","ERESIDENT",{"$f":"OFFSET(Data!$A$3,MATCH($F699,Data!$A$4:$A$40,0),MATCH($E699,Data!$B$3:$AF$3,0))","v":{"$error":"#N/A"}},null,0]
[null,"Low Sulphur fuel oil","of which Commercial/public services","CONSUMPTION","LOWSULF","ECOMMPUB",{"$f":"OFFSET(Data!$A$3,MATCH($F700,Data!$A$4:$A$40,0),MATCH($E700,Data!$B$3:$AF$3,0))","v":{"$error":"#N/A"}},null,0]
[null,"High Sulphur fuel oil","Primary product receipts","BALANCE","HIGHSULF","PPRECPTS",{"$f":"OFFSET(Data!$A$3,MATCH($F701,Data!$A$4:$A$40,0),MATCH($E701,Data!$B$3:$AF$3,0))","v":{"$error":"#N/A"}},null,{"$f":"IF(H701=0,0,IF(G701=0,0,((H701/G701)-1)*100))","v":0}]
[null,"High Sulphur fuel oil","Refinery gross output","BALANCE","HIGHSULF","REFGROUT",{"$f":"OFFSET(Data!$A$3,MATCH($F702,Data!$A$4:$A$40,0),MATCH($E702,Data!$B$3:$AF$3,0))","v":{"$error":"#N/A"}},null,0]
[null,"High Sulphur fuel oil","Recycled products","BALANCE","HIGHSULF","RECYCLED",{"$f":"OFFSET(Data!$A$3,MATCH($F703,Data!$A$4:$A$40,0),MATCH($E703,Data!$B$3:$AF$3,0))","v":{"$error":"#N/A"}},null,0]
[null,"High Sulphur fuel oil","Refinery fuel","BALANCE","HIGHSULF","REFFUEL",{"$f":"OFFSET(Data!$A$3,MATCH($F704,Data!$A$4:$A$40,0),MATCH($E704,Data!$B$3:$AF$3,0))","v":{"$error":"#N/A"}},null,0]
[null,"High Sulphur fuel oil","Total Imports (Balance)","BALANCE","HIGHSULF","TOTIMPSB",{"$f":"OFFSET(Data!$A$3,MATCH($F705,Data!$A$4:$A$40,0),MATCH($E705,Data!$B$3:$AF$3,0))","v":{"$error":"#N/A"}},null,0]
[null,"High Sulphur fuel oil","Total Exports (Balance)","BALANCE","HIGHSULF","TOTEXPSB",{"$f":"OFFSET(Data!$A$3,MATCH($F706,Data!$A$4:$A$40,0),MATCH($E706,Data!$B$3:$AF$3,0))","v":{"$error":"#N/A"}},null,0]
[null,"High Sulphur fuel oil","International marine bunkers","BALANCE","HIGHSULF","BUNKERS",{"$f":"OFFSET(Data!$A$3,MATCH($F707,Data!$A$4:$A$40,0),MATCH($E707,Data!$B$3:$AF$3,0))","v":{"$error":"#N/A"}},null,0]
[null,"High Sulphur fuel oil","Interproduct transfers","BALANCE","HIGHSULF","IPTRANSF",{"$f":"OFFSET(Data!$A$3,MATCH($F708,Data!$A$4:$A$40,0),MATCH($E708,Data!$B$3:$AF$3,0))","v":{"$error":"#N/A"}},null,0]
[null,"High Sulphur fuel oil","Products transferred","BALANCE","HIGHSULF","PTRANSF",{"$f":"OFFSET(Data!$A$3,MATCH($F709,Data!$A$4:$A$40,0),MATCH($E709,Data!$B$3:$AF$3,0))","v":{"$error":"#N/A"}},null,0]
[null,"High Sulphur fuel oil","Stock Changes (National Territory)","BALANCE","HIGHSULF","STCHANAT",{"$f":"OFFSET(Data!$A$3,MATCH($F710,Data!$A$4:$A$40,0),MATCH($E710,Data!$B$3:$AF$3,0))","v":{"$error":"#N/A"}},null,0]
[null,"High Sulphur fuel oil","Gross inland deliveries (Calculated)","BALANCE","HIGHSULF","GDINCTRC",{"$f":"OFFSET(Data!$A$3,MATCH($F711,Data!$A$4:$A$40,0),MATCH($E711,Data!$B$3:$AF$3,0))","v":{"$error":"#N/A"}},{"$f":"H701+H702+H703-H704+H705-H706-H707+H708-H709+H710","v":0},0]
[null,"High Sulphur fuel oil","Statistical Differences","BALANCE","HIGHSULF","STATDIFF",{"$f":"OFFSET(Data!$A$3,MATCH($F712,Data!$A$4:$A$40,0),MATCH($E712,Data!$B$3:$AF$3,0))","v":{"$error":"#N/A"}},{"$f":"H711-H713","v":0},0]
[null,"High Sulphur fuel oil","Gross inland deliveries (Observed)","BALANCE","HIGHSULF","GDINCTRO",{"$f":"OFFSET(Data!$A$3,MATCH($F713,Data!$A$4:$A$40,0),MATCH($E713,Data!$B$3:$AF$3,0))","v":{"$error":"#N/A"}},null,0,{"$f":"IF(OR(H714+H716+H717+H718=H713,H714+H716+H717+H719+H721=H713),\"\",\"Unless the breakdown are not available, the total gross inland deliveries (observed) must be equivalent to the sum of its parts.\")","v":""}]
[null,"High Sulphur fuel oil","Transformation sector","CONSUMPTION","HIGHSULF","TOTTRANF",{"$f":"OFFSET(Data!$A$3,MATCH($F714,Data!$A$4:$A$40,0),MATCH($E714,Data!$B$3:$AF$3,0))","v":{"$error":"#N/A"}},null,0,{"$f":"IF(H715>H714,\"The Transformation sector demand cannot be less than its memo item.\",\"\")","v":""}]
[null,"High Sulphur fuel oil","of which input to electricity and heat generation","CONSUMPTION","HIGHSULF","MTOELEHEAT",null,null,null,{"$f":"IF(H715>H714,\"This memo item cannot be more than the Transformation sector total.\",\"\")","v":""}]
[null,"High Sulphur fuel oil","Energy sector","CONSUMPTION","HIGHSULF","TOTENGY",{"$f":"OFFSET(Data!$A$3,MATCH($F716,Data!$A$4:$A$40,0),MATCH($E716,Data!$B$3:$AF$3,0))","v":{"$error":"#N/A"}},null,{"$f":"IF(H716=0,0,IF(G716=0,0,((H716/G716)-1)*100))","v":0}]
[null,"High Sulphur fuel oil","Distribution losses","CONSUMPTION","HIGHSULF","DISTLOSS",{"$f":"OFFSET(Data!$A$3,MATCH($F717,Data!$A$4:$A$40,0),MATCH($E717,Data!$B$3:$AF$3,0))","v":{"$error":"#N/A"}},null,0,{"$f":"IF(H717<0,\"Distribution losses cannot be negative.\",\"\")","v":""}]
[null,"High Sulphur fuel oil","Total final consumption","CONSUMPTION","HIGHSULF","FINCONS",{"$f":"OFFSET(Data!$A$3,MATCH($F718,Data!$A$4:$A$40,0),MATCH($E718,Data!$B$3:$AF$3,0))","v":{"$error":"#N/A"}},null,0,{"$f":"IF(H719+H721=H718,\"\",\"Unless the breakdown are not available, total final consumption must be equivalent to the sum of its final energy use and non-energy use parts.\")","v":""}]
[null,"High Sulphur fuel oil","Total final non-energy use consumption","CONSUMPTION","HIGHSULF","NEFINCONS",{"$f":"OFFSET(Data!$A$3,MATCH($F719,Data!$A$4:$A$40,0),MATCH($E719,Data!$B$3:$AF$3,0))","v":{"$error":"#N/A"}},null,0]
[null,"High Sulphur fuel oil","Industry sector","CONSUMPTION","HIGHSULF","NEIND",{"$f":"OFFSET(Data!$A$3,MATCH($F720,Data!$A$4:$A$40,0),MATCH($E720,Data!$B$3:$AF$3,0))","v":{"$error":"#N/A"}},null,{"$f":"ROUND(IF(H720=0,0,IF(G720=0,0,((H720/G720)-1)*100)),3)","v":0},{"$f":"IF(H720>H719,\"Consumption in the Industry sector cannot be greater than the Total final non-energy use.\",\"\")","v":""}]
[null,"High Sulphur fuel oil","Total final energy consumption","CONSUMPTION","HIGHSULF","EFINCONS",{"$f":"OFFSET(Data!$A$3,MATCH($F721,Data!$A$4:$A$40,0),MATCH($E721,Data!$B$3:$AF$3,0))","v":{"$error":"#N/A"}},null,{"$f":"ROUND(IF(H721=0,0,IF(G721=0,0,((H721/G721)-1)*100)),3)","v":0},{"$f":"IF(H722+H724+H725=H721,\"\",\"Unless the breakdown are not available, the total final energy consumption must be equivalent to the sum of its parts.\")","v":""}]
[null,"High Sulphur fuel oil","Transport sector","CONSUMPTION","HIGHSULF","ETRANS",{"$f":"OFFSET(Data!$A$3,MATCH($F722,Data!$A$4:$A$40,0),MATCH($E722,Data!$B$3:$AF$3,0))","v":{"$error":"#N/A"}},null,{"$f":"ROUND(IF(H722=0,0,IF(G722=0,0,((H722/G722)-1)*100)),3)","v":0}]
[null,"High Sulphur fuel oil","of which International aviation","CONSUMPTION","HIGHSULF","EINTLAIR",{"$f":"OFFSET(Data!$A$3,MATCH($F723,Data!$A$4:$A$40,0),MATCH($E723,Data!$B$3:$AF$3,0))","v":{"$error":"#N/A"}},null,{"$f":"ROUND(IF(H723=0,0,IF(G723=0,0,((H723/G723)-1)*100)),3)","v":0},{"$f":"IF(H723>H722,\"Deliveries for International aviation cannot be greater than the total energy use in the Transport sector.\",\"\")","v":""}]
[null,"High Sulphur fuel oil","Industry sector","CONSUMPTION","HIGHSULF","EIND",{"$f":"OFFSET(Data!$A$3,MATCH($F724,Data!$A$4:$A$40,0),MATCH($E724,Data!$B$3:$AF$3,0))","v":{"$error":"#N/A"}},null,0]
[null,"High Sulphur fuel oil","Other sectors","CONSUMPTION","HIGHSULF","EOTHER",{"$f":"OFFSET(Data!$A$3,MATCH($F725,Data!$A$4:$A$40,0),MATCH($E725,Data!$B$3:$AF$3,0))","v":{"$error":"#N/A"}},null,0,{"$f":"IF(OR(SUM(H726:H727)=H725,SUM(H726:H727)<H725),\"\",\"The total consumption in Other sectors must not be less than the sum of its parts if reported.\")","v":""}]
[null,"High Sulphur fuel oil","of which Residential","CONSUMPTION","HIGHSULF","ERESIDENT",{"$f":"OFFSET(Data!$A$3,MATCH($F726,Data!$A$4:$A$40,0),MATCH($E726,Data!$B$3:$AF$3,0))","v":{"$error":"#N/A"}},null,0]
[null,"High Sulphur fuel oil","of which Commercial/public services","CONSUMPTION","HIGHSULF","ECOMMPUB",{"$f":"OFFSET(Data!$A$3,MATCH($F727,Data!$A$4:$A$40,0),MATCH($E727,Data!$B$3:$AF$3,0))","v":{"$error":"#N/A"}},null,0]
[null,"Petroleum coke","Primary product receipts","BALANCE","PETCOKE","PPRECPTS",{"$f":"OFFSET(Data!$A$3,MATCH($F728,Data!$A$4:$A$40,0),MATCH($E728,Data!$B$3:$AF$3,0))","v":{"$error":"#N/A"}},null,0]
[null,"Petroleum coke","Refinery gross output","BALANCE","PETCOKE","REFGROUT",{"$f":"OFFSET(Data!$A$3,MATCH($F729,Data!$A$4:$A$40,0),MATCH($E729,Data!$B$3:$AF$3,0))","v":{"$error":"#N/A"}},null,0]
[null,"Petroleum coke","Recycled products","BALANCE","PETCOKE","RECYCLED",{"$f":"OFFSET(Data!$A$3,MATCH($F730,Data!$A$4:$A$40,0),MATCH($E730,Data!$B$3:$AF$3,0))","v":{"$error":"#N/A"}},null,0]
[null,"Petroleum coke","Refinery fuel","BALANCE","PETCOKE","REFFUEL",{"$f":"OFFSET(Data!$A$3,MATCH($F731,Data!$A$4:$A$40,0),MATCH($E731,Data!$B$3:$AF$3,0))","v":{"$error":"#N/A"}},null,0]
[null,"Petroleum coke","Total Imports (Balance)","BALANCE","PETCOKE","TOTIMPSB",{"$f":"OFFSET(Data!$A$3,MATCH($F732,Data!$A$4:$A$40,0),MATCH($E732,Data!$B$3:$AF$3,0))","v":{"$error":"#N/A"}},null,0]
[null,"Petroleum coke","Total Exports (Balance)","BALANCE","PETCOKE","TOTEXPSB",{"$f":"OFFSET(Data!$A$3,MATCH($F733,Data!$A$4:$A$40,0),MATCH($E733,Data!$B$3:$AF$3,0))","v":{"$error":"#N/A"}},null,0]
[null,"Petroleum coke","International marine bunkers","BALANCE","PETCOKE","BUNKERS",{"$f":"OFFSET(Data!$A$3,MATCH($F734,Data!$A$4:$A$40,0),MATCH($E734,Data!$B$3:$AF$3,0))","v":{"$error":"#N/A"}},null,0]
[null,"Petroleum coke","Interproduct transfers","BALANCE","PETCOKE","IPTRANSF",{"$f":"OFFSET(Data!$A$3,MATCH($F735,Data!$A$4:$A$40,0),MATCH($E735,Data!$B$3:$AF$3,0))","v":{"$error":"#N/A"}},null,0]
[null,"Petroleum coke","Products transferred","BALANCE","PETCOKE","PTRANSF",{"$f":"OFFSET(Data!$A$3,MATCH($F736,Data!$A$4:$A$40,0),MATCH($E736,Data!$B$3:$AF$3,0))","v":{"$error":"#N/A"}},null,0]
[null,"Petroleum coke","Stock Changes (National Territory)","BALANCE","PETCOKE","STCHANAT",{"$f":"OFFSET(Data!$A$3,MATCH($F737,Data!$A$4:$A$40,0),MATCH($E737,Data!$B$3:$AF$3,0))","v":{"$error":"#N/A"}},null,0]
[null,"Petroleum coke","Gross inland deliveries (Calculated)","BALANCE","PETCOKE","GDINCTRC",{"$f":"OFFSET(Data!$A$3,MATCH($F738,Data!$A$4:$A$40,0),MATCH($E738,Data!$B$3:$AF$3,0))","v":{"$error":"#N/A"}},{"$f":"H728+H729+H730-H731+H732-H733-H734+H735-H736+H737","v":0},0]
[null,"Petroleum coke","Statistical Differences","BALANCE","PETCOKE","STATDIFF",{"$f":"OFFSET(Data!$A$3,MATCH($F739,Data!$A$4:$A$40,0),MATCH($E739,Data!$B$3:$AF$3,0))","v":{"$error":"#N/A"}},{"$f":"H738-H740","v":0},0]
[null,"Petroleum coke","Gross inland deliveries (Observed)","BALANCE","PETCOKE","GDINCTRO",{"$f":"OFFSET(Data!$A$3,MATCH($F740,Data!$A$4:$A$40,0),MATCH($E740,Data!$B$3:$AF$3,0))","v":{"$error":"#N/A"}},null,0,{"$f":"IF(OR(H741+H743+H744+H745=H740,H741+H743+H744+H746+H748=H740),\"\",\"Unless the breakdown are not available, the total gross inland deliveries (observed) must be equivalent to the sum of its parts.\")","v":""}]
[null,"Petroleum coke","Transformation sector","CONSUMPTION","PETCOKE","TOTTRANF",{"$f":"OFFSET(Data!$A$3,MATCH($F741,Data!$A$4:$A$40,0),MATCH($E741,Data!$B$3:$AF$3,0))","v":{"$error":"#N/A"}},null,0,{"$f":"IF(H742>H741,\"The Transformation sector demand cannot be less than its memo item.\",\"\")","v":""}]
[null,"Petroleum coke","of which input to electricity and heat generation","CONSUMPTION","PETCOKE","MTOELEHEAT",null,null,null,{"$f":"IF(H742>H741,\"This memo item cannot be more than the Transformation sector total.\",\"\")","v":""}]
[null,"Petroleum coke","Energy sector","CONSUMPTION","PETCOKE","TOTENGY",{"$f":"OFFSET(Data!$A$3,MATCH($F743,Data!$A$4:$A$40,0),MATCH($E743,Data!$B$3:$AF$3,0))","v":{"$error":"#N/A"}},null,{"$f":"IF(H743=0,0,IF(G743=0,0,((H743/G743)-1)*100))","v":0}]
[null,"Petroleum coke","Distribution losses","CONSUMPTION","PETCOKE","DISTLOSS",{"$f":"OFFSET(Data!$A$3,MATCH($F744,Data!$A$4:$A$40,0),MATCH($E744,Data!$B$3:$AF$3,0))","v":{"$error":"#N/A"}},null,0,{"$f":"IF(H744<0,\"Distribution losses cannot be negative.\",\"\")","v":""}]
[null,"Petroleum coke","Total final consumption","CONSUMPTION","PETCOKE","FINCONS",{"$f":"OFFSET(Data!$A$3,MATCH($F745,Data!$A$4:$A$40,0),MATCH($E745,Data!$B$3:$AF$3,0))","v":{"$error":"#N/A"}},null,0,{"$f":"IF(H746+H748=H745,\"\",\"Unless the breakdown are not available, total final consumption must be equivalent to the sum of its final energy use and non-energy use parts.\")","v":""}]
[null,"Petroleum coke","Total final non-energy use consumption","CONSUMPTION","PETCOKE","NEFINCONS",{"$f":"OFFSET(Data!$A$3,MATCH($F746,Data!$A$4:$A$40,0),MATCH($E746,Data!$B$3:$AF$3,0))","v":{"$error":"#N/A"}},null,0]
[null,"Petroleum coke","Industry sector","CONSUMPTION","PETCOKE","NEIND",{"$f":"OFFSET(Data!$A$3,MATCH($F747,Data!$A$4:$A$40,0),MATCH($E747,Data!$B$3:$AF$3,0))","v":{"$error":"#N/A"}},null,{"$f":"ROUND(IF(H747=0,0,IF(G747=0,0,((H747/G747)-1)*100)),3)","v":0},{"$f":"IF(H747>H746,\"Consumption in the Industry sector cannot be greater than the Total final non-energy use.\",\"\")","v":""}]
[null,"Petroleum coke","Total final energy consumption","CONSUMPTION","PETCOKE","EFINCONS",{"$f":"OFFSET(Data!$A$3,MATCH($F748,Data!$A$4:$A$40,0),MATCH($E748,Data!$B$3:$AF$3,0))","v":{"$error":"#N/A"}},null,{"$f":"ROUND(IF(H748=0,0,IF(G748=0,0,((H748/G748)-1)*100)),3)","v":0},{"$f":"IF(H749+H751+H752=H748,\"\",\"Unless the breakdown are not available, the total final energy consumption must be equivalent to the sum of its parts.\")","v":""}]
[null,"Petroleum coke","Transport sector","CONSUMPTION","PETCOKE","ETRANS",{"$f":"OFFSET(Data!$A$3,MATCH($F749,Data!$A$4:$A$40,0),MATCH($E749,Data!$B$3:$AF$3,0))","v":{"$error":"#N/A"}},null,{"$f":"ROUND(IF(H749=0,0,IF(G749=0,0,((H749/G749)-1)*100)),3)","v":0}]
[null,"Petroleum coke","of which International aviation","CONSUMPTION","PETCOKE","EINTLAIR",{"$f":"OFFSET(Data!$A$3,MATCH($F750,Data!$A$4:$A$40,0),MATCH($E750,Data!$B$3:$AF$3,0))","v":{"$error":"#N/A"}},null,{"$f":"ROUND(IF(H750=0,0,IF(G750=0,0,((H750/G750)-1)*100)),3)","v":0},{"$f":"IF(H750>H749,\"Deliveries for International aviation cannot be greater than the total energy use in the Transport sector.\",\"\")","v":""}]
[null,"Petroleum coke","Industry sector","CONSUMPTION","PETCOKE","EIND",{"$f":"OFFSET(Data!$A$3,MATCH($F751,Data!$A$4:$A$40,0),MATCH($E751,Data!$B$3:$AF$3,0))","v":{"$error":"#N/A"}},null,0]
[null,"Petroleum coke","Other sectors","CONSUMPTION","PETCOKE","EOTHER",{"$f":"OFFSET(Data!$A$3,MATCH($F752,Data!$A$4:$A$40,0),MATCH($E752,Data!$B$3:$AF$3,0))","v":{"$error":"#N/A"}},null,0,{"$f":"IF(OR(SUM(H753:H754)=H752,SUM(H753:H754)<H752),\"\",\"The total consumption in Other sectors must not be less than the sum of its parts if reported.\")","v":""}]
[null,"Petroleum coke","of which Residential","CONSUMPTION","PETCOKE","ERESIDENT",{"$f":"OFFSET(Data!$A$3,MATCH($F753,Data!$A$4:$A$40,0),MATCH($E753,Data!$B$3:$AF$3,0))","v":{"$error":"#N/A"}},null,0]
[null,"Petroleum coke","of which Commercial/public services","CONSUMPTION","PETCOKE","ECOMMPUB",{"$f":"OFFSET(Data!$A$3,MATCH($F754,Data!$A$4:$A$40,0),MATCH($E754,Data!$B$3:$AF$3,0))","v":{"$error":"#N/A"}},null,0]
[null,"Other oil products","Primary product receipts","BALANCE","OPRODS","PPRECPTS",{"$f":"OFFSET(Data!$A$3,MATCH($F755,Data!$A$4:$A$40,0),MATCH($E755,Data!$B$3:$AF$3,0))","v":{"$error":"#N/A"}},null,0]
[null,"Other oil products","Refinery gross output","BALANCE","OPRODS","REFGROUT",{"$f":"OFFSET(Data!$A$3,MATCH($F756,Data!$A$4:$A$40,0),MATCH($E756,Data!$B$3:$AF$3,0))","v":{"$error":"#N/A"}},null,0]
[null,"Other oil products","Recycled products","BALANCE","OPRODS","RECYCLED",{"$f":"OFFSET(Data!$A$3,MATCH($F757,Data!$A$4:$A$40,0),MATCH($E757,Data!$B$3:$AF$3,0))","v":{"$error":"#N/A"}},null,0]
[null,"Other oil products","Refinery fuel","BALANCE","OPRODS","REFFUEL",{"$f":"OFFSET(Data!$A$3,MATCH($F758,Data!$A$4:$A$40,0),MATCH($E758,Data!$B$3:$AF$3,0))","v":{"$error":"#N/A"}},null,0]
[null,"Other oil products","Total Imports (Balance)","BALANCE","OPRODS","TOTIMPSB",{"$f":"OFFSET(Data!$A$3,MATCH($F759,Data!$A$4:$A$40,0),MATCH($E759,Data!$B$3:$AF$3,0))","v":{"$error":"#N/A"}},null,0]
[null,"Other oil products","Total Exports (Balance)","BALANCE","OPRODS","TOTEXPSB",{"$f":"OFFSET(Data!$A$3,MATCH($F760,Data!$A$4:$A$40,0),MATCH($E760,Data!$B$3:$AF$3,0))","v":{"$error":"#N/A"}},null,0]
[null,"Other oil products","International marine bunkers","BALANCE","OPRODS","BUNKERS",{"$f":"OFFSET(Data!$A$3,MATCH($F761,Data!$A$4:$A$40,0),MATCH($E761,Data!$B$3:$AF$3,0))","v":{"$error":"#N/A"}},null,0]
[null,"Other oil products","Interproduct transfers","BALANCE","OPRODS","IPTRANSF",{"$f":"OFFSET(Data!$A$3,MATCH($F762,Data!$A$4:$A$40,0),MATCH($E762,Data!$B$3:$AF$3,0))","v":{"$error":"#N/A"}},null,0]
[null,"Other oil products","Products transferred","BALANCE","OPRODS","PTRANSF",{"$f":"OFFSET(Data!$A$3,MATCH($F763,Data!$A$4:$A$40,0),MATCH($E763,Data!$B$3:$AF$3,0))","v":{"$error":"#N/A"}},null,{"$f":"IF(H763=0,0,IF(G763=0,0,((H763/G763)-1)*100))","v":0}]
[null,"Other oil products","Stock Changes (National Territory)","BALANCE","OPRODS","STCHANAT",{"$f":"OFFSET(Data!$A$3,MATCH($F764,Data!$A$4:$A$40,0),MATCH($E764,Data!$B$3:$AF$3,0))","v":{"$error":"#N/A"}},null,0]
[null,"Other oil products","Gross inland deliveries (Calculated)","BALANCE","OPRODS","GDINCTRC",{"$f":"OFFSET(Data!$A$3,MATCH($F765,Data!$A$4:$A$40,0),MATCH($E765,Data!$B$3:$AF$3,0))","v":{"$error":"#N/A"}},{"$f":"H755+H756+H757-H758+H759-H760-H761+H762-H763+H764","v":0},0]
[null,"Other oil products","Statistical Differences","BALANCE","OPRODS","STATDIFF",{"$f":"OFFSET(Data!$A$3,MATCH($F766,Data!$A$4:$A$40,0),MATCH($E766,Data!$B$3:$AF$3,0))","v":{"$error":"#N/A"}},{"$f":"H765-H767","v":0},0]
[null,"Other oil products","Gross inland deliveries (Observed)","BALANCE","OPRODS","GDINCTRO",{"$f":"OFFSET(Data!$A$3,MATCH($F767,Data!$A$4:$A$40,0),MATCH($E767,Data!$B$3:$AF$3,0))","v":{"$error":"#N/A"}},null,0,{"$f":"IF(OR(H768+H770+H771+H772=H767,H768+H770+H771+H773+H775=H767),\"\",\"Unless the breakdown are not available, the total gross inland deliveries (observed) must be equivalent to the sum of its parts.\")","v":""}]
[null,"Other oil products","Transformation sector","CONSUMPTION","OPRODS","TOTTRANF",{"$f":"OFFSET(Data!$A$3,MATCH($F768,Data!$A$4:$A$40,0),MATCH($E768,Data!$B$3:$AF$3,0))","v":{"$error":"#N/A"}},null,0,{"$f":"IF(H769>H768,\"The Transformation sector demand cannot be less than its memo item.\",\"\")","v":""}]
[null,"Other oil products","of which input to electricity and heat generation","CONSUMPTION","OPRODS","MTOELEHEAT",null,null,null,{"$f":"IF(H769>H768,\"This memo item cannot be more than the Transformation sector total.\",\"\")","v":""}]
[null,"Other oil products","Energy sector","CONSUMPTION","OPRODS","TOTENGY",{"$f":"OFFSET(Data!$A$3,MATCH($F770,Data!$A$4:$A$40,0),MATCH($E770,Data!$B$3:$AF$3,0))","v":{"$error":"#N/A"}},null,{"$f":"IF(H770=0,0,IF(G770=0,0,((H770/G770)-1)*100))","v":0}]
[null,"Other oil products","Distribution losses","CONSUMPTION","OPRODS","DISTLOSS",{"$f":"OFFSET(Data!$A$3,MATCH($F771,Data!$A$4:$A$40,0),MATCH($E771,Data!$B$3:$AF$3,0))","v":{"$error":"#N/A"}},null,0,{"$f":"IF(H771<0,\"Distribution losses cannot be negative.\",\"\")","v":""}]
[null,"Other oil products","Total final consumption","CONSUMPTION","OPRODS","FINCONS",{"$f":"OFFSET(Data!$A$3,MATCH($F772,Data!$A$4:$A$40,0),MATCH($E772,Data!$B$3:$AF$3,0))","v":{"$error":"#N/A"}},null,0,{"$f":"IF(H773+H775=H772,\"\",\"Unless the breakdown are not available, total final consumption must be equivalent to the sum of its final energy use and non-energy use parts.\")","v":""}]
[null,"Other oil products","Total final non-energy use consumption","CONSUMPTION","OPRODS","NEFINCONS",{"$f":"OFFSET(Data!$A$3,MATCH($F773,Data!$A$4:$A$40,0),MATCH($E773,Data!$B$3:$AF$3,0))","v":{"$error":"#N/A"}},null,0]
[null,"Other oil products","Industry sector","CONSUMPTION","OPRODS","NEIND",{"$f":"OFFSET(Data!$A$3,MATCH($F774,Data!$A$4:$A$40,0),MATCH($E774,Data!$B$3:$AF$3,0))","v":{"$error":"#N/A"}},null,{"$f":"ROUND(IF(H774=0,0,IF(G774=0,0,((H774/G774)-1)*100)),3)","v":0},{"$f":"IF(H774>H773,\"Consumption in the Industry sector cannot be greater than the Total final non-energy use.\",\"\")","v":""}]
[null,"Other oil products","Total final energy consumption","CONSUMPTION","OPRODS","EFINCONS",{"$f":"OFFSET(Data!$A$3,MATCH($F775,Data!$A$4:$A$40,0),MATCH($E775,Data!$B$3:$AF$3,0))","v":{"$error":"#N/A"}},null,{"$f":"ROUND(IF(H775=0,0,IF(G775=0,0,((H775/G775)-1)*100)),3)","v":0},{"$f":"IF(H776+H778+H779=H775,\"\",\"Unless the breakdown are not available, the total final energy consumption must be equivalent to the sum of its parts.\")","v":""}]
[null,"Other oil products","Transport sector","CONSUMPTION","OPRODS","ETRANS",{"$f":"OFFSET(Data!$A$3,MATCH($F776,Data!$A$4:$A$40,0),MATCH($E776,Data!$B$3:$AF$3,0))","v":{"$error":"#N/A"}},null,{"$f":"ROUND(IF(H776=0,0,IF(G776=0,0,((H776/G776)-1)*100)),3)","v":0}]
[null,"Other oil products","of which International aviation","CONSUMPTION","OPRODS","EINTLAIR",{"$f":"OFFSET(Data!$A$3,MATCH($F777,Data!$A$4:$A$40,0),MATCH($E777,Data!$B$3:$AF$3,0))","v":{"$error":"#N/A"}},null,{"$f":"ROUND(IF(H777=0,0,IF(G777=0,0,((H777/G777)-1)*100)),3)","v":0},{"$f":"IF(H777>H776,\"Deliveries for International aviation cannot be greater than the total energy use in the Transport sector.\",\"\")","v":""}]
[null,"Other oil products","Industry sector","CONSUMPTION","OPRODS","EIND",{"$f":"OFFSET(Data!$A$3,MATCH($F778,Data!$A$4:$A$40,0),MATCH($E778,Data!$B$3:$AF$3,0))","v":{"$error":"#N/A"}},null,{"$f":"ROUND(IF(H778=0,0,IF(G778=0,0,((H778/G778)-1)*100)),3)","v":0}]
[null,"Other oil products","Other sectors","CONSUMPTION","OPRODS","EOTHER",{"$f":"OFFSET(Data!$A$3,MATCH($F779,Data!$A$4:$A$40,0),MATCH($E779,Data!$B$3:$AF$3,0))","v":{"$error":"#N/A"}},null,0,{"$f":"IF(OR(SUM(H780:H781)=H779,SUM(H780:H781)<H779),\"\",\"The total consumption in Other sectors must not be less than the sum of its parts if reported.\")","v":""}]
[null,"Other oil products","of which Residential","CONSUMPTION","OPRODS","ERESIDENT",{"$f":"OFFSET(Data!$A$3,MATCH($F780,Data!$A$4:$A$40,0),MATCH($E780,Data!$B$3:$AF$3,0))","v":{"$error":"#N/A"}},null,0]
[null,"Other oil products","of which Commercial/public services","CONSUMPTION","OPRODS","ECOMMPUB",{"$f":"OFFSET(Data!$A$3,MATCH($F781,Data!$A$4:$A$40,0),MATCH($E781,Data!$B$3:$AF$3,0))","v":{"$error":"#N/A"}},null,0]
[null,"Total products","Primary product receipts","BALANCE","TOTPRODS","PPRECPTS",{"$f":"OFFSET(Data!$A$3,MATCH($F782,Data!$A$4:$A$40,0),MATCH($E782,Data!$B$3:$AF$3,0))","v":{"$error":"#N/A"}},{"$f":"H107+H134+H161+H188+H215+H242+H269+H350+H377+H404+H485+H566+H647+H728+H755","v":0},0,{"$f":"IF(H101=H782,\"\",\"Total CRNGFEED Direct use must equal Total products Primary product receipts.\")","v":""}]
[null,"Total products","Refinery gross output","BALANCE","TOTPRODS","REFGROUT",{"$f":"OFFSET(Data!$A$3,MATCH($F783,Data!$A$4:$A$40,0),MATCH($E783,Data!$B$3:$AF$3,0))","v":{"$error":"#N/A"}},0,0]
[null,"Total products","Recycled products","BALANCE","TOTPRODS","RECYCLED",{"$f":"OFFSET(Data!$A$3,MATCH($F784,Data!$A$4:$A$40,0),MATCH($E784,Data!$B$3:$AF$3,0))","v":{"$error":"#N/A"}},0,0]
[null,"Total products","Refinery fuel","BALANCE","TOTPRODS","REFFUEL",{"$f":"OFFSET(Data!$A$3,MATCH($F785,Data!$A$4:$A$40,0),MATCH($E785,Data!$B$3:$AF$3,0))","v":{"$error":"#N/A"}},0,0]
[null,"Total products","Total Imports (Balance)","BALANCE","TOTPRODS","TOTIMPSB",{"$f":"OFFSET(Data!$A$3,MATCH($F786,Data!$A$4:$A$40,0),MATCH($E786,Data!$B$3:$AF$3,0))","v":{"$error":"#N/A"}},0,0]
[null,"Total products","Total Exports (Balance)","BALANCE","TOTPRODS","TOTEXPSB",{"$f":"OFFSET(Data!$A$3,MATCH($F787,Data!$A$4:$A$40,0),MATCH($E787,Data!$B$3:$AF$3,0))","v":{"$error":"#N/A"}},0,0]
[null,"Total products","International marine bunkers","BALANCE","TOTPRODS","BUNKERS",{"$f":"OFFSET(Data!$A$3,MATCH($F788,Data!$A$4:$A$40,0),MATCH($E788,Data!$B$3:$AF$3,0))","v":{"$error":"#N/A"}},0,0]
[null,"Total products","Interproduct transfers","BALANCE","TOTPRODS","IPTRANSF",{"$f":"OFFSET(Data!$A$3,MATCH($F789,Data!$A$4:$A$40,0),MATCH($E789,Data!$B$3:$AF$3,0))","v":{"$error":"#N/A"}},0,0,{"$f":"IF(H789=0,\"\",\"Total products Interproduct transfers must sum to zero.\")","v":""}]
[null,"Total products","Products transferred","BALANCE","TOTPRODS","PTRANSF",{"$f":"OFFSET(Data!$A$3,MATCH($F790,Data!$A$4:$A$40,0),MATCH($E790,Data!$B$3:$AF$3,0))","v":{"$error":"#N/A"}},0,0,{"$f":"IF(H98=H790,\"\",\"Total CRNGFEED Products transferred should equal Total products - Products transferred.\")","v":""}]
[null,"Total products","Stock Changes (National Territory)","BALANCE","TOTPRODS","STCHANAT",{"$f":"OFFSET(Data!$A$3,MATCH($F791,Data!$A$4:$A$40,0),MATCH($E791,Data!$B$3:$AF$3,0))","v":{"$error":"#N/A"}},0,0]
[null,"Total products","Gross inland deliveries (Calculated)","BALANCE","TOTPRODS","GDINCTRC",{"$f":"OFFSET(Data!$A$3,MATCH($F792,Data!$A$4:$A$40,0),MATCH($E792,Data!$B$3:$AF$3,0))","v":{"$error":"#N/A"}},0,0]
[null,"Total products","Statistical Differences","BALANCE","TOTPRODS","STATDIFF",{"$f":"OFFSET(Data!$A$3,MATCH($F793,Data!$A$4:$A$40,0),MATCH($E793,Data!$B$3:$AF$3,0))","v":{"$error":"#N/A"}},0,0]
[null,"Total products","Gross inland deliveries (Observed)","BALANCE","TOTPRODS","GDINCTRO",{"$f":"OFFSET(Data!$A$3,MATCH($F794,Data!$A$4:$A$40,0),MATCH($E794,Data!$B$3:$AF$3,0))","v":{"$error":"#N/A"}},0,0,{"$f":"IF(OR(H795+H797+H798+H799=H794,H795+H797+H798+H800+H802=H794),\"\",\"Unless the breakdown are not available, the total gross inland deliveries (observed) must be equivalent to the sum of its parts.\")","v":""}]
[null,"Total products","Transformation sector","CONSUMPTION","TOTPRODS","TOTTRANF",{"$f":"OFFSET(Data!$A$3,MATCH($F795,Data!$A$4:$A$40,0),MATCH($E795,Data!$B$3:$AF$3,0))","v":{"$error":"#N/A"}},{"$f":"ROUND(H120+H147+H174+H201+H228+H255+H282+H363+H390+H417+H498+H579+H660+H741+H768,3)","v":0},0,{"$f":"IF(H796>H795,\"The Transformation sector demand cannot be less than its memo item.\",\"\")","v":""}]
[null,"Total products","of which input to electricity and heat generation","CONSUMPTION","TOTPRODS","MTOELEHEAT",null,0,null,{"$f":"IF(H796>H795,\"This memo item cannot be more than the Transformation sector total.\",\"\")","v":""}]
[null,"Total products","Energy sector","CONSUMPTION","TOTPRODS","TOTENGY",{"$f":"OFFSET(Data!$A$3,MATCH($F797,Data!$A$4:$A$40,0),MATCH($E797,Data!$B$3:$AF$3,0))","v":{"$error":"#N/A"}},0,0]
[null,"Total products","Distribution losses","CONSUMPTION","TOTPRODS","DISTLOSS",{"$f":"OFFSET(Data!$A$3,MATCH($F798,Data!$A$4:$A$40,0),MATCH($E798,Data!$B$3:$AF$3,0))","v":{"$error":"#N/A"}},0,0,{"$f":"IF(H798<0,\"Distribution losses cannot be negative.\",\"\")","v":""}]
[null,"Total products","Total final consumption","CONSUMPTION","TOTPRODS","FINCONS",{"$f":"OFFSET(Data!$A$3,MATCH($F799,Data!$A$4:$A$40,0),MATCH($E799,Data!$B$3:$AF$3,0))","v":{"$error":"#N/A"}},0,0,{"$f":"IF(H800+H802=H799,\"\",\"Unless the breakdown are not available, total final consumption must be equivalent to the sum of its final energy use and non-energy use parts.\")","v":""}]
[null,"Total products","Total final non-energy use consumption","CONSUMPTION","TOTPRODS","NEFINCONS",{"$f":"OFFSET(Data!$A$3,MATCH($F800,Data!$A$4:$A$40,0),MATCH($E800,Data!$B$3:$AF$3,0))","v":{"$error":"#N/A"}},0,0]
[null,"Total products","Industry sector","CONSUMPTION","TOTPRODS","NEIND",{"$f":"OFFSET(Data!$A$3,MATCH($F801,Data!$A$4:$A$40,0),MATCH($E801,Data!$B$3:$AF$3,0))","v":{"$error":"#N/A"}},0,{"$f":"ROUND(IF(H801=0,0,IF(G801=0,0,((H801/G801)-1)*100)),3)","v":0},{"$f":"IF(H801>H800,\"Consumption in the Industry sector cannot be greater than the Total final non-energy use.\",\"\")","v":""}]
[null,"Total products","Total final energy consumption","CONSUMPTION","TOTPRODS","EFINCONS",{"$f":"OFFSET(Data!$A$3,MATCH($F802,Data!$A$4:$A$40,0),MATCH($E802,Data!$B$3:$AF$3,0))","v":{"$error":"#N/A"}},0,{"$f":"ROUND(IF(H802=0,0,IF(G802=0,0,((H802/G802)-1)*100)),3)","v":0},{"$f":"IF(H803+H805+H806=H802,\"\",\"Unless the breakdown are not available, the total final energy consumption must be equivalent to the sum of its parts.\")","v":""}]
[null,"Total products","Transport sector","CONSUMPTION","TOTPRODS","ETRANS",{"$f":"OFFSET(Data!$A$3,MATCH($F803,Data!$A$4:$A$40,0),MATCH($E803,Data!$B$3:$AF$3,0))","v":{"$error":"#N/A"}},0,{"$f":"ROUND(IF(H803=0,0,IF(G803=0,0,((H803/G803)-1)*100)),3)","v":0}]
[null,"Total products","of which International aviation","CONSUMPTION","TOTPRODS","EINTLAIR",{"$f":"OFFSET(Data!$A$3,MATCH($F804,Data!$A$4:$A$40,0),MATCH($E804,Data!$B$3:$AF$3,0))","v":{"$error":"#N/A"}},0,{"$f":"ROUND(IF(H804=0,0,IF(G804=0,0,((H804/G804)-1)*100)),3)","v":0},{"$f":"IF(H804>H803,\"Deliveries for International aviation cannot be greater than the total energy use in the Transport sector.\",\"\")","v":""}]
[null,"Total products","Industry sector","CONSUMPTION","TOTPRODS","EIND",{"$f":"OFFSET(Data!$A$3,MATCH($F805,Data!$A$4:$A$40,0),MATCH($E805,Data!$B$3:$AF$3,0))","v":{"$error":"#N/A"}},0,0]
[null,"Total products","Other sectors","CONSUMPTION","TOTPRODS","EOTHER",{"$f":"OFFSET(Data!$A$3,MATCH($F806,Data!$A$4:$A$40,0),MATCH($E806,Data!$B$3:$AF$3,0))","v":{"$error":"#N/A"}},0,0,{"$f":"IF(OR(SUM(H807:H808)=H806,SUM(H807:H808)<H806),\"\",\"The total consumption in Other sectors must not be less than the sum of its parts if reported.\")","v":""}]
[null,"Total products","of which Residential","CONSUMPTION","TOTPRODS","ERESIDENT",{"$f":"OFFSET(Data!$A$3,MATCH($F807,Data!$A$4:$A$40,0),MATCH($E807,Data!$B$3:$AF$3,0))","v":{"$error":"#N/A"}},0,0]
[null,"Total products","of which Commercial/public services","CONSUMPTION","TOTPRODS","ECOMMPUB",{"$f":"OFFSET(Data!$A$3,MATCH($F808,Data!$A$4:$A$40,0),MATCH($E808,Data!$B$3:$AF$3,0))","v":{"$error":"#N/A"}},0,0]

{"sheet":"Data","index":3,"n_rows":0,"n_cols":0,"rows_kept":0,"cut":false,"hidden":false,"merged":[]}

{"sheet":"Param","index":4,"n_rows":91,"n_cols":11,"rows_kept":91,"cut":false,"hidden":true,"merged":[]}
[]
[null,"SETTINGS"]
[]
[]
[null,null,"ParamCountry / CountryList"]
[null,null,"Country","COUNTRY","00"]
[null,null,"Australia","AUSTRALI","AU"]
[null,null,"Austria","AUSTRIA","AT"]
[null,null,"Belgium","BELGIUM","BE"]
[null,null,"Canada","CANADA","CA"]
[null,null,"Chile","CHILE","CL"]
[null,null,"Colombia","COLOMBIA","CO"]
[null,null,"Costa Rica","COSTARICA","CR"]
[null,null,"Czech Republic","CZECH","CZ"]
[null,null,"Denmark","DENMARK","DK"]
[null,null,"Estonia","ESTONIA","EE"]
[null,null,"Finland","FINLAND","FI"]
[null,null,"France","FRANCE","FR"]
[null,null,"Germany","GERMANY","DE"]
[null,null,"Greece","GREECE","GR"]
[null,null,"Hungary","HUNGARY","HU"]
[null,null,"Iceland","ICELAND","IS"]
[null,null,"Ireland","IRELAND","IE"]
[null,null,"Israel","ISRAEL","IL"]
[null,null,"Italy","ITALY","IT"]
[null,null,"Japan","JAPAN","JP"]
[null,null,"Korea","KOREA","KR"]
[null,null,"Latvia","LATVIA","LV"]
[null,null,"Luxembourg","LUXEMBOU","LU"]
[null,null,"Mexico","MEXICO","MX"]
[null,null,"Netherlands","NETHLAND","NL"]
[null,null,"New Zealand","NZ","NZ"]
[null,null,"Norway","NORWAY","NO"]
[null,null,"Poland","POLAND","PL"]
[null,null,"Portugal","PORTUGAL","PT"]
[null,null,"Russian Federation","RUSSIA","RU"]
[null,null,"Slovak Republic","SLOVAKIA","SK"]
[null,null,"Slovenia","SLOVENIA","SI"]
[null,null,"Spain","SPAIN","ES"]
[null,null,"Sweden","SWEDEN","SE"]
[null,null,"Switzerland","SWITLAND","CH"]
[null,null,"Turkey","TURKEY","TR"]
[null,null,"United Kingdom","UK","GB"]
[null,null,"United States","USA","US"]
[null,null,"Albania","ALBANIA","AL"]
[null,null,"Armenia","ARMENIA","AM"]
[null,null,"Azerbaijan","AZERBAIJAN","AZ"]
[null,null,"Belarus","BELARUS","BY"]
[null,null,"Bosnia and Herzegovina","BOSNIAHERZ","BA"]
[null,null,"Bulgaria","BULGARIA","BG"]
[null,null,"Croatia","CROATIA","HR"]
[null,null,"Cyprus","CYPRUS","CY"]
[null,null,"Former Yugoslav Republic of Macedonia","FYROM","MK"]
[null,null,"Georgia","GEORGIA","GE"]
[null,null,"Kazakhstan","KAZAKHSTAN","KZ"]
[null,null,"Kosovo","KOSOVO","XK"]
[null,null,"Kyrgyzstan","KYRGYZSTAN","KG"]
[null,null,"Lithuania","LITHUANIA","LT"]
[null,null,"Malta","MALTA","MT"]
[null,null,"Moldova, Republic","MOLDOVA","MD"]
[null,null,"Montenegro","MONTENEGRO","ME"]
[null,null,"Romania","ROMANIA","RO"]
[null,null,"Serbia","SERBIA","RS"]
[null,null,"Tajikistan","TAJIKISTAN","TJ"]
[null,null,"Tunisia","TUNISIA","TN"]
[null,null,"Turkmenistan","TURKMENIST","TM"]
[null,null,"Ukraine","UKRAINE","UA"]
[null,null,"Uzbekistan","UZBEKISTAN","UZ"]
[null,null,"China, People's Republic","CHINA","CN"]
[null,null,"India","INDIA","IN"]
[null,null,"Indonesia","INDONESIA","ID"]
[null,null,"Morocco","MOROCCO","MA"]
[null,null,"Singapore","SINGAPORE","SN"]
[null,null,"Thailand","THAILAND","TH"]
[null,null,"Brazil","BRAZIL","BR"]
[null,null,"Statisland","STATISLAND","Q1"]
[]
[null,null,"MsgAfterRounding : ",true]
[null,null,"NoRounding :  ",false]
[]
[null,"CALCULATIONS",null,null,null,"ê","DO NOT TOUCH!",null,null,null,"ê"]
[]
[]
[null,null,"CountryIndex: ",{"$f":"IF(DataCountry=0,1,IF(ISERROR(MATCH(DataCountry,CountryList,0)),1,MATCH(DataCountry,CountryList,0)))","v":1}]
[null,null,"CountryIeaCode: ",{"$f":"INDEX(CountryIeaList,CountryIndex,1)","v":"COUNTRY"}]
[null,null,"CountryIsoCode: ",{"$f":"INDEX(CountryIsoList,CountryIndex,1)","v":"00"}]
[null,null,"CountryName: ",{"$f":"INDEX(CountryList,CountryIndex,1)","v":"Country"}]
[]
[null,null,"CsvCountry:","FR","Paste by VBA"]
[null,null,null,{"$f":"IF(ISERROR(MATCH(CsvCountry,CountryIeaList,0))=FALSE,MATCH(CsvCountry,CountryIeaList,0),IF(ISERROR(MATCH(CsvCountry,CountryIsoList,0))=FALSE,MATCH(CsvCountry,CountryIsoList,0),0))","v":13}]
[null,null,"CsvCountryName:",{"$f":"IF(ISERROR(INDEX(ParamCountry,D90,1)),\"UNKNOWN\",INDEX(ParamCountry,D90,1))","v":"France"},"Read by VBA"]